Workbook

Sheet 1. Info
AB1: Algoma Power Inc.
AB2: Atikokan Hydro Inc.
AB3: Attawapiskat Power Corporation
AB4: Bluewater Power Distribution Corp.
AB5: Brant County Power
AB6: Brantford Power Inc.
AB7: Burlington Hydro Inc.
AB8: Cambridge and North Dumfries Hydro
AB9: Canadian Niagara Power Inc. – Eastern Ontario Power/Fort Erie/Port Colborne
AB10: Centre Wellington Hydro Ltd.
AB11: Chapleau Public Utilities Corporation
AB12: COLLUS Power Corp.
AB13: Cooperative Hydro Embrun Inc.
AB14: E.L.K. Energy Inc.
C15: Utility Name | D15: Waterloo North Hydro Inc. | AB15: Enersource Hydro Mississauga Inc.
AB16: Entegrus Powerlines Inc.
C17: Service Territory | D17: DRAFT FOR CORRECTION PURPOSES ONLY | AB17: ENWIN Utilities Ltd.
AB18: Erie Thames Powerlines Corp.
C19: Assigned EB Number | D19: EB-2013-0176 | AB19: Espanola Regional Hydro Distribution Corporation
AB20: Essex Powerlines Corporation
C21: Name and Title | D21: Albert P. Singh, CFO & Vice-President Administration | AB21: Festival Hydro Inc.
AB22: Fort Albany Power Corporation
C23: Phone Number | D23: 519-888-5542 | AB23: Fort Frances Power Corporation
AB24: Greater Sudbury Hydro Inc.
C25: Email Address | D25: asingh@wnhydro.com | AB25: Grimsby Power Inc.
AB26: Guelph Hydro Electric Systems Inc.
C27: Date | D27: 2014-05-01 | AB27: Haldimand County Hydro Inc.
AB28: Halton Hills Hydro Inc.
C29: Last COS Re-based Year | D29: 2011 | AB29: Hearst Power Distribution Co. Ltd.
AB30: Horizon Utilities Corporation
AB31: Hydro 2000 Inc.
A32: Note: Drop-down lists are shaded blue; Input cells are shaded green. | AB32: Hydro Hawkesbury Inc.
AB33: Hydro One Brampton Networks Inc.
AB34: Hydro One Networks Inc.
AB35: Hydro One Remote Communities Inc.
AB36: Hydro Ottawa Limited
AB37: Innisfil Hydro Dist. Systems Limited
AB38: Kashechewan Power Corporation
AB39: Kenora Hydro Electric Corporation Ltd.
AB40: Kingston Hydro Corporation
AB41: Kitchener-Wilmot Hydro Inc.
AB42: Lakefront Utilities Inc.
AB43: Lakeland Power Distribution Ltd.
AB44: London Hydro Inc.
AB45: Midland Power Utility Corporation
AB46: Milton Hydro Distribution Inc.
AB47: Newmarket – Tay Power Distribution Ltd.
AB48: Niagara Peninsula Energy Inc.
AB49: Niagara-on-the-Lake Hydro Inc.
AB50: Norfolk Power Distribution Ltd.
AB51: North Bay Hydro Distribution Limited
AB52: Northern Ontario Wires Inc.
AB53: Oakville Hydro Distribution Inc.
AB54: Orangeville Hydro Limited
AB55: Orillia Power Distribution Corp.
AB56: Oshawa PUC Networks Inc.
AB57: Ottawa River Power Corporation
AB58: Parry Sound Power Corporation
AB59: Peterborough Distribution Inc.
AB60: PowerStream Inc.
AB61: PUC Distribution Inc.
AB62: Renfrew Hydro Inc.
AB63: Rideau St. Lawrence Distribution Inc.
AB64: St. Thomas Energy Inc.
AB65: Sioux Lookout Hydro Inc.
AB66: Thunder Bay Hydro Electricity Distribution
AB67: Tillsonburg Hydro Inc.
AB68: Toronto Hydro-Electric System Limited
AB69: Veridian Connections Inc.
AB70: Wasaga Distribution Inc.
AB71: Waterloo North Hydro Inc.
AB72: Welland Hydro Electric System Corp.
AB73: Wellington North Power Inc.
AB74: West Coast Huron Energy Inc.
AB75: Westario Power Inc.
AB76: Whitby Hydro Electric Corporation
AB77: Woodstock Hydro Services Inc.

Sheet 2. Table of Contents
D20: 1. Info | I20: 7. Current Wholesale
D22: 2. Table of Contents | I22: 8. Forecast Wholesale
D24: 3. Rate Classes | I24: 9. Adj Network to Current WS
D26: 4. RRR Data | I26: 10. Adj Conn. to Current WS
D28: 5. UTRs and Sub-Transmission | I28: 11. Adj Network to Forecast WS
D30: 6. Historical Wholesale | I30: 12. Adj Conn. to Forecast WS
I32: 13. Final 2013 RTS Rates

Sheet 3. Rate Classes
C13: 1. Select the appropriate rate classes that appear on your most recent Board-Approved Tariff of Rates and Charges. 2. Enter the RTS Network and Connection Rate as it appears on the Tariff of Rates and Charges
C22: Rate Class | H22: Unit | J22: RTSR-Network | M22: RTSR-Connection
C24: Residential | H24: kWh | J24: 0.0077 | M24: 0.0022 | Q24: =IF(OR(ISBLANK(C24), ISERROR(FIND("Choose", C24))=FALSE), 0, 1) -> 1 | R24: ="C" & ROW(C24) -> C24 | S24: =IF(OR(C24="General Service Intermediate Rate Class 1,000 To 4,999 kW (formerly General Service > 50 kW Customers)", C24="General Service Intermediate Rate Class 1,000 To 4,999 kW (formerly Large Use Customers)"), "x", "") ->  | AB24: Choose Rate Class
C25: General Service Less Than 50 kW | H25: kWh | J25: 0.007 | M25: 0.002 | Q25: 1 | R25: C25 | S25: =IF(OR(C25="General Service Intermediate Rate Class 1,000 To 4,999 kW (formerly General Service > 50 kW Customers)", C25="General Service Intermediate Rate Class 1,000 To 4,999 kW (formerly Large Use Customers)"), "x", "") ->  | AB25: Residential
C26: General Service 50 to 999 kW | H26: kW | J26: 2.8585 | M26: 0.7884 | Q26: 1 | R26: C26 | AB26: Residential Regular
C27: General Service 50 to 999 kW - Interval Metered | H27: kW | J27: 3.0361 | M27: 0.9848 | Q27: 1 | R27: C27 | AB27: Residential Urban
C28: General Service 1,000 to 4,999 kW - Interval Meters | H28: kW | J28: 3.0322 | M28: 0.9836 | Q28: 1 | R28: C28 | AB28: Residential Urban Year-Round
C29: Large Use | H29: kW | J29: 3.3616 | M29: 0.9882 | Q29: 1 | R29: C29 | AB29: Residential Suburban
C30: Unmetered Scattered Load | H30: kWh | J30: 0.007 | M30: 0.002 | Q30: 1 | R30: C30 | AB30: Residential Suburban Seasonal
C31: Street Lighting | H31: kW | J31: 2.1561 | M31: 0.6093 | Q31: 1 | R31: C31 | AB31: Residential Suburban Year Round
C32: Embedded Distributor | H32: kW | Q32: 1 | R32: C32 | AB32: Residential - Time of Use
C33: Choose Rate Class | Q33: 0 | R33: C33 | AB33: Residential - Hensall
C34: Choose Rate Class | Q34: 0 | R34: C34 | AB34: Residential – High Density [R1]
C35: Choose Rate Class | Q35: 0 | R35: C35 | AB35: Residential – Normal Density [R2]
C36: Choose Rate Class | Q36: 0 | R36: C36 | AB36: Seasonal Residential – High Density [R3]
C37: Choose Rate Class | Q37: 0 | R37: C37 | AB37: Seasonal Residential – Normal Density [R4]
C38: Choose Rate Class | Q38: 0 | R38: C38 | AB38: Residential – Urban [UR]
C39: Choose Rate Class | Q39: 0 | R39: C39
C40: Choose Rate Class | Q40: 0 | R40: C40 | AB40: General Service Less Than 50 kW
C41: Choose Rate Class | Q41: 0 | R41: C41 | AB41: General Service Less Than 50 kW – Single Phase energy-billed [G1]
C42: Choose Rate Class | Q42: 0 | R42: C42 | AB42: General Service Less Than 50 kW – Three Phase energy-billed [G3]
C43: Choose Rate Class | Q43: 0 | R43: C43 | AB43: General Service Less Than 50 kW – Transmission Class energy-billed [T]
C44: Choose Rate Class | Q44: 0 | R44: C44 | AB44: General Service Less Than 50 kW – Urban energy-billed [UG]
C45: Choose Rate Class | Q45: 0 | R45: C45 | AB45: Westport Sewage Treatment Plant
S46: =COUNTIF(S24:S45, "x") -> 0 | AB46: Small Commercial and USL - per meter
AB47: Small Commercial and USL - per connection
AB48: Farms – Single Phase energy-billed [F1]
AB50: General Service 50 to 499 kW
AB51: General Service 50 to 699 kW
AB52: General Service 50 to 999 kW
AB53: General Service 50 to 999 kW - Interval Metered
AB54: General Service 50 to 1,000 kW
AB55: General Service 50 to 1,000 kW - Interval Meters
AB56: General Service 50 to 1,000 kW - Non Interval Meters
AB57: General Service 50 to 1,499 kW
AB58: General Service 50 to 1,499 kW - Interval Metered
AB59: General Service 50 to 2,499 kW
AB60: General Service 50 to 2,999 kW
AB61: General Service 50 to 2,999 kW - Time of Use
AB62: General Service 50 to 4,999 kW
AB63: General Service 50 to 4,999 kW – Interval Metered
AB64: General Service 50 to 4,999 kW - Time of Use
AB65: General Service 50 to 4,999 kW (CoGeneration)
AB66: General Service 50 to 4,999 kW (formerly Time of Use)
AB67: General Service 500 to 4,999 kW
AB68: General Service 700 to 4,999 kW
AB69: General Service 1,000 to 2,999 kW
AB70: General Service 1,000 to 4,999 kW
AB71: General Service 1,000 to 4,999 kW - Interval Meters
AB72: General Service 1,000 To 4,999 kW (co-generation)
AB73: General Service Greater Than 1,000 kW
AB74: General Service Intermediate Rate Class 1,000 To 4,999 kW (formerly Large Use Customers)
AB75: General Service Intermediate Rate Class 1,000 To 4,999 kW (formerly General Service > 50 kW Customers)
AB76: General Service 1,500 to 4,999 kW
AB77: General Service Equal To Or Greater Than 1,500 kW
AB78: General Service Equal To Or Greater Than 1,500 kW - Interval Metered
AB79: General Service Intermediate 1,000 To 4,999 kW
AB80: General Service 2,500 to 4,999 kW
AB81: General Service 3,000 to 4,999 kW
AB82: General Service 3,000 to 4,999 kW - Interval Metered
AB83: General Service 3,000 to 4,999 kW - Intermediate Use
AB84: General Service 3,000 to 4,999 kW - Time of Use
AB85: Intermediate With Self Generation
AB86: General Service - Commercial
AB87: General Service - Institutional
AB88: Farms – Three Phase energy-billed [F3]
AB90: Large Use
AB91: Large Use - Regular
AB92: Large Use > 5000 kW
AB93: Large Use - 3TS
AB94: Large Use - Ford Annex
AB96: Unmetered Scattered Load
AB98: Sentinel Lighting
AB100: Street Lighting
AB102: Embedded Distributor
AB103: Low Voltage Wheeling Charge Rate
AB105: Stand-By
AB106: Standby Power
AB107: Standby Power – INTERIM APPROVAL
AB108: Standby Power - APPROVED ON AN INTERIM BASIS
AB109: Standby - General Service 50 - 1,000 kW
AB110: Standby Power General Service 50 to 1,499 kW
AB111: Standby - General Service 1,000 - 5,000 kW
AB112: Standby Power General Service 1,500 to 4,999 kW
AB113: Standby - Large Use
AB114: Standby Power General Service Large Use
AB115: Standby Distribution Service

Sheet 4. RRR Data
B13: In the green shaded cells, enter the most recent reported RRR billing determinants. Please ensure that billing determinants are non-loss adjusted.
B24: Rate Class | D24: Unit | F24: Non-Loss Adjusted Metered kWh | G24: Non-Loss Adjusted Metered kW | H24: Applicable Loss Factor | J24: Load Factor | L24: Loss Adjusted Billed kWh | M24: Billed kW
B27: =IF('3. Rate Classes'!Q24=1,'3. Rate Classes'!C24, 0) -> Residential | D27: =IF(OR(VLOOKUP($B27, '3. Rate Classes'!$C$24:$H$45,6,0)=0, ISERROR(VLOOKUP($B27, '3. Rate Classes'!$C$24:$H$45,6,0))), "", VLOOKUP($B27, '3. Rate Classes'!$C$24:$H$45,6,0)) -> kWh | F27: 409922519.1 | H27: 1.0404 | J27: =IF(ISERROR(F27/(G27*30.4*24)), "", IF(D27="kW", F27/(G27*30.4*24), "")) ->  | L27: =IF(OR(H27=0, OR(ISBLANK(H27), TRIM(H27)="")), F27, F27*H27) -> 426483388.8 | M27: =IF(OR(H27=0, OR(ISBLANK(H27), TRIM(H27)="")), G27, G27) -> 0
B28: =IF('3. Rate Classes'!Q25=1,'3. Rate Classes'!C25, 0) -> General Service Less Than 50 kW | D28: =IF(OR(VLOOKUP($B28, '3. Rate Classes'!$C$24:$H$45,6,0)=0, ISERROR(VLOOKUP($B28, '3. Rate Classes'!$C$24:$H$45,6,0))), "", VLOOKUP($B28, '3. Rate Classes'!$C$24:$H$45,6,0)) -> kWh | F28: 190189481.9 | H28: 1.0404 | L28: =IF(OR(H28=0, OR(ISBLANK(H28), TRIM(H28)="")), F28, F28*H28) -> 197873137 | M28: =IF(OR(H28=0, OR(ISBLANK(H28), TRIM(H28)="")), G28, G28) -> 0
B29: =IF('3. Rate Classes'!Q26=1,'3. Rate Classes'!C26, 0) -> General Service 50 to 999 kW | D29: =IF(OR(VLOOKUP($B29, '3. Rate Classes'!$C$24:$H$45,6,0)=0, ISERROR(VLOOKUP($B29, '3. Rate Classes'!$C$24:$H$45,6,0))), "", VLOOKUP($B29, '3. Rate Classes'!$C$24:$H$45,6,0)) -> kW | F29: 147002448.9 | G29: 472184.1712 | J29: 0.4267055778 | L29: 147002448.9 | M29: 472184.1712
B30: =IF('3. Rate Classes'!Q27=1,'3. Rate Classes'!C27, 0) -> General Service 50 to 999 kW - Interval Metered | D30: =IF(OR(VLOOKUP($B30, '3. Rate Classes'!$C$24:$H$45,6,0)=0, ISERROR(VLOOKUP($B30, '3. Rate Classes'!$C$24:$H$45,6,0))), "", VLOOKUP($B30, '3. Rate Classes'!$C$24:$H$45,6,0)) -> kW | F30: 310588134.3 | G30: 788826.16 | J30: 0.5396581372 | L30: 310588134.3 | M30: 788826.16
B31: =IF('3. Rate Classes'!Q28=1,'3. Rate Classes'!C28, 0) -> General Service 1,000 to 4,999 kW - Interval Meters | D31: =IF(OR(VLOOKUP($B31, '3. Rate Classes'!$C$24:$H$45,6,0)=0, ISERROR(VLOOKUP($B31, '3. Rate Classes'!$C$24:$H$45,6,0))), "", VLOOKUP($B31, '3. Rate Classes'!$C$24:$H$45,6,0)) -> kW | F31: 258900453.5 | G31: 546176.81 | J31: 0.6497027863 | L31: 258900453.5 | M31: 546176.81
B32: =IF('3. Rate Classes'!Q29=1,'3. Rate Classes'!C29, 0) -> Large Use | D32: =IF(OR(VLOOKUP($B32, '3. Rate Classes'!$C$24:$H$45,6,0)=0, ISERROR(VLOOKUP($B32, '3. Rate Classes'!$C$24:$H$45,6,0))), "", VLOOKUP($B32, '3. Rate Classes'!$C$24:$H$45,6,0)) -> kW | F32: 86740766.78 | G32: 165061.0695 | J32: 0.7202674304 | L32: 86740766.78 | M32: 165061.0695
B33: =IF('3. Rate Classes'!Q30=1,'3. Rate Classes'!C30, 0) -> Unmetered Scattered Load | D33: =IF(OR(VLOOKUP($B33, '3. Rate Classes'!$C$24:$H$45,6,0)=0, ISERROR(VLOOKUP($B33, '3. Rate Classes'!$C$24:$H$45,6,0))), "", VLOOKUP($B33, '3. Rate Classes'!$C$24:$H$45,6,0)) -> kWh | F33: 2250008.29 | H33: 1.0404 | J33: =IF(ISERROR(F33/(G33*30.4*24)), "", IF(D33="kW", F33/(G33*30.4*24), "")) ->  | L33: 2340908.625 | M33: 0
B34: =IF('3. Rate Classes'!Q31=1,'3. Rate Classes'!C31, 0) -> Street Lighting | D34: =IF(OR(VLOOKUP($B34, '3. Rate Classes'!$C$24:$H$45,6,0)=0, ISERROR(VLOOKUP($B34, '3. Rate Classes'!$C$24:$H$45,6,0))), "", VLOOKUP($B34, '3. Rate Classes'!$C$24:$H$45,6,0)) -> kW | F34: 9744476.993 | G34: 21334.086 | J34: 0.6260365188 | L34: 9744476.993 | M34: 21334.086
B35: =IF('3. Rate Classes'!Q32=1,'3. Rate Classes'!C32, 0) -> Embedded Distributor | D35: =IF(OR(VLOOKUP($B35, '3. Rate Classes'!$C$24:$H$45,6,0)=0, ISERROR(VLOOKUP($B35, '3. Rate Classes'!$C$24:$H$45,6,0))), "", VLOOKUP($B35, '3. Rate Classes'!$C$24:$H$45,6,0)) -> kW | F35: 32083012.56 | G35: 71506.52 | J35: 0.6149568921 | L35: 32083012.56 | M35: 71506.52
B36: =IF('3. Rate Classes'!Q33=1,'3. Rate Classes'!C33, 0) -> 0 | D36: =IF(OR(VLOOKUP($B36, '3. Rate Classes'!$C$24:$H$45,6,0)=0, ISERROR(VLOOKUP($B36, '3. Rate Classes'!$C$24:$H$45,6,0))), "", VLOOKUP($B36, '3. Rate Classes'!$C$24:$H$45,6,0)) ->  | L36: 0 | M36: 0
B37: =IF('3. Rate Classes'!Q34=1,'3. Rate Classes'!C34, 0) -> 0 | D37: =IF(OR(VLOOKUP($B37, '3. Rate Classes'!$C$24:$H$45,6,0)=0, ISERROR(VLOOKUP($B37, '3. Rate Classes'!$C$24:$H$45,6,0))), "", VLOOKUP($B37, '3. Rate Classes'!$C$24:$H$45,6,0)) ->  | L37: 0 | M37: 0
B38: =IF('3. Rate Classes'!Q35=1,'3. Rate Classes'!C35, 0) -> 0 | D38: =IF(OR(VLOOKUP($B38, '3. Rate Classes'!$C$24:$H$45,6,0)=0, ISERROR(VLOOKUP($B38, '3. Rate Classes'!$C$24:$H$45,6,0))), "", VLOOKUP($B38, '3. Rate Classes'!$C$24:$H$45,6,0)) ->  | L38: 0 | M38: 0
B39: =IF('3. Rate Classes'!Q36=1,'3. Rate Classes'!C36, 0) -> 0 | D39: =IF(OR(VLOOKUP($B39, '3. Rate Classes'!$C$24:$H$45,6,0)=0, ISERROR(VLOOKUP($B39, '3. Rate Classes'!$C$24:$H$45,6,0))), "", VLOOKUP($B39, '3. Rate Classes'!$C$24:$H$45,6,0)) ->  | L39: 0 | M39: 0
B40: =IF('3. Rate Classes'!Q37=1,'3. Rate Classes'!C37, 0) -> 0 | D40: =IF(OR(VLOOKUP($B40, '3. Rate Classes'!$C$24:$H$45,6,0)=0, ISERROR(VLOOKUP($B40, '3. Rate Classes'!$C$24:$H$45,6,0))), "", VLOOKUP($B40, '3. Rate Classes'!$C$24:$H$45,6,0)) ->  | L40: 0 | M40: 0
B41: =IF('3. Rate Classes'!Q38=1,'3. Rate Classes'!C38, 0) -> 0 | D41: =IF(OR(VLOOKUP($B41, '3. Rate Classes'!$C$24:$H$45,6,0)=0, ISERROR(VLOOKUP($B41, '3. Rate Classes'!$C$24:$H$45,6,0))), "", VLOOKUP($B41, '3. Rate Classes'!$C$24:$H$45,6,0)) ->  | L41: 0 | M41: 0
B42: =IF('3. Rate Classes'!Q39=1,'3. Rate Classes'!C39, 0) -> 0 | D42: =IF(OR(VLOOKUP($B42, '3. Rate Classes'!$C$24:$H$45,6,0)=0, ISERROR(VLOOKUP($B42, '3. Rate Classes'!$C$24:$H$45,6,0))), "", VLOOKUP($B42, '3. Rate Classes'!$C$24:$H$45,6,0)) ->  | L42: 0 | M42: 0
B43: =IF('3. Rate Classes'!Q40=1,'3. Rate Classes'!C40, 0) -> 0 | D43: =IF(OR(VLOOKUP($B43, '3. Rate Classes'!$C$24:$H$45,6,0)=0, ISERROR(VLOOKUP($B43, '3. Rate Classes'!$C$24:$H$45,6,0))), "", VLOOKUP($B43, '3. Rate Classes'!$C$24:$H$45,6,0)) ->  | L43: 0 | M43: 0
B44: =IF('3. Rate Classes'!Q41=1,'3. Rate Classes'!C41, 0) -> 0 | D44: =IF(OR(VLOOKUP($B44, '3. Rate Classes'!$C$24:$H$45,6,0)=0, ISERROR(VLOOKUP($B44, '3. Rate Classes'!$C$24:$H$45,6,0))), "", VLOOKUP($B44, '3. Rate Classes'!$C$24:$H$45,6,0)) ->  | L44: 0 | M44: 0
B45: =IF('3. Rate Classes'!Q42=1,'3. Rate Classes'!C42, 0) -> 0 | D45: =IF(OR(VLOOKUP($B45, '3. Rate Classes'!$C$24:$H$45,6,0)=0, ISERROR(VLOOKUP($B45, '3. Rate Classes'!$C$24:$H$45,6,0))), "", VLOOKUP($B45, '3. Rate Classes'!$C$24:$H$45,6,0)) ->  | L45: 0 | M45: 0
B46: =IF('3. Rate Classes'!Q43=1,'3. Rate Classes'!C43, 0) -> 0 | D46: =IF(OR(VLOOKUP($B46, '3. Rate Classes'!$C$24:$H$45,6,0)=0, ISERROR(VLOOKUP($B46, '3. Rate Classes'!$C$24:$H$45,6,0))), "", VLOOKUP($B46, '3. Rate Classes'!$C$24:$H$45,6,0)) ->  | L46: 0 | M46: 0
B47: =IF('3. Rate Classes'!Q44=1,'3. Rate Classes'!C44, 0) -> 0 | D47: =IF(OR(VLOOKUP($B47, '3. Rate Classes'!$C$24:$H$45,6,0)=0, ISERROR(VLOOKUP($B47, '3. Rate Classes'!$C$24:$H$45,6,0))), "", VLOOKUP($B47, '3. Rate Classes'!$C$24:$H$45,6,0)) ->  | L47: 0 | M47: 0
B48: =IF('3. Rate Classes'!Q45=1,'3. Rate Classes'!C45, 0) -> 0 | D48: =IF(OR(VLOOKUP($B48, '3. Rate Classes'!$C$24:$H$45,6,0)=0, ISERROR(VLOOKUP($B48, '3. Rate Classes'!$C$24:$H$45,6,0))), "", VLOOKUP($B48, '3. Rate Classes'!$C$24:$H$45,6,0)) ->  | L48: 0 | M48: 0

Sheet 5. UTRs and Sub-Transmission
B18: Uniform Transmission Rates | C18: Unit | E18: Effective January 1, 2012 | G18: Effective January 1, 2013 | I18: Effective January 1, 2014
B20: Rate Description | E20: Rate | G20: Rate | I20: Rate
B22: Network Service Rate | C22: kW | E22: 3.57 | G22: 3.63 | I22: 3.63
B24: Line Connection Service Rate | C24: kW | E24: 0.8 | G24: 0.75 | I24: 0.75
B26: Transformation Connection Service Rate | C26: kW | E26: 1.86 | G26: 1.85 | I26: 1.85
B29: Hydro One Sub-Transmission Rates | C29: Unit | E29: Effective January 1, 2012 | G29: Effective January 1, 2013 | I29: Effective January 1, 2014
B33: Rate Description | E33: Rate | G33: Rate | I33: Rate
B35: Network Service Rate | C35: kW | E35: 2.65 | G35: 3.18 | I35: 3.18
B37: Line Connection Service Rate | C37: kW | E37: 0.64 | G37: 0.7 | I37: 0.7
B39: Transformation Connection Service Rate | C39: kW | E39: 1.5 | G39: 1.63 | I39: 1.63
B41: Both Line and Transformation Connection Service Rate | C41: kW | E41: =E39+E37 -> 2.14 | G41: =G39+G37 -> 2.33 | I41: =I39+I37 -> 2.33
B44: If needed , add extra host here (I) | C44: Unit | E44: Effective January 1, 2012 | G44: Effective January 1, 2013 | I44: Effective January 1, 2014
B48: Rate Description | E48: Rate | G48: Rate | I48: Rate
B50: Network Service Rate | C50: kW | E50: 2.8776 | G50: 2.8965 | I50: 2.8965
B52: Line Connection Service Rate | C52: kW | E52: 0.6871 | G52: 0.6356 | I52: 0.6356
B54: Transformation Connection Service Rate | C54: kW
B56: Both Line and Transformation Connection Service Rate | C56: kW | E56: =E54+E52 -> 0.6871 | G56: =G54+G52 -> 0.6356 | I56: =I54+I52 -> 0.6356
B59: If needed , add extra host here (II) | C59: Unit | E59: Effective January 1, 2012 | G59: Effective January 1, 2013 | I59: Effective January 1, 2014
B63: Rate Description | E63: Rate | G63: Rate | I63: Rate
B65: Network Service Rate | C65: kW | E65: 2.5882 | G65: 2.5279 | I65: 2.5279
B67: Line Connection Service Rate | C67: kW | E67: 1.7677 | G67: 1.6586 | I67: 1.6586
B69: Transformation Connection Service Rate | C69: kW
B71: Both Line and Transformation Connection Service Rate | C71: kW | E71: =E69+E67 -> 1.7677 | G71: =G69+G67 -> 1.6586 | I71: =I69+I67 -> 1.6586
B75: Hydro One Sub-Transmission Rate Rider 9A | C75: Unit | E75: Effective January 1, 2012 | G75: Effective January 1, 2013 | I75: Effective January 1, 2014
B77: Rate Description | E77: Rate | G77: Rate | I77: Rate
B79: RSVA Transmission network – 4714 – which affects 1584 | C79: kW | E79: 0 | G79: 0.1465 | I79: 0.1465
B81: RSVA Transmission connection – 4716 – which affects 1586 | C81: kW | E81: 0 | G81: 0.0667 | I81: 0.0667
B83: RSVA LV – 4750 – which affects 1550 | C83: kW | E83: 0 | G83: 0.0475 | I83: 0.0475
B85: RARA 1 – 2252 – which affects 1590 | C85: kW | E85: 0 | G85: 0.0419 | I85: 0.0419
B87: RARA 1 – 2252 – which affects 1590 (2008) | C87: kW | E87: 0 | G87: -0.027 | I87: -0.027
B89: RARA 1 – 2252 – which affects 1590 (2009) | C89: kW | E89: 0 | G89: -0.0006 | I89: -0.0006
B91: Hydro One Sub-Transmission Rate Rider 9A | C91: kW | E91: =SUM(E79:E89) -> 0 | G91: =SUM(G79:G89) -> 0.275 | I91: =SUM(I79:I89) -> 0.275
E94: Historical 2012 | G94: Current 2013 | I94: Forecast 2014
B95: Low Voltage Switchgear Credit (if applicable, enter as a negative value) | C95: $

Sheet 6. Historical Wholesale
B21: IESO | D21: Network | H21: Line Connection | L21: Transformation Connection | P21: Total Line
B22: Month | D22: Units Billed | E22: Rate | F22: Amount | H22: Units Billed | I22: Rate | J22: Amount | L22: Units Billed | M22: Rate | N22: Amount | P22: Amount
B24: January | D24: 214060 | E24: =IF(D24<>0,F24/D24,0) -> 3.57 | F24: 764194.2 | H24: 219713 | I24: =IF(H24<>0,J24/H24,0) -> 0.8 | J24: 175770.4 | L24: 23283 | M24: =IF(L24<>0,N24/L24,0) -> 1.86 | N24: 43306.38 | P24: =J24+N24 -> 219076.78
B25: February | D25: 215579 | E25: =IF(D25<>0,F25/D25,0) -> 3.57 | F25: 769617.03 | H25: 242208 | I25: =IF(H25<>0,J25/H25,0) -> 0.8 | J25: 193766.4 | L25: 23088 | M25: =IF(L25<>0,N25/L25,0) -> 1.86 | N25: 42943.68 | P25: 236710.08
B26: March | D26: 199636 | E26: 3.57 | F26: 712700.52 | H26: 213637 | I26: 0.8 | J26: 170909.6 | L26: 20728 | M26: 1.86 | N26: 38554.08 | P26: 209463.68
B27: April | D27: 180632 | E27: 3.57 | F27: 644856.24 | H27: 193782 | I27: 0.8 | J27: 155025.6 | L27: 21020 | M27: 1.86 | N27: 39097.2 | P27: 194122.8
B28: May | D28: 237605 | E28: 3.57 | F28: 848249.85 | H28: 244795 | I28: 0.8 | J28: 195836 | L28: 23872 | M28: 1.86 | N28: 44401.92 | P28: 240237.92
B29: June | D29: 258715 | E29: 3.57 | F29: 923612.55 | H29: 264366 | I29: 0.8 | J29: 211492.8 | L29: 26123 | M29: 1.86 | N29: 48588.78 | P29: 260081.58
B30: July | D30: 265948 | E30: 3.57 | F30: 949434.36 | H30: 275005 | I30: 0.8 | J30: 220004 | L30: 27147 | M30: 1.86 | N30: 50493.42 | P30: 270497.42
B31: August | D31: 237259 | E31: 3.57 | F31: 847014.63 | H31: 243637 | I31: 0.8 | J31: 194909.6 | L31: 24471 | M31: 1.86 | N31: 45516.06 | P31: 240425.66
B32: September | D32: 220554 | E32: 3.57 | F32: 787377.78 | H32: 224771 | I32: 0.8 | J32: 179816.8 | L32: 23520 | M32: 1.86 | N32: 43747.2 | P32: 223564
B33: October | D33: 181037 | E33: 3.57 | F33: 646302.09 | H33: 195727 | I33: 0.8 | J33: 156581.6 | L33: 21494 | M33: 1.86 | N33: 39978.84 | P33: 196560.44
B34: November | D34: 203335 | E34: 3.57 | F34: 725905.95 | H34: 211996 | I34: 0.8 | J34: 169596.8 | L34: 22255 | M34: 1.86 | N34: 41394.3 | P34: 210991.1
B35: December | D35: 204346 | E35: 3.57 | F35: 729515.22 | H35: 212060 | I35: 0.8 | J35: 169648 | L35: 22739 | M35: 1.86 | N35: 42294.54 | P35: 211942.54
B37: Total | D37: =SUM(D24:D35) -> 2618706 | E37: =IF(D37<>0,F37/D37,0) -> 3.57 | F37: =SUM(F24:F35) -> 9348780.42 | H37: =SUM(H24:H35) -> 2741697 | I37: =IF(H37<>0,J37/H37,0) -> 0.8 | J37: =SUM(J24:J35) -> 2193357.6 | L37: =SUM(L24:L35) -> 279740 | M37: =IF(L37<>0,N37/L37,0) -> 1.86 | N37: =SUM(N24:N35) -> 520316.4 | P37: =SUM(P24:P35) -> 2713674
B39: Hydro One | D39: Network | H39: Line Connection | L39: Transformation Connection | P39: Total Line
B41: Month | D41: Units Billed | E41: Rate | F41: Amount | H41: Units Billed | I41: Rate | J41: Amount | L41: Units Billed | M41: Rate | N41: Amount | P41: Amount
B43: January | D43: 8898 | E43: =IF(D43<>0,F43/D43,0) -> 2.65 | F43: 23579.7 | H43: 9099 | I43: =IF(H43<>0,J43/H43,0) -> 0.64 | J43: 5823.36 | L43: 9099 | M43: =IF(L43<>0,N43/L43,0) -> 1.5 | N43: 13648.5 | P43: =J43+N43 -> 19471.86
B44: February | D44: 8526 | E44: =IF(D44<>0,F44/D44,0) -> 2.65 | F44: 22593.9 | H44: 8734 | I44: =IF(H44<>0,J44/H44,0) -> 0.64 | J44: 5589.76 | L44: 8734 | M44: =IF(L44<>0,N44/L44,0) -> 1.5 | N44: 13101 | P44: 18690.76
B45: March | D45: 8286 | E45: 2.65 | F45: 21957.9 | H45: 8485 | I45: 0.64 | J45: 5430.4 | L45: 8485 | M45: 1.5 | N45: 12727.5 | P45: 18157.9
B46: April | D46: 7008 | E46: 2.65 | F46: 18571.2 | H46: 7427 | I46: 0.64 | J46: 4753.28 | L46: 7427 | M46: 1.5 | N46: 11140.5 | P46: 15893.78
B47: May | D47: 6851 | E47: 2.65 | F47: 18155.15 | H47: 6944 | I47: 0.64 | J47: 4444.16 | L47: 6944 | M47: 1.5 | N47: 10416 | P47: 14860.16
B48: June | D48: 7521 | E48: 2.65 | F48: 19930.65 | H48: 7679 | I48: 0.64 | J48: 4914.56 | L48: 7679 | M48: 1.5 | N48: 11518.5 | P48: 16433.06
B49: July | D49: 6488 | E49: 2.65 | F49: 17193.2 | H49: 6558 | I49: 0.64 | J49: 4197.12 | L49: 6558 | M49: 1.5 | N49: 9837 | P49: 14034.12
B50: August | D50: 11986 | E50: 2.65 | F50: 31762.9 | H50: 12192 | I50: 0.64 | J50: 7802.88 | L50: 12192 | M50: 1.5 | N50: 18288 | P50: 26090.88
B51: September | D51: 7572 | E51: 2.65 | F51: 20065.8 | H51: 8001 | I51: 0.64 | J51: 5120.64 | L51: 8001 | M51: 1.5 | N51: 12001.5 | P51: 17122.14
B52: October | D52: 6616 | E52: 2.65 | F52: 17532.4 | H52: 7197 | I52: 0.64 | J52: 4606.08 | L52: 7197 | M52: 1.5 | N52: 10795.5 | P52: 15401.58
B53: November | D53: 7634 | E53: 2.65 | F53: 20230.1 | H53: 7753 | I53: 0.64 | J53: 4961.92 | L53: 7753 | M53: 1.5 | N53: 11629.5 | P53: 16591.42
B54: December | D54: 8299 | E54: 2.65 | F54: 21992.35 | H54: 8481 | I54: 0.64 | J54: 5427.84 | L54: 8481 | M54: 1.5 | N54: 12721.5 | P54: 18149.34
B56: Total | D56: =SUM(D43:D54) -> 95685 | E56: =IF(D56<>0,F56/D56,0) -> 2.65 | F56: =SUM(F43:F54) -> 253565.25 | H56: =SUM(H43:H54) -> 98550 | I56: =IF(H56<>0,J56/H56,0) -> 0.64 | J56: =SUM(J43:J54) -> 63072 | L56: =SUM(L43:L54) -> 98550 | M56: =IF(L56<>0,N56/L56,0) -> 1.5 | N56: =SUM(N43:N54) -> 147825 | P56: =SUM(P43:P54) -> 210897
B58: Add Extra Host Here (I) | D58: Network | H58: Line Connection | L58: Transformation Connection | P58: Total Line
B59: (if needed)
B60: Month | D60: Units Billed | E60: Rate | F60: Amount | H60: Units Billed | I60: Rate | J60: Amount | L60: Units Billed | M60: Rate | N60: Amount | P60: Amount
B62: January | D62: 3529.68 | E62: =IF(D62<>0,F62/D62,0) -> 2.2863999 | F62: 8070.26 | H62: 3529.68 | I62: =IF(H62<>0,J62/H62,0) -> 0.6044003989 | J62: 2133.34 | M62: =IF(L62<>0,N62/L62,0) -> 0 | P62: =J62+N62 -> 2133.34
B63: February | D63: 3228.29 | E63: 2.286399301 | F63: 7381.16 | H63: 3378.82 | I63: 0.6044003528 | J63: 2042.16 | M63: 0 | P63: 2042.16
B64: March | D64: 3153.02 | E64: 2.286398437 | F64: 7209.06 | H64: 3227.62 | I64: 0.6043989069 | J64: 1950.77 | M64: 0 | P64: 1950.77
B65: April | D65: 2626.51 | E65: 2.286399062 | F65: 6005.25 | H65: 2627.86 | I65: 0.6044005388 | J65: 1588.28 | M65: 0 | P65: 1588.28
B66: May | D66: 2937.98 | E66: 2.877599575 | F66: 8454.33 | H66: 2937.98 | I66: 0.6871013417 | J66: 2018.69 | M66: 0 | P66: 2018.69
B67: June | D67: 3285.07 | E67: 2.877600782 | F67: 9453.12 | H67: 3285.07 | I67: 0.6870995139 | J67: 2257.17 | M67: 0 | P67: 2257.17
B68: July | D68: 3382.85 | E68: 2.877600248 | F68: 9734.49 | H68: 3382.85 | I68: 0.687101113 | J68: 2324.36 | M68: 0 | P68: 2324.36
B69: August | D69: 3038.11 | E69: 2.877601535 | F69: 8742.47 | H69: 3038.11 | I69: 0.6871015204 | J69: 2087.49 | M69: 0 | P69: 2087.49
B70: September | D70: 2819.71 | E70: 2.877600888 | F70: 8114 | H70: 2947.06 | I70: 0.6870983285 | J70: 2024.92 | M70: 0 | P70: 2024.92
B71: October | D71: 2924.21 | E71: 2.87760113 | F71: 8414.71 | H71: 2924.21 | I71: 0.6870983958 | J71: 2009.22 | M71: 0 | P71: 2009.22
B72: November | D72: 3138.58 | E72: 2.877600698 | F72: 9031.58 | H72: 3138.58 | I72: 0.6871005359 | J72: 2156.52 | M72: 0 | P72: 2156.52
B73: December | D73: 3449.04 | E73: 2.877600724 | F73: 9924.96 | H73: 3449.04 | I73: 0.6871013383 | J73: 2369.84 | M73: 0 | P73: 2369.84
B75: Total | D75: =SUM(D62:D73) -> 37513.05 | E75: =IF(D75<>0,F75/D75,0) -> 2.680011089 | F75: =SUM(F62:F73) -> 100535.39 | H75: =SUM(H62:H73) -> 37866.88 | I75: =IF(H75<>0,J75/H75,0) -> 0.659224103 | J75: =SUM(J62:J73) -> 24962.76 | L75: =SUM(L62:L73) -> 0 | M75: =IF(L75<>0,N75/L75,0) -> 0 | N75: =SUM(N62:N73) -> 0 | P75: =SUM(P62:P73) -> 24962.76
B77: Add Extra Host Here (II) | D77: Network | H77: Line Connection | L77: Transformation Connection | P77: Total Line
B78: (if needed)
B79: Month | D79: Units Billed | E79: Rate | F79: Amount | H79: Units Billed | I79: Rate | J79: Amount | L79: Units Billed | M79: Rate | N79: Amount | P79: Amount
B81: January | D81: 7420.2 | E81: =IF(D81<>0,F81/D81,0) -> 2.147000081 | F81: 15931.17 | H81: 7420.2 | I81: =IF(H81<>0,J81/H81,0) -> 1.589699739 | J81: 11795.89 | M81: =IF(L81<>0,N81/L81,0) -> 0 | P81: =J81+N81 -> 11795.89
B82: February | D82: 11957.24 | E82: 2.146999642 | F82: 25672.19 | H82: 11957.24 | I82: 1.58969963 | J82: 19008.42 | M82: 0 | P82: 19008.42
B83: March | D83: 4620.37 | E83: 2.14699905 | F83: 9919.93 | H83: 4620.37 | I83: 1.589699526 | J83: 7345 | M83: 0 | P83: 7345
B84: April | D84: 4594.34 | E84: 2.14700044 | F84: 9864.05 | H84: 4594.34 | I84: 1.5896995 | J84: 7303.62 | M84: 0 | P84: 7303.62
B85: May | D85: 4433.92 | E85: 2.588199607 | F85: 11475.87 | H85: 4433.92 | I85: 1.767699913 | J85: 7837.84 | M85: 0 | P85: 7837.84
B86: June | D86: 6051.47 | E86: 2.588199231 | F86: 15662.41 | H86: 6051.47 | I86: 1.767699418 | J86: 10697.18 | M86: 0 | P86: 10697.18
B87: July | D87: 5875.5 | E87: 2.588200153 | F87: 15206.97 | H87: 5875.5 | I87: 1.76769977 | J87: 10386.12 | M87: 0 | P87: 10386.12
B88: August | D88: 4912.18 | E88: 2.58819913 | F88: 12713.7 | H88: 4912.18 | I88: 1.767699881 | J88: 8683.26 | M88: 0 | P88: 8683.26
B89: September | D89: 4817.95 | E89: 2.588200376 | F89: 12469.82 | H89: 4817.95 | I89: 1.767699955 | J89: 8516.69 | M89: 0 | P89: 8516.69
B90: October | D90: 4711.51 | E90: 2.588199961 | F90: 12194.33 | H90: 6023.45 | I90: 1.767699574 | J90: 10647.65 | M90: 0 | P90: 10647.65
B91: November | D91: 4739.29 | E91: 2.58819992 | F91: 12266.23 | H91: 4739.29 | I91: 1.767699381 | J91: 8377.64 | M91: 0 | P91: 8377.64
B92: December | D92: 4828.44 | E92: 2.58820033 | F92: 12496.97 | H92: 4828.44 | I92: 1.767699298 | J92: 8535.23 | M92: 0 | P92: 8535.23
B94: Total | D94: =SUM(D81:D92) -> 68962.41 | E94: =IF(D94<>0,F94/D94,0) -> 2.40527615 | F94: =SUM(F81:F92) -> 165873.64 | H94: =SUM(H81:H92) -> 70274.35 | I94: =IF(H94<>0,J94/H94,0) -> 1.695277722 | J94: =SUM(J81:J92) -> 119134.54 | L94: =SUM(L81:L92) -> 0 | M94: =IF(L94<>0,N94/L94,0) -> 0 | N94: =SUM(N81:N92) -> 0 | P94: =SUM(P81:P92) -> 119134.54
B96: Total | D96: Network | H96: Line Connection | L96: Transformation Connection | P96: Total Line
B98: Month | D98: Units Billed | E98: Rate | F98: Amount | H98: Units Billed | I98: Rate | J98: Amount | L98: Units Billed | M98: Rate | N98: Amount | P98: Amount
B100: January | D100: =D24+D43+D62+D81 -> 233907.88 | E100: =IF(D100<>0,F100/D100,0) -> 3.470491588 | F100: =F24+F43+F62+F81 -> 811775.33 | H100: =H24+H43+H62+H81 -> 239761.88 | I100: =IF(H100<>0,J100/H100,0) -> 0.8154882252 | J100: =J24+J43+J62+J81 -> 195522.99 | L100: =L24+L43+L62+L81 -> 32382 | M100: =IF(L100<>0,N100/L100,0) -> 1.758843802 | N100: =N24+N43+N62+N81 -> 56954.88 | P100: =J100+N100 -> 252477.87
B101: February | D101: =D25+D44+D63+D82 -> 239290.53 | E101: 3.448796239 | F101: =F25+F44+F63+F82 -> 825264.28 | H101: =H25+H44+H63+H82 -> 266278.06 | I101: 0.8277315074 | J101: =J25+J44+J63+J82 -> 220406.74 | L101: =L25+L44+L63+L82 -> 31822 | M101: 1.761192885 | N101: =N25+N44+N63+N82 -> 56044.68 | P101: 276451.42
B102: March | D102: 215695.39 | E102: 3.485412507 | F102: 751787.41 | H102: 229969.99 | I102: 0.8072173678 | J102: 185635.77 | L102: 29213 | M102: 1.755436963 | N102: 51281.58 | P102: 236917.35
B103: April | D103: 194860.85 | E103: 3.486060643 | F103: 679296.74 | H103: 208431.2 | I103: 0.8092395956 | J103: 168670.78 | L103: 28447 | M103: 1.766010476 | N103: 50237.7 | P103: 218908.48
B104: May | D104: 251827.9 | E104: 3.519606843 | F104: 886335.2 | H104: 259110.9 | I104: 0.8109913168 | J104: 210136.69 | L104: 30816 | M104: 1.778878505 | N104: 54817.92 | P104: 264954.61
B105: June | D105: 275572.54 | E105: 3.515077119 | F105: 968658.73 | H105: 281381.54 | I105: 0.8151270691 | J105: 229361.71 | L105: 33802 | M105: 1.778216674 | N105: 60107.28 | P105: 289468.99
B106: July | D106: 281694.35 | E106: 3.520017423 | F106: 991569.02 | H106: 290821.35 | I106: 0.8146293248 | J106: 236911.6 | L106: 33705 | M106: 1.789954606 | N106: 60330.42 | P106: 297242.02
B107: August | D107: 257195.29 | E107: 3.500195124 | F107: 900233.7 | H107: 263779.29 | I107: 0.8093252128 | J107: 213483.23 | L107: 36663 | M107: 1.740284756 | N107: 63804.06 | P107: 277287.29
B108: September | D108: 235763.66 | E108: 3.512107846 | F108: 828027.4 | H108: 240537.01 | I108: 0.8126776416 | J108: 195479.05 | L108: 31521 | M108: 1.768620919 | N108: 55748.7 | P108: 251227.75
B109: October | D109: 195288.72 | E109: 3.504777593 | F109: 684443.53 | H109: 211871.66 | I109: 0.8205181854 | J109: 173844.55 | L109: 28691 | M109: 1.769695723 | N109: 50774.34 | P109: 224618.89
B110: November | D110: 218846.87 | E110: 3.50671618 | F110: 767433.86 | H110: 227626.87 | I110: 0.813141612 | J110: 185092.88 | L110: 30008 | M110: 1.766988803 | N110: 53023.8 | P110: 238116.68
B111: December | D111: 220922.48 | E111: 3.503172244 | F111: 773929.5 | H111: 228818.48 | I111: 0.8127879794 | J111: 185980.91 | L111: 31220 | M111: 1.762204997 | N111: 55016.04 | P111: 240996.95
B113: Total | D113: =SUM(D100:D111) -> 2820866.46 | E113: =IF(D113<>0,F113/D113,0) -> 3.498483477 | F113: =SUM(F100:F111) -> 9868754.7 | H113: =SUM(H100:H111) -> 2948388.23 | I113: =IF(H113<>0,J113/H113,0) -> 0.8141827713 | J113: =SUM(J100:J111) -> 2400526.9 | L113: =SUM(L100:L111) -> 378290 | M113: =IF(L113<>0,N113/L113,0) -> 1.766214809 | N113: =SUM(N100:N111) -> 668141.4 | P113: =SUM(P100:P111) -> 3068668.3
N115: Low Voltage Switchgear Credit (if applicable) | P115: ='5. UTRs and Sub-Transmission'!E95 -> 0
N117: Total including deduction for Low Voltage Switchgear Credit | P117: =P113+P115 -> 3068668.3

Sheet 7. Current Wholesale
B13: The purpose of this sheet is to calculate the expected billing when current 2013 Uniform Transmission Rates are applied against historical 2012 transmission units.
B20: IESO | D20: Network | H20: Line Connection | L20: Transformation Connection | P20: Total Line
B22: Month | D22: Units Billed | E22: Rate | F22: Amount | H22: Units Billed | I22: Rate | J22: Amount | L22: Units Billed | M22: Rate | N22: Amount | P22: Amount
B24: January | D24: ='6. Historical Wholesale'!D24 -> 214060 | E24: ='5. UTRs and Sub-Transmission'!G22 -> 3.63 | F24: =D24*E24 -> 777037.8 | H24: ='6. Historical Wholesale'!H24 -> 219713 | I24: ='5. UTRs and Sub-Transmission'!G24 -> 0.75 | J24: =H24*I24 -> 164784.75 | L24: ='6. Historical Wholesale'!L24 -> 23283 | M24: ='5. UTRs and Sub-Transmission'!G26 -> 1.85 | N24: =L24*M24 -> 43073.55 | P24: =J24+N24 -> 207858.3
B25: February | D25: ='6. Historical Wholesale'!D25 -> 215579 | E25: =E24 -> 3.63 | F25: =D25*E25 -> 782551.77 | H25: ='6. Historical Wholesale'!H25 -> 242208 | I25: =I24 -> 0.75 | J25: =H25*I25 -> 181656 | L25: ='6. Historical Wholesale'!L25 -> 23088 | M25: =M24 -> 1.85 | N25: =L25*M25 -> 42712.8 | P25: 224368.8
B26: March | D26: ='6. Historical Wholesale'!D26 -> 199636 | E26: =E25 -> 3.63 | F26: 724678.68 | H26: ='6. Historical Wholesale'!H26 -> 213637 | I26: =I25 -> 0.75 | J26: 160227.75 | L26: ='6. Historical Wholesale'!L26 -> 20728 | M26: =M25 -> 1.85 | N26: 38346.8 | P26: 198574.55
B27: April | D27: ='6. Historical Wholesale'!D27 -> 180632 | E27: 3.63 | F27: 655694.16 | H27: ='6. Historical Wholesale'!H27 -> 193782 | I27: 0.75 | J27: 145336.5 | L27: ='6. Historical Wholesale'!L27 -> 21020 | M27: 1.85 | N27: 38887 | P27: 184223.5
B28: May | D28: ='6. Historical Wholesale'!D28 -> 237605 | E28: 3.63 | F28: 862506.15 | H28: ='6. Historical Wholesale'!H28 -> 244795 | I28: 0.75 | J28: 183596.25 | L28: ='6. Historical Wholesale'!L28 -> 23872 | M28: 1.85 | N28: 44163.2 | P28: 227759.45
B29: June | D29: ='6. Historical Wholesale'!D29 -> 258715 | E29: 3.63 | F29: 939135.45 | H29: ='6. Historical Wholesale'!H29 -> 264366 | I29: 0.75 | J29: 198274.5 | L29: ='6. Historical Wholesale'!L29 -> 26123 | M29: 1.85 | N29: 48327.55 | P29: 246602.05
B30: July | D30: ='6. Historical Wholesale'!D30 -> 265948 | E30: 3.63 | F30: 965391.24 | H30: ='6. Historical Wholesale'!H30 -> 275005 | I30: 0.75 | J30: 206253.75 | L30: ='6. Historical Wholesale'!L30 -> 27147 | M30: 1.85 | N30: 50221.95 | P30: 256475.7
B31: August | D31: ='6. Historical Wholesale'!D31 -> 237259 | E31: 3.63 | F31: 861250.17 | H31: ='6. Historical Wholesale'!H31 -> 243637 | I31: 0.75 | J31: 182727.75 | L31: ='6. Historical Wholesale'!L31 -> 24471 | M31: 1.85 | N31: 45271.35 | P31: 227999.1
B32: September | D32: ='6. Historical Wholesale'!D32 -> 220554 | E32: 3.63 | F32: 800611.02 | H32: ='6. Historical Wholesale'!H32 -> 224771 | I32: 0.75 | J32: 168578.25 | L32: ='6. Historical Wholesale'!L32 -> 23520 | M32: 1.85 | N32: 43512 | P32: 212090.25
B33: October | D33: ='6. Historical Wholesale'!D33 -> 181037 | E33: 3.63 | F33: 657164.31 | H33: ='6. Historical Wholesale'!H33 -> 195727 | I33: 0.75 | J33: 146795.25 | L33: ='6. Historical Wholesale'!L33 -> 21494 | M33: 1.85 | N33: 39763.9 | P33: 186559.15
B34: November | D34: ='6. Historical Wholesale'!D34 -> 203335 | E34: 3.63 | F34: 738106.05 | H34: ='6. Historical Wholesale'!H34 -> 211996 | I34: 0.75 | J34: 158997 | L34: ='6. Historical Wholesale'!L34 -> 22255 | M34: 1.85 | N34: 41171.75 | P34: 200168.75
B35: December | D35: ='6. Historical Wholesale'!D35 -> 204346 | E35: 3.63 | F35: 741775.98 | H35: ='6. Historical Wholesale'!H35 -> 212060 | I35: 0.75 | J35: 159045 | L35: ='6. Historical Wholesale'!L35 -> 22739 | M35: 1.85 | N35: 42067.15 | P35: 201112.15
B37: Total | D37: =SUM(D24:D35) -> 2618706 | E37: =IF(D37<>0,F37/D37,0) -> 3.63 | F37: =SUM(F24:F35) -> 9505902.78 | H37: =SUM(H24:H35) -> 2741697 | I37: =IF(H37<>0,J37/H37,0) -> 0.75 | J37: =SUM(J24:J35) -> 2056272.75 | L37: =SUM(L24:L35) -> 279740 | M37: =IF(L37<>0,N37/L37,0) -> 1.85 | N37: =SUM(N24:N35) -> 517519 | P37: =SUM(P24:P35) -> 2573791.75
B39: Hydro One | D39: Network | H39: Line Connection | L39: Transformation Connection | P39: Total Line
B41: Month | D41: Units Billed | E41: Rate | F41: Amount | H41: Units Billed | I41: Rate | J41: Amount | L41: Units Billed | M41: Rate | N41: Amount | P41: Amount
B43: January | D43: ='6. Historical Wholesale'!D43 -> 8898 | E43: ='5. UTRs and Sub-Transmission'!G35+'5. UTRs and Sub-Transmission'!G79 -> 3.3265 | F43: =D43*E43 -> 29599.197 | H43: ='6. Historical Wholesale'!H43 -> 9099 | I43: ='5. UTRs and Sub-Transmission'!G37+'5. UTRs and Sub-Transmission'!G81 -> 0.7667 | J43: =H43*I43 -> 6976.2033 | L43: ='6. Historical Wholesale'!L43 -> 9099 | M43: ='5. UTRs and Sub-Transmission'!G39 -> 1.63 | N43: =L43*M43 -> 14831.37 | P43: =J43+N43 -> 21807.5733
B44: February | D44: ='6. Historical Wholesale'!D44 -> 8526 | E44: =E43 -> 3.3265 | F44: =D44*E44 -> 28361.739 | H44: ='6. Historical Wholesale'!H44 -> 8734 | I44: =I43 -> 0.7667 | J44: =H44*I44 -> 6696.3578 | L44: ='6. Historical Wholesale'!L44 -> 8734 | M44: =M43 -> 1.63 | N44: =L44*M44 -> 14236.42 | P44: 20932.7778
B45: March | D45: ='6. Historical Wholesale'!D45 -> 8286 | E45: =E44 -> 3.3265 | F45: 27563.379 | H45: ='6. Historical Wholesale'!H45 -> 8485 | I45: =I44 -> 0.7667 | J45: 6505.4495 | L45: ='6. Historical Wholesale'!L45 -> 8485 | M45: =M44 -> 1.63 | N45: 13830.55 | P45: 20335.9995
B46: April | D46: ='6. Historical Wholesale'!D46 -> 7008 | E46: 3.3265 | F46: 23312.112 | H46: ='6. Historical Wholesale'!H46 -> 7427 | I46: 0.7667 | J46: 5694.2809 | L46: ='6. Historical Wholesale'!L46 -> 7427 | M46: =M45 -> 1.63 | N46: 12106.01 | P46: 17800.2909
B47: May | D47: ='6. Historical Wholesale'!D47 -> 6851 | E47: 3.3265 | F47: 22789.8515 | H47: ='6. Historical Wholesale'!H47 -> 6944 | I47: 0.7667 | J47: 5323.9648 | L47: ='6. Historical Wholesale'!L47 -> 6944 | M47: 1.63 | N47: 11318.72 | P47: 16642.6848
B48: June | D48: ='6. Historical Wholesale'!D48 -> 7521 | E48: 3.3265 | F48: 25018.6065 | H48: ='6. Historical Wholesale'!H48 -> 7679 | I48: 0.7667 | J48: 5887.4893 | L48: ='6. Historical Wholesale'!L48 -> 7679 | M48: 1.63 | N48: 12516.77 | P48: 18404.2593
B49: July | D49: ='6. Historical Wholesale'!D49 -> 6488 | E49: 3.3265 | F49: 21582.332 | H49: ='6. Historical Wholesale'!H49 -> 6558 | I49: 0.7667 | J49: 5028.0186 | L49: ='6. Historical Wholesale'!L49 -> 6558 | M49: 1.63 | N49: 10689.54 | P49: 15717.5586
B50: August | D50: ='6. Historical Wholesale'!D50 -> 11986 | E50: 3.3265 | F50: 39871.429 | H50: ='6. Historical Wholesale'!H50 -> 12192 | I50: 0.7667 | J50: 9347.6064 | L50: ='6. Historical Wholesale'!L50 -> 12192 | M50: 1.63 | N50: 19872.96 | P50: 29220.5664
B51: September | D51: ='6. Historical Wholesale'!D51 -> 7572 | E51: 3.3265 | F51: 25188.258 | H51: ='6. Historical Wholesale'!H51 -> 8001 | I51: 0.7667 | J51: 6134.3667 | L51: ='6. Historical Wholesale'!L51 -> 8001 | M51: 1.63 | N51: 13041.63 | P51: 19175.9967
B52: October | D52: ='6. Historical Wholesale'!D52 -> 6616 | E52: 3.3265 | F52: 22008.124 | H52: ='6. Historical Wholesale'!H52 -> 7197 | I52: 0.7667 | J52: 5517.9399 | L52: ='6. Historical Wholesale'!L52 -> 7197 | M52: 1.63 | N52: 11731.11 | P52: 17249.0499
B53: November | D53: ='6. Historical Wholesale'!D53 -> 7634 | E53: 3.3265 | F53: 25394.501 | H53: ='6. Historical Wholesale'!H53 -> 7753 | I53: 0.7667 | J53: 5944.2251 | L53: ='6. Historical Wholesale'!L53 -> 7753 | M53: 1.63 | N53: 12637.39 | P53: 18581.6151
B54: December | D54: ='6. Historical Wholesale'!D54 -> 8299 | E54: 3.3265 | F54: 27606.6235 | H54: ='6. Historical Wholesale'!H54 -> 8481 | I54: 0.7667 | J54: 6502.3827 | L54: ='6. Historical Wholesale'!L54 -> 8481 | M54: 1.63 | N54: 13824.03 | P54: 20326.4127
B56: Total | D56: =SUM(D43:D54) -> 95685 | E56: =IF(D56<>0,F56/D56,0) -> 3.3265 | F56: =SUM(F43:F54) -> 318296.1525 | H56: =SUM(H43:H54) -> 98550 | I56: =IF(H56<>0,J56/H56,0) -> 0.7667 | J56: =SUM(J43:J54) -> 75558.285 | L56: =SUM(L43:L54) -> 98550 | M56: =IF(L56<>0,N56/L56,0) -> 1.63 | N56: =SUM(N43:N54) -> 160636.5 | P56: =SUM(P43:P54) -> 236194.785
B58: ='6. Historical Wholesale'!B58 -> Add Extra Host Here (I) | D58: Network | H58: Line Connection | L58: Transformation Connection | P58: Total Line
B60: Month | D60: Units Billed | E60: Rate | F60: Amount | H60: Units Billed | I60: Rate | J60: Amount | L60: Units Billed | M60: Rate | N60: Amount | P60: Amount
B62: January | D62: ='6. Historical Wholesale'!D62 -> 3529.68 | E62: ='5. UTRs and Sub-Transmission'!G50 -> 2.8965 | F62: =D62*E62 -> 10223.71812 | H62: ='6. Historical Wholesale'!H62 -> 3529.68 | I62: ='5. UTRs and Sub-Transmission'!G52 -> 0.6356 | J62: =H62*I62 -> 2243.464608 | L62: ='6. Historical Wholesale'!L62 -> 0 | M62: ='5. UTRs and Sub-Transmission'!G54 -> 0 | N62: =L62*M62 -> 0 | P62: =J62+N62 -> 2243.464608
B63: February | D63: ='6. Historical Wholesale'!D63 -> 3228.29 | E63: =E62 -> 2.8965 | F63: =D63*E63 -> 9350.741985 | H63: ='6. Historical Wholesale'!H63 -> 3378.82 | I63: =I62 -> 0.6356 | J63: =H63*I63 -> 2147.577992 | L63: ='6. Historical Wholesale'!L63 -> 0 | M63: =M62 -> 0 | N63: =L63*M63 -> 0 | P63: 2147.577992
B64: March | D64: ='6. Historical Wholesale'!D64 -> 3153.02 | E64: =E63 -> 2.8965 | F64: 9132.72243 | H64: ='6. Historical Wholesale'!H64 -> 3227.62 | I64: =I63 -> 0.6356 | J64: 2051.475272 | L64: ='6. Historical Wholesale'!L64 -> 0 | M64: =M63 -> 0 | N64: 0 | P64: 2051.475272
B65: April | D65: ='6. Historical Wholesale'!D65 -> 2626.51 | E65: 2.8965 | F65: 7607.686215 | H65: ='6. Historical Wholesale'!H65 -> 2627.86 | I65: 0.6356 | J65: 1670.267816 | L65: ='6. Historical Wholesale'!L65 -> 0 | M65: =M64 -> 0 | N65: 0 | P65: 1670.267816
B66: May | D66: ='6. Historical Wholesale'!D66 -> 2937.98 | E66: 2.8965 | F66: 8509.85907 | H66: ='6. Historical Wholesale'!H66 -> 2937.98 | I66: 0.6356 | J66: 1867.380088 | L66: ='6. Historical Wholesale'!L66 -> 0 | M66: 0 | N66: 0 | P66: 1867.380088
B67: June | D67: ='6. Historical Wholesale'!D67 -> 3285.07 | E67: 2.8965 | F67: 9515.205255 | H67: ='6. Historical Wholesale'!H67 -> 3285.07 | I67: 0.6356 | J67: 2087.990492 | L67: ='6. Historical Wholesale'!L67 -> 0 | M67: 0 | N67: 0 | P67: 2087.990492
B68: July | D68: ='6. Historical Wholesale'!D68 -> 3382.85 | E68: 2.8965 | F68: 9798.425025 | H68: ='6. Historical Wholesale'!H68 -> 3382.85 | I68: 0.6356 | J68: 2150.13946 | L68: ='6. Historical Wholesale'!L68 -> 0 | M68: 0 | N68: 0 | P68: 2150.13946
B69: August | D69: ='6. Historical Wholesale'!D69 -> 3038.11 | E69: 2.8965 | F69: 8799.885615 | H69: ='6. Historical Wholesale'!H69 -> 3038.11 | I69: 0.6356 | J69: 1931.022716 | L69: ='6. Historical Wholesale'!L69 -> 0 | M69: 0 | N69: 0 | P69: 1931.022716
B70: September | D70: ='6. Historical Wholesale'!D70 -> 2819.71 | E70: 2.8965 | F70: 8167.290015 | H70: ='6. Historical Wholesale'!H70 -> 2947.06 | I70: 0.6356 | J70: 1873.151336 | L70: ='6. Historical Wholesale'!L70 -> 0 | M70: 0 | N70: 0 | P70: 1873.151336
B71: October | D71: ='6. Historical Wholesale'!D71 -> 2924.21 | E71: 2.8965 | F71: 8469.974265 | H71: ='6. Historical Wholesale'!H71 -> 2924.21 | I71: 0.6356 | J71: 1858.627876 | L71: ='6. Historical Wholesale'!L71 -> 0 | M71: 0 | N71: 0 | P71: 1858.627876
B72: November | D72: ='6. Historical Wholesale'!D72 -> 3138.58 | E72: 2.8965 | F72: 9090.89697 | H72: ='6. Historical Wholesale'!H72 -> 3138.58 | I72: 0.6356 | J72: 1994.881448 | L72: ='6. Historical Wholesale'!L72 -> 0 | M72: 0 | N72: 0 | P72: 1994.881448
B73: December | D73: ='6. Historical Wholesale'!D73 -> 3449.04 | E73: 2.8965 | F73: 9990.14436 | H73: ='6. Historical Wholesale'!H73 -> 3449.04 | I73: 0.6356 | J73: 2192.209824 | L73: ='6. Historical Wholesale'!L73 -> 0 | M73: 0 | N73: 0 | P73: 2192.209824
B75: Total | D75: =SUM(D62:D73) -> 37513.05 | E75: =IF(D75<>0,F75/D75,0) -> 2.8965 | F75: =SUM(F62:F73) -> 108656.5493 | H75: =SUM(H62:H73) -> 37866.88 | I75: =IF(H75<>0,J75/H75,0) -> 0.6356 | J75: =SUM(J62:J73) -> 24068.18893 | L75: =SUM(L62:L73) -> 0 | M75: =IF(L75<>0,N75/L75,0) -> 0 | N75: =SUM(N62:N73) -> 0 | P75: =SUM(P62:P73) -> 24068.18893
B77: ='6. Historical Wholesale'!B77 -> Add Extra Host Here (II) | D77: Network | H77: Line Connection | L77: Transformation Connection | P77: Total Line
B79: Month | D79: Units Billed | E79: Rate | F79: Amount | H79: Units Billed | I79: Rate | J79: Amount | L79: Units Billed | M79: Rate | N79: Amount | P79: Amount
B81: January | D81: ='6. Historical Wholesale'!D81 -> 7420.2 | E81: ='5. UTRs and Sub-Transmission'!G65 -> 2.5279 | F81: =D81*E81 -> 18757.52358 | H81: ='6. Historical Wholesale'!H81 -> 7420.2 | I81: ='5. UTRs and Sub-Transmission'!G67 -> 1.6586 | J81: =H81*I81 -> 12307.14372 | L81: ='6. Historical Wholesale'!L81 -> 0 | M81: ='5. UTRs and Sub-Transmission'!G69 -> 0 | N81: =L81*M81 -> 0 | P81: =J81+N81 -> 12307.14372
B82: February | D82: ='6. Historical Wholesale'!D82 -> 11957.24 | E82: =E81 -> 2.5279 | F82: =D82*E82 -> 30226.707 | H82: ='6. Historical Wholesale'!H82 -> 11957.24 | I82: =I81 -> 1.6586 | J82: =H82*I82 -> 19832.27826 | L82: ='6. Historical Wholesale'!L82 -> 0 | M82: =M81 -> 0 | N82: =L82*M82 -> 0 | P82: 19832.27826
B83: March | D83: ='6. Historical Wholesale'!D83 -> 4620.37 | E83: =E82 -> 2.5279 | F83: 11679.83332 | H83: ='6. Historical Wholesale'!H83 -> 4620.37 | I83: =I82 -> 1.6586 | J83: 7663.345682 | L83: ='6. Historical Wholesale'!L83 -> 0 | M83: =M82 -> 0 | N83: 0 | P83: 7663.345682
B84: April | D84: ='6. Historical Wholesale'!D84 -> 4594.34 | E84: 2.5279 | F84: 11614.03209 | H84: ='6. Historical Wholesale'!H84 -> 4594.34 | I84: 1.6586 | J84: 7620.172324 | L84: ='6. Historical Wholesale'!L84 -> 0 | M84: =M83 -> 0 | N84: 0 | P84: 7620.172324
B85: May | D85: ='6. Historical Wholesale'!D85 -> 4433.92 | E85: 2.5279 | F85: 11208.50637 | H85: ='6. Historical Wholesale'!H85 -> 4433.92 | I85: 1.6586 | J85: 7354.099712 | L85: ='6. Historical Wholesale'!L85 -> 0 | M85: 0 | N85: 0 | P85: 7354.099712
B86: June | D86: ='6. Historical Wholesale'!D86 -> 6051.47 | E86: 2.5279 | F86: 15297.51101 | H86: ='6. Historical Wholesale'!H86 -> 6051.47 | I86: 1.6586 | J86: 10036.96814 | L86: ='6. Historical Wholesale'!L86 -> 0 | M86: 0 | N86: 0 | P86: 10036.96814
B87: July | D87: ='6. Historical Wholesale'!D87 -> 5875.5 | E87: 2.5279 | F87: 14852.67645 | H87: ='6. Historical Wholesale'!H87 -> 5875.5 | I87: 1.6586 | J87: 9745.1043 | L87: ='6. Historical Wholesale'!L87 -> 0 | M87: 0 | N87: 0 | P87: 9745.1043
B88: August | D88: ='6. Historical Wholesale'!D88 -> 4912.18 | E88: 2.5279 | F88: 12417.49982 | H88: ='6. Historical Wholesale'!H88 -> 4912.18 | I88: 1.6586 | J88: 8147.341748 | L88: ='6. Historical Wholesale'!L88 -> 0 | M88: 0 | N88: 0 | P88: 8147.341748
B89: September | D89: ='6. Historical Wholesale'!D89 -> 4817.95 | E89: 2.5279 | F89: 12179.2958 | H89: ='6. Historical Wholesale'!H89 -> 4817.95 | I89: 1.6586 | J89: 7991.05187 | L89: ='6. Historical Wholesale'!L89 -> 0 | M89: 0 | N89: 0 | P89: 7991.05187
B90: October | D90: ='6. Historical Wholesale'!D90 -> 4711.51 | E90: 2.5279 | F90: 11910.22613 | H90: ='6. Historical Wholesale'!H90 -> 6023.45 | I90: 1.6586 | J90: 9990.49417 | L90: ='6. Historical Wholesale'!L90 -> 0 | M90: 0 | N90: 0 | P90: 9990.49417
B91: November | D91: ='6. Historical Wholesale'!D91 -> 4739.29 | E91: 2.5279 | F91: 11980.45119 | H91: ='6. Historical Wholesale'!H91 -> 4739.29 | I91: 1.6586 | J91: 7860.586394 | L91: ='6. Historical Wholesale'!L91 -> 0 | M91: 0 | N91: 0 | P91: 7860.586394
B92: December | D92: ='6. Historical Wholesale'!D92 -> 4828.44 | E92: 2.5279 | F92: 12205.81348 | H92: ='6. Historical Wholesale'!H92 -> 4828.44 | I92: 1.6586 | J92: 8008.450584 | L92: ='6. Historical Wholesale'!L92 -> 0 | M92: 0 | N92: 0 | P92: 8008.450584
B94: Total | D94: =SUM(D81:D92) -> 68962.41 | E94: =IF(D94<>0,F94/D94,0) -> 2.5279 | F94: =SUM(F81:F92) -> 174330.0762 | H94: =SUM(H81:H92) -> 70274.35 | I94: =IF(H94<>0,J94/H94,0) -> 1.6586 | J94: =SUM(J81:J92) -> 116557.0369 | L94: =SUM(L81:L92) -> 0 | M94: =IF(L94<>0,N94/L94,0) -> 0 | N94: =SUM(N81:N92) -> 0 | P94: =SUM(P81:P92) -> 116557.0369
B96: Total | D96: Network | H96: Line Connection | L96: Transformation Connection | P96: Total Line
B98: Month | D98: Units Billed | E98: Rate | F98: Amount | H98: Units Billed | I98: Rate | J98: Amount | L98: Units Billed | M98: Rate | N98: Amount | P98: Amount
B100: January | D100: =D24+D43+D62+D81 -> 233907.88 | E100: =IF(D100<>0,F100/D100,0) -> 3.572424489 | F100: =F24+F43+F62+F81 -> 835618.2387 | H100: =H24+H43+H62+H81 -> 239761.88 | I100: =IF(H100<>0,J100/H100,0) -> 0.7770691556 | J100: =J24+J43+J62+J81 -> 186311.5616 | L100: =L24+L43+L62+L81 -> 32382 | M100: =IF(L100<>0,N100/L100,0) -> 1.788182324 | N100: =N24+N43+N62+N81 -> 57904.92 | P100: =J100+N100 -> 244216.4816
B101: February | D101: =D25+D44+D63+D82 -> 239290.53 | E101: 3.554219041 | F101: =F25+F44+F63+F82 -> 850490.958 | H101: =H25+H44+H63+H82 -> 266278.06 | I101: 0.7898968997 | J101: =J25+J44+J63+J82 -> 210332.2141 | L101: =L25+L44+L63+L82 -> 31822 | M101: 1.789617874 | N101: =N25+N44+N63+N82 -> 56949.22 | P101: 267281.4341
B102: March | D102: 215695.39 | E102: 3.584010835 | F102: 773054.6148 | H102: 229969.99 | I102: 0.7672654178 | J102: 176448.0205 | L102: 29213 | M102: 1.786100366 | N102: 52177.35 | P102: 228625.3705
B103: April | D103: 194860.85 | E103: 3.583213305 | F103: 698227.9903 | H103: 208431.2 | I103: 0.7691805307 | J103: 160321.221 | L103: 28447 | M103: 1.792561957 | N103: 50993.01 | P103: 211314.231
B104: May | D104: 251827.9 | E104: 3.593781177 | F104: 905014.3669 | H104: 259110.9 | I104: 0.7646984152 | J104: 198141.6946 | L104: 30816 | M104: 1.800425753 | N104: 55481.92 | P104: 253623.6146
B105: June | D105: 275572.54 | E105: 3.588771119 | F105: 988966.7728 | H105: 281381.54 | I105: 0.7686607584 | J105: 216286.9479 | L105: 33802 | M105: 1.800021301 | N105: 60844.32 | P105: 277131.2679
B106: July | D106: 281694.35 | E106: 3.591213929 | F106: 1011624.673 | H106: 290821.35 | I106: 0.7674024358 | J106: 223177.0124 | L106: 33705 | M106: 1.807194482 | N106: 60911.49 | P106: 284088.5024
B107: August | D107: 257195.29 | E107: 3.586142594 | F107: 922338.9844 | H107: 263779.29 | I107: 0.7663744976 | J107: 202153.7209 | L107: 36663 | M107: 1.776840684 | N107: 65144.31 | P107: 267298.0309
B108: September | D108: 235763.66 | E108: 3.588957958 | F108: 846145.8638 | H108: 240537.01 | I108: 0.7673530984 | J108: 184576.8199 | L108: 31521 | M108: 1.794157229 | N108: 56553.63 | P108: 241130.4499
B109: October | D109: 195288.72 | E109: 3.582145627 | F109: 699552.6344 | H109: 211871.66 | I109: 0.7748195863 | J109: 164162.3119 | L109: 28691 | M109: 1.794814053 | N109: 51495.01 | P109: 215657.3219
B110: November | D110: 218846.87 | E110: 3.585026823 | F110: 784571.8992 | H110: 227626.87 | I110: 0.7679088718 | J110: 174796.6929 | L110: 30008 | M110: 1.793159824 | N110: 53809.14 | P110: 228605.8329
B111: December | D111: 220922.48 | E111: 3.583060272 | F111: 791578.5613 | H111: 228818.48 | I111: 0.7680675228 | J111: 175748.0431 | L111: 31220 | M111: 1.790236387 | N111: 55891.18 | P111: 231639.2231
B113: Total | D113: =SUM(D100:D111) -> 2820866.46 | E113: =IF(D113<>0,F113/D113,0) -> 3.583007456 | F113: =SUM(F100:F111) -> 10107185.56 | H113: =SUM(H100:H111) -> 2948388.23 | I113: =IF(H113<>0,J113/H113,0) -> 0.7707452627 | J113: =SUM(J100:J111) -> 2272456.261 | L113: =SUM(L100:L111) -> 378290 | M113: =IF(L113<>0,N113/L113,0) -> 1.792686828 | N113: =SUM(N100:N111) -> 678155.5 | P113: =SUM(P100:P111) -> 2950611.761
N115: Low Voltage Switchgear Credit (if applicable) | P115: ='5. UTRs and Sub-Transmission'!G95 -> 0
N117: Total including deduction for Low Voltage Switchgear Credit | P117: =P113+P115 -> 2950611.761

Sheet 8. Forecast Wholesale
B13: The purpose of this sheet is to calculate the expected billing when forecasted 2014 Uniform Transmission Rates are applied against historical 2012 transmission units.
B20: IESO | D20: Network | H20: Line Connection | L20: Transformation Connection | P20: Total Line
B22: Month | D22: Units Billed | E22: Rate | F22: Amount | H22: Units Billed | I22: Rate | J22: Amount | L22: Units Billed | M22: Rate | N22: Amount | P22: Amount
B24: January | D24: ='6. Historical Wholesale'!D24 -> 214060 | E24: ='5. UTRs and Sub-Transmission'!I22 -> 3.63 | F24: =D24*E24 -> 777037.8 | H24: ='6. Historical Wholesale'!H24 -> 219713 | I24: ='5. UTRs and Sub-Transmission'!I24 -> 0.75 | J24: =H24*I24 -> 164784.75 | L24: ='6. Historical Wholesale'!L24 -> 23283 | M24: ='5. UTRs and Sub-Transmission'!I26 -> 1.85 | N24: =L24*M24 -> 43073.55 | P24: =J24+N24 -> 207858.3
B25: February | D25: ='6. Historical Wholesale'!D25 -> 215579 | E25: =E24 -> 3.63 | F25: 782551.77 | H25: ='6. Historical Wholesale'!H25 -> 242208 | I25: =I24 -> 0.75 | J25: 181656 | L25: ='6. Historical Wholesale'!L25 -> 23088 | M25: =M24 -> 1.85 | N25: 42712.8 | P25: 224368.8
B26: March | D26: ='6. Historical Wholesale'!D26 -> 199636 | E26: 3.63 | F26: 724678.68 | H26: ='6. Historical Wholesale'!H26 -> 213637 | I26: 0.75 | J26: 160227.75 | L26: ='6. Historical Wholesale'!L26 -> 20728 | M26: 1.85 | N26: 38346.8 | P26: 198574.55
B27: April | D27: ='6. Historical Wholesale'!D27 -> 180632 | E27: 3.63 | F27: 655694.16 | H27: ='6. Historical Wholesale'!H27 -> 193782 | I27: 0.75 | J27: 145336.5 | L27: ='6. Historical Wholesale'!L27 -> 21020 | M27: 1.85 | N27: 38887 | P27: 184223.5
B28: May | D28: ='6. Historical Wholesale'!D28 -> 237605 | E28: 3.63 | F28: 862506.15 | H28: ='6. Historical Wholesale'!H28 -> 244795 | I28: 0.75 | J28: 183596.25 | L28: ='6. Historical Wholesale'!L28 -> 23872 | M28: 1.85 | N28: 44163.2 | P28: 227759.45
B29: June | D29: ='6. Historical Wholesale'!D29 -> 258715 | E29: 3.63 | F29: 939135.45 | H29: ='6. Historical Wholesale'!H29 -> 264366 | I29: 0.75 | J29: 198274.5 | L29: ='6. Historical Wholesale'!L29 -> 26123 | M29: 1.85 | N29: 48327.55 | P29: 246602.05
B30: July | D30: ='6. Historical Wholesale'!D30 -> 265948 | E30: 3.63 | F30: 965391.24 | H30: ='6. Historical Wholesale'!H30 -> 275005 | I30: 0.75 | J30: 206253.75 | L30: ='6. Historical Wholesale'!L30 -> 27147 | M30: 1.85 | N30: 50221.95 | P30: 256475.7
B31: August | D31: ='6. Historical Wholesale'!D31 -> 237259 | E31: 3.63 | F31: 861250.17 | H31: ='6. Historical Wholesale'!H31 -> 243637 | I31: 0.75 | J31: 182727.75 | L31: ='6. Historical Wholesale'!L31 -> 24471 | M31: 1.85 | N31: 45271.35 | P31: 227999.1
B32: September | D32: ='6. Historical Wholesale'!D32 -> 220554 | E32: 3.63 | F32: 800611.02 | H32: ='6. Historical Wholesale'!H32 -> 224771 | I32: 0.75 | J32: 168578.25 | L32: ='6. Historical Wholesale'!L32 -> 23520 | M32: 1.85 | N32: 43512 | P32: 212090.25
B33: October | D33: ='6. Historical Wholesale'!D33 -> 181037 | E33: 3.63 | F33: 657164.31 | H33: ='6. Historical Wholesale'!H33 -> 195727 | I33: 0.75 | J33: 146795.25 | L33: ='6. Historical Wholesale'!L33 -> 21494 | M33: 1.85 | N33: 39763.9 | P33: 186559.15
B34: November | D34: ='6. Historical Wholesale'!D34 -> 203335 | E34: 3.63 | F34: 738106.05 | H34: ='6. Historical Wholesale'!H34 -> 211996 | I34: 0.75 | J34: 158997 | L34: ='6. Historical Wholesale'!L34 -> 22255 | M34: 1.85 | N34: 41171.75 | P34: 200168.75
B35: December | D35: ='6. Historical Wholesale'!D35 -> 204346 | E35: 3.63 | F35: 741775.98 | H35: ='6. Historical Wholesale'!H35 -> 212060 | I35: 0.75 | J35: 159045 | L35: ='6. Historical Wholesale'!L35 -> 22739 | M35: 1.85 | N35: 42067.15 | P35: 201112.15
B37: Total | D37: =SUM(D24:D35) -> 2618706 | E37: =IF(D37<>0,F37/D37,0) -> 3.63 | F37: =SUM(F24:F35) -> 9505902.78 | H37: =SUM(H24:H35) -> 2741697 | I37: =IF(H37<>0,J37/H37,0) -> 0.75 | J37: =SUM(J24:J35) -> 2056272.75 | L37: =SUM(L24:L35) -> 279740 | M37: =IF(L37<>0,N37/L37,0) -> 1.85 | N37: =SUM(N24:N35) -> 517519 | P37: =SUM(P24:P35) -> 2573791.75
B39: Hydro One | D39: Network | H39: Line Connection | L39: Transformation Connection | P39: Total Line
B41: Month | D41: Units Billed | E41: Rate | F41: Amount | H41: Units Billed | I41: Rate | J41: Amount | L41: Units Billed | M41: Rate | N41: Amount | P41: Amount
B43: January | D43: ='6. Historical Wholesale'!D43 -> 8898 | E43: ='5. UTRs and Sub-Transmission'!I35+'5. UTRs and Sub-Transmission'!I79 -> 3.3265 | F43: =D43*E43 -> 29599.197 | H43: ='6. Historical Wholesale'!H43 -> 9099 | I43: ='5. UTRs and Sub-Transmission'!I37+'5. UTRs and Sub-Transmission'!I81 -> 0.7667 | J43: =H43*I43 -> 6976.2033 | L43: ='6. Historical Wholesale'!L43 -> 9099 | M43: ='5. UTRs and Sub-Transmission'!I39 -> 1.63 | N43: =L43*M43 -> 14831.37 | P43: =J43+N43 -> 21807.5733
B44: February | D44: ='6. Historical Wholesale'!D44 -> 8526 | E44: =E43 -> 3.3265 | F44: 28361.739 | H44: ='6. Historical Wholesale'!H44 -> 8734 | I44: =I43 -> 0.7667 | J44: 6696.3578 | L44: ='6. Historical Wholesale'!L44 -> 8734 | M44: =M43 -> 1.63 | N44: 14236.42 | P44: 20932.7778
B45: March | D45: ='6. Historical Wholesale'!D45 -> 8286 | E45: 3.3265 | F45: 27563.379 | H45: ='6. Historical Wholesale'!H45 -> 8485 | I45: 0.7667 | J45: 6505.4495 | L45: ='6. Historical Wholesale'!L45 -> 8485 | M45: 1.63 | N45: 13830.55 | P45: 20335.9995
B46: April | D46: ='6. Historical Wholesale'!D46 -> 7008 | E46: 3.3265 | F46: 23312.112 | H46: ='6. Historical Wholesale'!H46 -> 7427 | I46: 0.7667 | J46: 5694.2809 | L46: ='6. Historical Wholesale'!L46 -> 7427 | M46: 1.63 | N46: 12106.01 | P46: 17800.2909
B47: May | D47: ='6. Historical Wholesale'!D47 -> 6851 | E47: 3.3265 | F47: 22789.8515 | H47: ='6. Historical Wholesale'!H47 -> 6944 | I47: 0.7667 | J47: 5323.9648 | L47: ='6. Historical Wholesale'!L47 -> 6944 | M47: 1.63 | N47: 11318.72 | P47: 16642.6848
B48: June | D48: ='6. Historical Wholesale'!D48 -> 7521 | E48: 3.3265 | F48: 25018.6065 | H48: ='6. Historical Wholesale'!H48 -> 7679 | I48: 0.7667 | J48: 5887.4893 | L48: ='6. Historical Wholesale'!L48 -> 7679 | M48: 1.63 | N48: 12516.77 | P48: 18404.2593
B49: July | D49: ='6. Historical Wholesale'!D49 -> 6488 | E49: 3.3265 | F49: 21582.332 | H49: ='6. Historical Wholesale'!H49 -> 6558 | I49: 0.7667 | J49: 5028.0186 | L49: ='6. Historical Wholesale'!L49 -> 6558 | M49: 1.63 | N49: 10689.54 | P49: 15717.5586
B50: August | D50: ='6. Historical Wholesale'!D50 -> 11986 | E50: 3.3265 | F50: 39871.429 | H50: ='6. Historical Wholesale'!H50 -> 12192 | I50: 0.7667 | J50: 9347.6064 | L50: ='6. Historical Wholesale'!L50 -> 12192 | M50: 1.63 | N50: 19872.96 | P50: 29220.5664
B51: September | D51: ='6. Historical Wholesale'!D51 -> 7572 | E51: 3.3265 | F51: 25188.258 | H51: ='6. Historical Wholesale'!H51 -> 8001 | I51: 0.7667 | J51: 6134.3667 | L51: ='6. Historical Wholesale'!L51 -> 8001 | M51: 1.63 | N51: 13041.63 | P51: 19175.9967
B52: October | D52: ='6. Historical Wholesale'!D52 -> 6616 | E52: 3.3265 | F52: 22008.124 | H52: ='6. Historical Wholesale'!H52 -> 7197 | I52: 0.7667 | J52: 5517.9399 | L52: ='6. Historical Wholesale'!L52 -> 7197 | M52: 1.63 | N52: 11731.11 | P52: 17249.0499
B53: November | D53: ='6. Historical Wholesale'!D53 -> 7634 | E53: 3.3265 | F53: 25394.501 | H53: ='6. Historical Wholesale'!H53 -> 7753 | I53: 0.7667 | J53: 5944.2251 | L53: ='6. Historical Wholesale'!L53 -> 7753 | M53: 1.63 | N53: 12637.39 | P53: 18581.6151
B54: December | D54: ='6. Historical Wholesale'!D54 -> 8299 | E54: 3.3265 | F54: 27606.6235 | H54: ='6. Historical Wholesale'!H54 -> 8481 | I54: 0.7667 | J54: 6502.3827 | L54: ='6. Historical Wholesale'!L54 -> 8481 | M54: 1.63 | N54: 13824.03 | P54: 20326.4127
B56: Total | D56: =SUM(D43:D54) -> 95685 | E56: =IF(D56<>0,F56/D56,0) -> 3.3265 | F56: =SUM(F43:F54) -> 318296.1525 | H56: =SUM(H43:H54) -> 98550 | I56: =IF(H56<>0,J56/H56,0) -> 0.7667 | J56: =SUM(J43:J54) -> 75558.285 | L56: =SUM(L43:L54) -> 98550 | M56: =IF(L56<>0,N56/L56,0) -> 1.63 | N56: =SUM(N43:N54) -> 160636.5 | P56: =SUM(P43:P54) -> 236194.785
B58: ='6. Historical Wholesale'!B58 -> Add Extra Host Here (I) | D58: Network | H58: Line Connection | L58: Transformation Connection | P58: Total Line
B60: Month | D60: Units Billed | E60: Rate | F60: Amount | H60: Units Billed | I60: Rate | J60: Amount | L60: Units Billed | M60: Rate | N60: Amount | P60: Amount
B62: January | D62: ='6. Historical Wholesale'!D62 -> 3529.68 | E62: ='5. UTRs and Sub-Transmission'!I50 -> 2.8965 | F62: =D62*E62 -> 10223.71812 | H62: ='6. Historical Wholesale'!H62 -> 3529.68 | I62: ='5. UTRs and Sub-Transmission'!I52 -> 0.6356 | J62: =H62*I62 -> 2243.464608 | L62: ='6. Historical Wholesale'!L62 -> 0 | M62: ='5. UTRs and Sub-Transmission'!I54 -> 0 | N62: =L62*M62 -> 0 | P62: =J62+N62 -> 2243.464608
B63: February | D63: ='6. Historical Wholesale'!D63 -> 3228.29 | E63: =E62 -> 2.8965 | F63: 9350.741985 | H63: ='6. Historical Wholesale'!H63 -> 3378.82 | I63: =I62 -> 0.6356 | J63: 2147.577992 | L63: ='6. Historical Wholesale'!L63 -> 0 | M63: =M62 -> 0 | N63: 0 | P63: 2147.577992
B64: March | D64: ='6. Historical Wholesale'!D64 -> 3153.02 | E64: 2.8965 | F64: 9132.72243 | H64: ='6. Historical Wholesale'!H64 -> 3227.62 | I64: 0.6356 | J64: 2051.475272 | L64: ='6. Historical Wholesale'!L64 -> 0 | M64: 0 | N64: 0 | P64: 2051.475272
B65: April | D65: ='6. Historical Wholesale'!D65 -> 2626.51 | E65: 2.8965 | F65: 7607.686215 | H65: ='6. Historical Wholesale'!H65 -> 2627.86 | I65: 0.6356 | J65: 1670.267816 | L65: ='6. Historical Wholesale'!L65 -> 0 | M65: 0 | N65: 0 | P65: 1670.267816
B66: May | D66: ='6. Historical Wholesale'!D66 -> 2937.98 | E66: 2.8965 | F66: 8509.85907 | H66: ='6. Historical Wholesale'!H66 -> 2937.98 | I66: 0.6356 | J66: 1867.380088 | L66: ='6. Historical Wholesale'!L66 -> 0 | M66: 0 | N66: 0 | P66: 1867.380088
B67: June | D67: ='6. Historical Wholesale'!D67 -> 3285.07 | E67: 2.8965 | F67: 9515.205255 | H67: ='6. Historical Wholesale'!H67 -> 3285.07 | I67: 0.6356 | J67: 2087.990492 | L67: ='6. Historical Wholesale'!L67 -> 0 | M67: 0 | N67: 0 | P67: 2087.990492
B68: July | D68: ='6. Historical Wholesale'!D68 -> 3382.85 | E68: 2.8965 | F68: 9798.425025 | H68: ='6. Historical Wholesale'!H68 -> 3382.85 | I68: 0.6356 | J68: 2150.13946 | L68: ='6. Historical Wholesale'!L68 -> 0 | M68: 0 | N68: 0 | P68: 2150.13946
B69: August | D69: ='6. Historical Wholesale'!D69 -> 3038.11 | E69: 2.8965 | F69: 8799.885615 | H69: ='6. Historical Wholesale'!H69 -> 3038.11 | I69: 0.6356 | J69: 1931.022716 | L69: ='6. Historical Wholesale'!L69 -> 0 | M69: 0 | N69: 0 | P69: 1931.022716
B70: September | D70: ='6. Historical Wholesale'!D70 -> 2819.71 | E70: 2.8965 | F70: 8167.290015 | H70: ='6. Historical Wholesale'!H70 -> 2947.06 | I70: 0.6356 | J70: 1873.151336 | L70: ='6. Historical Wholesale'!L70 -> 0 | M70: 0 | N70: 0 | P70: 1873.151336
B71: October | D71: ='6. Historical Wholesale'!D71 -> 2924.21 | E71: 2.8965 | F71: 8469.974265 | H71: ='6. Historical Wholesale'!H71 -> 2924.21 | I71: 0.6356 | J71: 1858.627876 | L71: ='6. Historical Wholesale'!L71 -> 0 | M71: 0 | N71: 0 | P71: 1858.627876
B72: November | D72: ='6. Historical Wholesale'!D72 -> 3138.58 | E72: 2.8965 | F72: 9090.89697 | H72: ='6. Historical Wholesale'!H72 -> 3138.58 | I72: 0.6356 | J72: 1994.881448 | L72: ='6. Historical Wholesale'!L72 -> 0 | M72: 0 | N72: 0 | P72: 1994.881448
B73: December | D73: ='6. Historical Wholesale'!D73 -> 3449.04 | E73: 2.8965 | F73: 9990.14436 | H73: ='6. Historical Wholesale'!H73 -> 3449.04 | I73: 0.6356 | J73: 2192.209824 | L73: ='6. Historical Wholesale'!L73 -> 0 | M73: 0 | N73: 0 | P73: 2192.209824
B75: Total | D75: =SUM(D62:D73) -> 37513.05 | E75: =IF(D75<>0,F75/D75,0) -> 2.8965 | F75: =SUM(F62:F73) -> 108656.5493 | H75: =SUM(H62:H73) -> 37866.88 | I75: =IF(H75<>0,J75/H75,0) -> 0.6356 | J75: =SUM(J62:J73) -> 24068.18893 | L75: =SUM(L62:L73) -> 0 | M75: =IF(L75<>0,N75/L75,0) -> 0 | N75: =SUM(N62:N73) -> 0 | P75: =SUM(P62:P73) -> 24068.18893
B77: ='6. Historical Wholesale'!B77 -> Add Extra Host Here (II) | D77: Network | H77: Line Connection | L77: Transformation Connection | P77: Total Line
B79: Month | D79: Units Billed | E79: Rate | F79: Amount | H79: Units Billed | I79: Rate | J79: Amount | L79: Units Billed | M79: Rate | N79: Amount | P79: Amount
B81: January | D81: ='6. Historical Wholesale'!D81 -> 7420.2 | E81: ='5. UTRs and Sub-Transmission'!I65 -> 2.5279 | F81: =D81*E81 -> 18757.52358 | H81: ='6. Historical Wholesale'!H81 -> 7420.2 | I81: ='5. UTRs and Sub-Transmission'!I67 -> 1.6586 | J81: =H81*I81 -> 12307.14372 | L81: ='6. Historical Wholesale'!L81 -> 0 | M81: ='5. UTRs and Sub-Transmission'!I69 -> 0 | N81: =L81*M81 -> 0 | P81: =J81+N81 -> 12307.14372
B82: February | D82: ='6. Historical Wholesale'!D82 -> 11957.24 | E82: =E81 -> 2.5279 | F82: 30226.707 | H82: ='6. Historical Wholesale'!H82 -> 11957.24 | I82: =I81 -> 1.6586 | J82: 19832.27826 | L82: ='6. Historical Wholesale'!L82 -> 0 | M82: =M81 -> 0 | N82: 0 | P82: 19832.27826
B83: March | D83: ='6. Historical Wholesale'!D83 -> 4620.37 | E83: 2.5279 | F83: 11679.83332 | H83: ='6. Historical Wholesale'!H83 -> 4620.37 | I83: 1.6586 | J83: 7663.345682 | L83: ='6. Historical Wholesale'!L83 -> 0 | M83: 0 | N83: 0 | P83: 7663.345682
B84: April | D84: ='6. Historical Wholesale'!D84 -> 4594.34 | E84: 2.5279 | F84: 11614.03209 | H84: ='6. Historical Wholesale'!H84 -> 4594.34 | I84: 1.6586 | J84: 7620.172324 | L84: ='6. Historical Wholesale'!L84 -> 0 | M84: 0 | N84: 0 | P84: 7620.172324
B85: May | D85: ='6. Historical Wholesale'!D85 -> 4433.92 | E85: 2.5279 | F85: 11208.50637 | H85: ='6. Historical Wholesale'!H85 -> 4433.92 | I85: 1.6586 | J85: 7354.099712 | L85: ='6. Historical Wholesale'!L85 -> 0 | M85: 0 | N85: 0 | P85: 7354.099712
B86: June | D86: ='6. Historical Wholesale'!D86 -> 6051.47 | E86: 2.5279 | F86: 15297.51101 | H86: ='6. Historical Wholesale'!H86 -> 6051.47 | I86: 1.6586 | J86: 10036.96814 | L86: ='6. Historical Wholesale'!L86 -> 0 | M86: 0 | N86: 0 | P86: 10036.96814
B87: July | D87: ='6. Historical Wholesale'!D87 -> 5875.5 | E87: 2.5279 | F87: 14852.67645 | H87: ='6. Historical Wholesale'!H87 -> 5875.5 | I87: 1.6586 | J87: 9745.1043 | L87: ='6. Historical Wholesale'!L87 -> 0 | M87: 0 | N87: 0 | P87: 9745.1043
B88: August | D88: ='6. Historical Wholesale'!D88 -> 4912.18 | E88: 2.5279 | F88: 12417.49982 | H88: ='6. Historical Wholesale'!H88 -> 4912.18 | I88: 1.6586 | J88: 8147.341748 | L88: ='6. Historical Wholesale'!L88 -> 0 | M88: 0 | N88: 0 | P88: 8147.341748
B89: September | D89: ='6. Historical Wholesale'!D89 -> 4817.95 | E89: 2.5279 | F89: 12179.2958 | H89: ='6. Historical Wholesale'!H89 -> 4817.95 | I89: 1.6586 | J89: 7991.05187 | L89: ='6. Historical Wholesale'!L89 -> 0 | M89: 0 | N89: 0 | P89: 7991.05187
B90: October | D90: ='6. Historical Wholesale'!D90 -> 4711.51 | E90: 2.5279 | F90: 11910.22613 | H90: ='6. Historical Wholesale'!H90 -> 6023.45 | I90: 1.6586 | J90: 9990.49417 | L90: ='6. Historical Wholesale'!L90 -> 0 | M90: 0 | N90: 0 | P90: 9990.49417
B91: November | D91: ='6. Historical Wholesale'!D91 -> 4739.29 | E91: 2.5279 | F91: 11980.45119 | H91: ='6. Historical Wholesale'!H91 -> 4739.29 | I91: 1.6586 | J91: 7860.586394 | L91: ='6. Historical Wholesale'!L91 -> 0 | M91: 0 | N91: 0 | P91: 7860.586394
B92: December | D92: ='6. Historical Wholesale'!D92 -> 4828.44 | E92: 2.5279 | F92: 12205.81348 | H92: ='6. Historical Wholesale'!H92 -> 4828.44 | I92: 1.6586 | J92: 8008.450584 | L92: ='6. Historical Wholesale'!L92 -> 0 | M92: 0 | N92: 0 | P92: 8008.450584
B94: Total | D94: =SUM(D81:D92) -> 68962.41 | E94: =IF(D94<>0,F94/D94,0) -> 2.5279 | F94: =SUM(F81:F92) -> 174330.0762 | H94: =SUM(H81:H92) -> 70274.35 | I94: =IF(H94<>0,J94/H94,0) -> 1.6586 | J94: =SUM(J81:J92) -> 116557.0369 | L94: =SUM(L81:L92) -> 0 | M94: =IF(L94<>0,N94/L94,0) -> 0 | N94: =SUM(N81:N92) -> 0 | P94: =SUM(P81:P92) -> 116557.0369
B96: Total | D96: Network | H96: Line Connection | L96: Transformation Connection | P96: Total Line
B98: Month | D98: Units Billed | E98: Rate | F98: Amount | H98: Units Billed | I98: Rate | J98: Amount | L98: Units Billed | M98: Rate | N98: Amount | P98: Amount
B100: January | D100: =D24+D43+D62+D81 -> 233907.88 | E100: =IF(D100<>0,F100/D100,0) -> 3.572424489 | F100: =F24+F43+F62+F81 -> 835618.2387 | H100: =H24+H43+H62+H81 -> 239761.88 | I100: =IF(H100<>0,J100/H100,0) -> 0.7770691556 | J100: =J24+J43+J62+J81 -> 186311.5616 | L100: =L24+L43+L62+L81 -> 32382 | M100: =IF(L100<>0,N100/L100,0) -> 1.788182324 | N100: =N24+N43+N62+N81 -> 57904.92 | P100: =J100+N100 -> 244216.4816
B101: February | D101: =D25+D44+D63+D82 -> 239290.53 | E101: 3.554219041 | F101: =F25+F44+F63+F82 -> 850490.958 | H101: =H25+H44+H63+H82 -> 266278.06 | I101: 0.7898968997 | J101: =J25+J44+J63+J82 -> 210332.2141 | L101: =L25+L44+L63+L82 -> 31822 | M101: 1.789617874 | N101: =N25+N44+N63+N82 -> 56949.22 | P101: 267281.4341
B102: March | D102: 215695.39 | E102: 3.584010835 | F102: 773054.6148 | H102: 229969.99 | I102: 0.7672654178 | J102: 176448.0205 | L102: 29213 | M102: 1.786100366 | N102: 52177.35 | P102: 228625.3705
B103: April | D103: 194860.85 | E103: 3.583213305 | F103: 698227.9903 | H103: 208431.2 | I103: 0.7691805307 | J103: 160321.221 | L103: 28447 | M103: 1.792561957 | N103: 50993.01 | P103: 211314.231
B104: May | D104: 251827.9 | E104: 3.593781177 | F104: 905014.3669 | H104: 259110.9 | I104: 0.7646984152 | J104: 198141.6946 | L104: 30816 | M104: 1.800425753 | N104: 55481.92 | P104: 253623.6146
B105: June | D105: 275572.54 | E105: 3.588771119 | F105: 988966.7728 | H105: 281381.54 | I105: 0.7686607584 | J105: 216286.9479 | L105: 33802 | M105: 1.800021301 | N105: 60844.32 | P105: 277131.2679
B106: July | D106: 281694.35 | E106: 3.591213929 | F106: 1011624.673 | H106: 290821.35 | I106: 0.7674024358 | J106: 223177.0124 | L106: 33705 | M106: 1.807194482 | N106: 60911.49 | P106: 284088.5024
B107: August | D107: 257195.29 | E107: 3.586142594 | F107: 922338.9844 | H107: 263779.29 | I107: 0.7663744976 | J107: 202153.7209 | L107: 36663 | M107: 1.776840684 | N107: 65144.31 | P107: 267298.0309
B108: September | D108: 235763.66 | E108: 3.588957958 | F108: 846145.8638 | H108: 240537.01 | I108: 0.7673530984 | J108: 184576.8199 | L108: 31521 | M108: 1.794157229 | N108: 56553.63 | P108: 241130.4499
B109: October | D109: 195288.72 | E109: 3.582145627 | F109: 699552.6344 | H109: 211871.66 | I109: 0.7748195863 | J109: 164162.3119 | L109: 28691 | M109: 1.794814053 | N109: 51495.01 | P109: 215657.3219
B110: November | D110: 218846.87 | E110: 3.585026823 | F110: 784571.8992 | H110: 227626.87 | I110: 0.7679088718 | J110: 174796.6929 | L110: 30008 | M110: 1.793159824 | N110: 53809.14 | P110: 228605.8329
B111: December | D111: 220922.48 | E111: 3.583060272 | F111: 791578.5613 | H111: 228818.48 | I111: 0.7680675228 | J111: 175748.0431 | L111: 31220 | M111: 1.790236387 | N111: 55891.18 | P111: 231639.2231
B113: Total | D113: =SUM(D100:D111) -> 2820866.46 | E113: =IF(D113<>0,F113/D113,0) -> 3.583007456 | F113: =SUM(F100:F111) -> 10107185.56 | H113: =SUM(H100:H111) -> 2948388.23 | I113: =IF(H113<>0,J113/H113,0) -> 0.7707452627 | J113: =SUM(J100:J111) -> 2272456.261 | L113: =SUM(L100:L111) -> 378290 | M113: =IF(L113<>0,N113/L113,0) -> 1.792686828 | N113: =SUM(N100:N111) -> 678155.5 | P113: =SUM(P100:P111) -> 2950611.761
N115: Low Voltage Switchgear Credit (if applicable) | P115: ='5. UTRs and Sub-Transmission'!I95 -> 0
N117: Total including deduction for Low Voltage Switchgear Credit | P117: =P113+P115 -> 2950611.761

Sheet 9. Adj Network to Current WS
B13: The purpose of this sheet is to re-align the current RTS Network Rates to recover current wholesale network costs.
B22: Rate Class | D22: Unit | F22: Current RTSR-Network | H22: Loss Adjusted Billed kWh | J22: Loss Adjusted Billed kW | L22: Billed Amount | N22: Billed Amount % | P22: Current Wholesale Billing | R22: Proposed RTSR Network
B25: =IF('3. Rate Classes'!Q24=1,'3. Rate Classes'!C24, 0) -> Residential | D25: =IF(ISERROR(VLOOKUP($B25, '3. Rate Classes'!$C$24:$H$45,6,0)), "", VLOOKUP($B25, '3. Rate Classes'!$C$24:$H$45,6,0)) -> kWh | F25: =IF(ISERROR(VLOOKUP($B25,'3. Rate Classes'!$C$24:$N$45, 8,0)), "", VLOOKUP($B25,'3. Rate Classes'!$C$24:$N$45, 8,0)) -> 0.0077 | H25: =VLOOKUP('9. Adj Network to Current WS'!$B25, '4. RRR Data'!$B$27:$M$49,11,0) -> 426483388.8 | J25: =VLOOKUP('9. Adj Network to Current WS'!$B25, '4. RRR Data'!$B$27:$M$49,12,0) -> 0 | L25: =IF(F25="", "", IF(D25="kWh", F25*H25, F25*J25)) -> 3283922.094 | N25: =IF(ISERROR(L25/$L$49), "", L25/$L$49) -> 0.3072790934 | P25: =IF(ISERROR('7. Current Wholesale'!$F$113*N25), "", '7. Current Wholesale'!$F$113*N25) -> 3105726.815 | R25: =IF(D25="","",IF(D25="kWh",IF(H25<>0,P25/H25,),IF(J25<>0,P25/J25,0))) -> 0.007282175334
B26: =IF('3. Rate Classes'!Q25=1,'3. Rate Classes'!C25, 0) -> General Service Less Than 50 kW | D26: =IF(ISERROR(VLOOKUP($B26, '3. Rate Classes'!$C$24:$H$45,6,0)), "", VLOOKUP($B26, '3. Rate Classes'!$C$24:$H$45,6,0)) -> kWh | F26: =IF(ISERROR(VLOOKUP($B26,'3. Rate Classes'!$C$24:$N$45, 8,0)), "", VLOOKUP($B26,'3. Rate Classes'!$C$24:$N$45, 8,0)) -> 0.007 | H26: =VLOOKUP('9. Adj Network to Current WS'!$B26, '4. RRR Data'!$B$27:$M$49,11,0) -> 197873137 | J26: =VLOOKUP('9. Adj Network to Current WS'!$B26, '4. RRR Data'!$B$27:$M$49,12,0) -> 0 | L26: =IF(F26="", "", IF(D26="kWh", F26*H26, F26*J26)) -> 1385111.959 | N26: =IF(ISERROR(L26/$L$49), "", L26/$L$49) -> 0.1296059817 | P26: =IF(ISERROR('7. Current Wholesale'!$F$113*N26), "", '7. Current Wholesale'!$F$113*N26) -> 1309951.707 | R26: =IF(D26="","",IF(D26="kWh",IF(H26<>0,P26/H26,),IF(J26<>0,P26/J26,0))) -> 0.006620159395
B27: =IF('3. Rate Classes'!Q26=1,'3. Rate Classes'!C26, 0) -> General Service 50 to 999 kW | D27: =IF(ISERROR(VLOOKUP($B27, '3. Rate Classes'!$C$24:$H$45,6,0)), "", VLOOKUP($B27, '3. Rate Classes'!$C$24:$H$45,6,0)) -> kW | F27: =IF(ISERROR(VLOOKUP($B27,'3. Rate Classes'!$C$24:$N$45, 8,0)), "", VLOOKUP($B27,'3. Rate Classes'!$C$24:$N$45, 8,0)) -> 2.8585 | H27: =VLOOKUP('9. Adj Network to Current WS'!$B27, '4. RRR Data'!$B$27:$M$49,11,0) -> 147002448.9 | J27: =VLOOKUP('9. Adj Network to Current WS'!$B27, '4. RRR Data'!$B$27:$M$49,12,0) -> 472184.1712 | L27: 1349738.453 | N27: 0.1262960559 | P27: =IF(ISERROR('7. Current Wholesale'!$F$113*N27), "", '7. Current Wholesale'!$F$113*N27) -> 1276497.672 | R27: 2.703389376
B28: =IF('3. Rate Classes'!Q27=1,'3. Rate Classes'!C27, 0) -> General Service 50 to 999 kW - Interval Metered | D28: =IF(ISERROR(VLOOKUP($B28, '3. Rate Classes'!$C$24:$H$45,6,0)), "", VLOOKUP($B28, '3. Rate Classes'!$C$24:$H$45,6,0)) -> kW | F28: =IF(ISERROR(VLOOKUP($B28,'3. Rate Classes'!$C$24:$N$45, 8,0)), "", VLOOKUP($B28,'3. Rate Classes'!$C$24:$N$45, 8,0)) -> 3.0361 | H28: =VLOOKUP('9. Adj Network to Current WS'!$B28, '4. RRR Data'!$B$27:$M$49,11,0) -> 310588134.3 | J28: =VLOOKUP('9. Adj Network to Current WS'!$B28, '4. RRR Data'!$B$27:$M$49,12,0) -> 788826.16 | L28: 2394955.104 | N28: 0.2240977746 | P28: =IF(ISERROR('7. Current Wholesale'!$F$113*N28), "", '7. Current Wholesale'!$F$113*N28) -> 2264997.791 | R28: 2.871352277
B29: =IF('3. Rate Classes'!Q28=1,'3. Rate Classes'!C28, 0) -> General Service 1,000 to 4,999 kW - Interval Meters | D29: =IF(ISERROR(VLOOKUP($B29, '3. Rate Classes'!$C$24:$H$45,6,0)), "", VLOOKUP($B29, '3. Rate Classes'!$C$24:$H$45,6,0)) -> kW | F29: =IF(ISERROR(VLOOKUP($B29,'3. Rate Classes'!$C$24:$N$45, 8,0)), "", VLOOKUP($B29,'3. Rate Classes'!$C$24:$N$45, 8,0)) -> 3.0322 | H29: =VLOOKUP('9. Adj Network to Current WS'!$B29, '4. RRR Data'!$B$27:$M$49,11,0) -> 258900453.5 | J29: =VLOOKUP('9. Adj Network to Current WS'!$B29, '4. RRR Data'!$B$27:$M$49,12,0) -> 546176.81 | L29: 1656117.323 | N29: 0.1549641602 | P29: =IF(ISERROR('7. Current Wholesale'!$F$113*N29), "", '7. Current Wholesale'!$F$113*N29) -> 1566251.522 | R29: 2.867663902
B30: =IF('3. Rate Classes'!Q29=1,'3. Rate Classes'!C29, 0) -> Large Use | D30: =IF(ISERROR(VLOOKUP($B30, '3. Rate Classes'!$C$24:$H$45,6,0)), "", VLOOKUP($B30, '3. Rate Classes'!$C$24:$H$45,6,0)) -> kW | F30: =IF(ISERROR(VLOOKUP($B30,'3. Rate Classes'!$C$24:$N$45, 8,0)), "", VLOOKUP($B30,'3. Rate Classes'!$C$24:$N$45, 8,0)) -> 3.3616 | H30: =VLOOKUP('9. Adj Network to Current WS'!$B30, '4. RRR Data'!$B$27:$M$49,11,0) -> 86740766.78 | J30: =VLOOKUP('9. Adj Network to Current WS'!$B30, '4. RRR Data'!$B$27:$M$49,12,0) -> 165061.0695 | L30: 554869.2911 | N30: 0.05191954249 | P30: =IF(ISERROR('7. Current Wholesale'!$F$113*N30), "", '7. Current Wholesale'!$F$113*N30) -> 524760.45 | R30: 3.179189689
B31: =IF('3. Rate Classes'!Q30=1,'3. Rate Classes'!C30, 0) -> Unmetered Scattered Load | D31: =IF(ISERROR(VLOOKUP($B31, '3. Rate Classes'!$C$24:$H$45,6,0)), "", VLOOKUP($B31, '3. Rate Classes'!$C$24:$H$45,6,0)) -> kWh | F31: =IF(ISERROR(VLOOKUP($B31,'3. Rate Classes'!$C$24:$N$45, 8,0)), "", VLOOKUP($B31,'3. Rate Classes'!$C$24:$N$45, 8,0)) -> 0.007 | H31: =VLOOKUP('9. Adj Network to Current WS'!$B31, '4. RRR Data'!$B$27:$M$49,11,0) -> 2340908.625 | J31: =VLOOKUP('9. Adj Network to Current WS'!$B31, '4. RRR Data'!$B$27:$M$49,12,0) -> 0 | L31: 16386.36037 | N31: 0.00153328423 | P31: =IF(ISERROR('7. Current Wholesale'!$F$113*N31), "", '7. Current Wholesale'!$F$113*N31) -> 15497.18822 | R31: 0.006620159395
B32: =IF('3. Rate Classes'!Q31=1,'3. Rate Classes'!C31, 0) -> Street Lighting | D32: =IF(ISERROR(VLOOKUP($B32, '3. Rate Classes'!$C$24:$H$45,6,0)), "", VLOOKUP($B32, '3. Rate Classes'!$C$24:$H$45,6,0)) -> kW | F32: =IF(ISERROR(VLOOKUP($B32,'3. Rate Classes'!$C$24:$N$45, 8,0)), "", VLOOKUP($B32,'3. Rate Classes'!$C$24:$N$45, 8,0)) -> 2.1561 | H32: =VLOOKUP('9. Adj Network to Current WS'!$B32, '4. RRR Data'!$B$27:$M$49,11,0) -> 9744476.993 | J32: =VLOOKUP('9. Adj Network to Current WS'!$B32, '4. RRR Data'!$B$27:$M$49,12,0) -> 21334.086 | L32: 45998.42282 | N32: 0.004304107484 | P32: =IF(ISERROR('7. Current Wholesale'!$F$113*N32), "", '7. Current Wholesale'!$F$113*N32) -> 43502.413 | R32: 2.039103667
B33: =IF('3. Rate Classes'!Q32=1,'3. Rate Classes'!C32, 0) -> Embedded Distributor | D33: =IF(ISERROR(VLOOKUP($B33, '3. Rate Classes'!$C$24:$H$45,6,0)), "", VLOOKUP($B33, '3. Rate Classes'!$C$24:$H$45,6,0)) -> kW | F33: =IF(ISERROR(VLOOKUP($B33,'3. Rate Classes'!$C$24:$N$45, 8,0)), "", VLOOKUP($B33,'3. Rate Classes'!$C$24:$N$45, 8,0)) -> 0 | H33: =VLOOKUP('9. Adj Network to Current WS'!$B33, '4. RRR Data'!$B$27:$M$49,11,0) -> 32083012.56 | J33: =VLOOKUP('9. Adj Network to Current WS'!$B33, '4. RRR Data'!$B$27:$M$49,12,0) -> 71506.52 | L33: 0 | N33: 0 | P33: =IF(ISERROR('7. Current Wholesale'!$F$113*N33), "", '7. Current Wholesale'!$F$113*N33) -> 0 | R33: 0
B34: =IF('3. Rate Classes'!Q33=1,'3. Rate Classes'!C33, 0) -> 0 | D34: =IF(ISERROR(VLOOKUP($B34, '3. Rate Classes'!$C$24:$H$45,6,0)), "", VLOOKUP($B34, '3. Rate Classes'!$C$24:$H$45,6,0)) ->  | F34: =IF(ISERROR(VLOOKUP($B34,'3. Rate Classes'!$C$24:$N$45, 8,0)), "", VLOOKUP($B34,'3. Rate Classes'!$C$24:$N$45, 8,0)) ->  | H34: =VLOOKUP('9. Adj Network to Current WS'!$B34, '4. RRR Data'!$B$27:$M$49,11,0) -> 0 | J34: =VLOOKUP('9. Adj Network to Current WS'!$B34, '4. RRR Data'!$B$27:$M$49,12,0) -> 0 | P34: =IF(ISERROR('7. Current Wholesale'!$F$113*N34), "", '7. Current Wholesale'!$F$113*N34) -> 
B35: =IF('3. Rate Classes'!Q34=1,'3. Rate Classes'!C34, 0) -> 0 | D35: =IF(ISERROR(VLOOKUP($B35, '3. Rate Classes'!$C$24:$H$45,6,0)), "", VLOOKUP($B35, '3. Rate Classes'!$C$24:$H$45,6,0)) ->  | F35: =IF(ISERROR(VLOOKUP($B35,'3. Rate Classes'!$C$24:$N$45, 8,0)), "", VLOOKUP($B35,'3. Rate Classes'!$C$24:$N$45, 8,0)) ->  | H35: =VLOOKUP('9. Adj Network to Current WS'!$B35, '4. RRR Data'!$B$27:$M$49,11,0) -> 0 | J35: =VLOOKUP('9. Adj Network to Current WS'!$B35, '4. RRR Data'!$B$27:$M$49,12,0) -> 0 | P35: =IF(ISERROR('7. Current Wholesale'!$F$113*N35), "", '7. Current Wholesale'!$F$113*N35) -> 
B36: =IF('3. Rate Classes'!Q35=1,'3. Rate Classes'!C35, 0) -> 0 | D36: =IF(ISERROR(VLOOKUP($B36, '3. Rate Classes'!$C$24:$H$45,6,0)), "", VLOOKUP($B36, '3. Rate Classes'!$C$24:$H$45,6,0)) ->  | F36: =IF(ISERROR(VLOOKUP($B36,'3. Rate Classes'!$C$24:$N$45, 8,0)), "", VLOOKUP($B36,'3. Rate Classes'!$C$24:$N$45, 8,0)) ->  | H36: =VLOOKUP('9. Adj Network to Current WS'!$B36, '4. RRR Data'!$B$27:$M$49,11,0) -> 0 | J36: =VLOOKUP('9. Adj Network to Current WS'!$B36, '4. RRR Data'!$B$27:$M$49,12,0) -> 0 | P36: =IF(ISERROR('7. Current Wholesale'!$F$113*N36), "", '7. Current Wholesale'!$F$113*N36) -> 
B37: =IF('3. Rate Classes'!Q36=1,'3. Rate Classes'!C36, 0) -> 0 | D37: =IF(ISERROR(VLOOKUP($B37, '3. Rate Classes'!$C$24:$H$45,6,0)), "", VLOOKUP($B37, '3. Rate Classes'!$C$24:$H$45,6,0)) ->  | F37: =IF(ISERROR(VLOOKUP($B37,'3. Rate Classes'!$C$24:$N$45, 8,0)), "", VLOOKUP($B37,'3. Rate Classes'!$C$24:$N$45, 8,0)) ->  | H37: =VLOOKUP('9. Adj Network to Current WS'!$B37, '4. RRR Data'!$B$27:$M$49,11,0) -> 0 | J37: =VLOOKUP('9. Adj Network to Current WS'!$B37, '4. RRR Data'!$B$27:$M$49,12,0) -> 0 | P37: =IF(ISERROR('7. Current Wholesale'!$F$113*N37), "", '7. Current Wholesale'!$F$113*N37) -> 
B38: =IF('3. Rate Classes'!Q37=1,'3. Rate Classes'!C37, 0) -> 0 | D38: =IF(ISERROR(VLOOKUP($B38, '3. Rate Classes'!$C$24:$H$45,6,0)), "", VLOOKUP($B38, '3. Rate Classes'!$C$24:$H$45,6,0)) ->  | F38: =IF(ISERROR(VLOOKUP($B38,'3. Rate Classes'!$C$24:$N$45, 8,0)), "", VLOOKUP($B38,'3. Rate Classes'!$C$24:$N$45, 8,0)) ->  | H38: =VLOOKUP('9. Adj Network to Current WS'!$B38, '4. RRR Data'!$B$27:$M$49,11,0) -> 0 | J38: =VLOOKUP('9. Adj Network to Current WS'!$B38, '4. RRR Data'!$B$27:$M$49,12,0) -> 0 | P38: =IF(ISERROR('7. Current Wholesale'!$F$113*N38), "", '7. Current Wholesale'!$F$113*N38) -> 
B39: =IF('3. Rate Classes'!Q38=1,'3. Rate Classes'!C38, 0) -> 0 | D39: =IF(ISERROR(VLOOKUP($B39, '3. Rate Classes'!$C$24:$H$45,6,0)), "", VLOOKUP($B39, '3. Rate Classes'!$C$24:$H$45,6,0)) ->  | F39: =IF(ISERROR(VLOOKUP($B39,'3. Rate Classes'!$C$24:$N$45, 8,0)), "", VLOOKUP($B39,'3. Rate Classes'!$C$24:$N$45, 8,0)) ->  | H39: =VLOOKUP('9. Adj Network to Current WS'!$B39, '4. RRR Data'!$B$27:$M$49,11,0) -> 0 | J39: =VLOOKUP('9. Adj Network to Current WS'!$B39, '4. RRR Data'!$B$27:$M$49,12,0) -> 0 | L39: =IF(F39="", "", IF(D39="kWh", F39*H39, F39*J39)) ->  | P39: =IF(ISERROR('7. Current Wholesale'!$F$113*N39), "", '7. Current Wholesale'!$F$113*N39) -> 
B40: =IF('3. Rate Classes'!Q39=1,'3. Rate Classes'!C39, 0) -> 0 | D40: =IF(ISERROR(VLOOKUP($B40, '3. Rate Classes'!$C$24:$H$45,6,0)), "", VLOOKUP($B40, '3. Rate Classes'!$C$24:$H$45,6,0)) ->  | F40: =IF(ISERROR(VLOOKUP($B40,'3. Rate Classes'!$C$24:$N$45, 8,0)), "", VLOOKUP($B40,'3. Rate Classes'!$C$24:$N$45, 8,0)) ->  | H40: =VLOOKUP('9. Adj Network to Current WS'!$B40, '4. RRR Data'!$B$27:$M$49,11,0) -> 0 | J40: =VLOOKUP('9. Adj Network to Current WS'!$B40, '4. RRR Data'!$B$27:$M$49,12,0) -> 0 | P40: =IF(ISERROR('7. Current Wholesale'!$F$113*N40), "", '7. Current Wholesale'!$F$113*N40) -> 
B41: =IF('3. Rate Classes'!Q40=1,'3. Rate Classes'!C40, 0) -> 0 | D41: =IF(ISERROR(VLOOKUP($B41, '3. Rate Classes'!$C$24:$H$45,6,0)), "", VLOOKUP($B41, '3. Rate Classes'!$C$24:$H$45,6,0)) ->  | F41: =IF(ISERROR(VLOOKUP($B41,'3. Rate Classes'!$C$24:$N$45, 8,0)), "", VLOOKUP($B41,'3. Rate Classes'!$C$24:$N$45, 8,0)) ->  | H41: =VLOOKUP('9. Adj Network to Current WS'!$B41, '4. RRR Data'!$B$27:$M$49,11,0) -> 0 | J41: =VLOOKUP('9. Adj Network to Current WS'!$B41, '4. RRR Data'!$B$27:$M$49,12,0) -> 0 | P41: =IF(ISERROR('7. Current Wholesale'!$F$113*N41), "", '7. Current Wholesale'!$F$113*N41) -> 
B42: =IF('3. Rate Classes'!Q41=1,'3. Rate Classes'!C41, 0) -> 0 | D42: =IF(ISERROR(VLOOKUP($B42, '3. Rate Classes'!$C$24:$H$45,6,0)), "", VLOOKUP($B42, '3. Rate Classes'!$C$24:$H$45,6,0)) ->  | F42: =IF(ISERROR(VLOOKUP($B42,'3. Rate Classes'!$C$24:$N$45, 8,0)), "", VLOOKUP($B42,'3. Rate Classes'!$C$24:$N$45, 8,0)) ->  | H42: =VLOOKUP('9. Adj Network to Current WS'!$B42, '4. RRR Data'!$B$27:$M$49,11,0) -> 0 | J42: =VLOOKUP('9. Adj Network to Current WS'!$B42, '4. RRR Data'!$B$27:$M$49,12,0) -> 0 | P42: =IF(ISERROR('7. Current Wholesale'!$F$113*N42), "", '7. Current Wholesale'!$F$113*N42) -> 
B43: =IF('3. Rate Classes'!Q42=1,'3. Rate Classes'!C42, 0) -> 0 | D43: =IF(ISERROR(VLOOKUP($B43, '3. Rate Classes'!$C$24:$H$45,6,0)), "", VLOOKUP($B43, '3. Rate Classes'!$C$24:$H$45,6,0)) ->  | F43: =IF(ISERROR(VLOOKUP($B43,'3. Rate Classes'!$C$24:$N$45, 8,0)), "", VLOOKUP($B43,'3. Rate Classes'!$C$24:$N$45, 8,0)) ->  | H43: =VLOOKUP('9. Adj Network to Current WS'!$B43, '4. RRR Data'!$B$27:$M$49,11,0) -> 0 | J43: =VLOOKUP('9. Adj Network to Current WS'!$B43, '4. RRR Data'!$B$27:$M$49,12,0) -> 0 | P43: =IF(ISERROR('7. Current Wholesale'!$F$113*N43), "", '7. Current Wholesale'!$F$113*N43) -> 
B44: =IF('3. Rate Classes'!Q43=1,'3. Rate Classes'!C43, 0) -> 0 | D44: =IF(ISERROR(VLOOKUP($B44, '3. Rate Classes'!$C$24:$H$45,6,0)), "", VLOOKUP($B44, '3. Rate Classes'!$C$24:$H$45,6,0)) ->  | F44: =IF(ISERROR(VLOOKUP($B44,'3. Rate Classes'!$C$24:$N$45, 8,0)), "", VLOOKUP($B44,'3. Rate Classes'!$C$24:$N$45, 8,0)) ->  | H44: =VLOOKUP('9. Adj Network to Current WS'!$B44, '4. RRR Data'!$B$27:$M$49,11,0) -> 0 | J44: =VLOOKUP('9. Adj Network to Current WS'!$B44, '4. RRR Data'!$B$27:$M$49,12,0) -> 0 | P44: =IF(ISERROR('7. Current Wholesale'!$F$113*N44), "", '7. Current Wholesale'!$F$113*N44) -> 
B45: =IF('3. Rate Classes'!Q44=1,'3. Rate Classes'!C44, 0) -> 0 | D45: =IF(ISERROR(VLOOKUP($B45, '3. Rate Classes'!$C$24:$H$45,6,0)), "", VLOOKUP($B45, '3. Rate Classes'!$C$24:$H$45,6,0)) ->  | F45: =IF(ISERROR(VLOOKUP($B45,'3. Rate Classes'!$C$24:$N$45, 8,0)), "", VLOOKUP($B45,'3. Rate Classes'!$C$24:$N$45, 8,0)) ->  | H45: =VLOOKUP('9. Adj Network to Current WS'!$B45, '4. RRR Data'!$B$27:$M$49,11,0) -> 0 | J45: =VLOOKUP('9. Adj Network to Current WS'!$B45, '4. RRR Data'!$B$27:$M$49,12,0) -> 0 | P45: =IF(ISERROR('7. Current Wholesale'!$F$113*N45), "", '7. Current Wholesale'!$F$113*N45) -> 
B46: =IF('3. Rate Classes'!Q45=1,'3. Rate Classes'!C45, 0) -> 0 | D46: =IF(ISERROR(VLOOKUP($B46, '3. Rate Classes'!$C$24:$H$45,6,0)), "", VLOOKUP($B46, '3. Rate Classes'!$C$24:$H$45,6,0)) ->  | F46: =IF(ISERROR(VLOOKUP($B46,'3. Rate Classes'!$C$24:$N$45, 8,0)), "", VLOOKUP($B46,'3. Rate Classes'!$C$24:$N$45, 8,0)) ->  | H46: =VLOOKUP('9. Adj Network to Current WS'!$B46, '4. RRR Data'!$B$27:$M$49,11,0) -> 0 | J46: =VLOOKUP('9. Adj Network to Current WS'!$B46, '4. RRR Data'!$B$27:$M$49,12,0) -> 0 | P46: =IF(ISERROR('7. Current Wholesale'!$F$113*N46), "", '7. Current Wholesale'!$F$113*N46) -> 
L49: =SUM(L25:L46) -> 10687099.01

Sheet 10. Adj Conn. to Current WS
B13: The purpose of this sheet is to re-align the current RTS Connection Rates to recover current wholesale connection costs.
B22: Rate Class | D22: Unit | F22: Current RTSR-Connection | H22: Loss Adjusted Billed kWh | J22: Loss Adjusted Billed kW | L22: Billed Amount | N22: Billed Amount % | P22: Current Wholesale Billing | R22: Proposed RTSR Connection
B25: =IF('3. Rate Classes'!Q24=1,'3. Rate Classes'!C24, 0) -> Residential | D25: =IF(ISERROR(VLOOKUP($B25, '3. Rate Classes'!$C$24:$H$45,6,0)), "", VLOOKUP($B25, '3. Rate Classes'!$C$24:$H$45,6,0)) -> kWh | F25: =IF(ISERROR(VLOOKUP($B25,'3. Rate Classes'!$C$24:$N$45, 11,0)), "", VLOOKUP($B25,'3. Rate Classes'!$C$24:$N$45, 11,0)) -> 0.0022 | H25: =VLOOKUP('9. Adj Network to Current WS'!$B25, '4. RRR Data'!$B$27:$M$49,11,0) -> 426483388.8 | J25: =VLOOKUP('9. Adj Network to Current WS'!$B25, '4. RRR Data'!$B$27:$M$49,12,0) -> 0 | L25: =IF(F25="", "", IF(D25="kWh", F25*H25, F25*J25)) -> 938263.4555 | N25: =IF(ISERROR(L25/$L$49), "", L25/$L$49) -> 0.2931038946 | P25: =IF(ISERROR('7. Current Wholesale'!$P$117*N25), "", '7. Current Wholesale'!$P$117*N25) -> 864835.7986 | R25: =IF(D25="","",IF(D25="kWh",IF(H25<>0,P25/H25,),IF(J25<>0,P25/J25,0))) -> 0.002027829972
B26: =IF('3. Rate Classes'!Q25=1,'3. Rate Classes'!C25, 0) -> General Service Less Than 50 kW | D26: =IF(ISERROR(VLOOKUP($B26, '3. Rate Classes'!$C$24:$H$45,6,0)), "", VLOOKUP($B26, '3. Rate Classes'!$C$24:$H$45,6,0)) -> kWh | F26: =IF(ISERROR(VLOOKUP($B26,'3. Rate Classes'!$C$24:$N$45, 11,0)), "", VLOOKUP($B26,'3. Rate Classes'!$C$24:$N$45, 11,0)) -> 0.002 | H26: =VLOOKUP('9. Adj Network to Current WS'!$B26, '4. RRR Data'!$B$27:$M$49,11,0) -> 197873137 | J26: =VLOOKUP('9. Adj Network to Current WS'!$B26, '4. RRR Data'!$B$27:$M$49,12,0) -> 0 | L26: 395746.274 | N26: 0.1236270831 | P26: =IF(ISERROR('7. Current Wholesale'!$P$117*N26), "", '7. Current Wholesale'!$P$117*N26) -> 364775.5254 | R26: 0.001843481793
B27: =IF('3. Rate Classes'!Q26=1,'3. Rate Classes'!C26, 0) -> General Service 50 to 999 kW | D27: =IF(ISERROR(VLOOKUP($B27, '3. Rate Classes'!$C$24:$H$45,6,0)), "", VLOOKUP($B27, '3. Rate Classes'!$C$24:$H$45,6,0)) -> kW | F27: =IF(ISERROR(VLOOKUP($B27,'3. Rate Classes'!$C$24:$N$45, 11,0)), "", VLOOKUP($B27,'3. Rate Classes'!$C$24:$N$45, 11,0)) -> 0.7884 | H27: =VLOOKUP('9. Adj Network to Current WS'!$B27, '4. RRR Data'!$B$27:$M$49,11,0) -> 147002448.9 | J27: =VLOOKUP('9. Adj Network to Current WS'!$B27, '4. RRR Data'!$B$27:$M$49,12,0) -> 472184.1712 | L27: 372270.0006 | N27: 0.1162933357 | P27: =IF(ISERROR('7. Current Wholesale'!$P$117*N27), "", '7. Current Wholesale'!$P$117*N27) -> 343136.4841 | R27: 0.7267005228
B28: =IF('3. Rate Classes'!Q27=1,'3. Rate Classes'!C27, 0) -> General Service 50 to 999 kW - Interval Metered | D28: =IF(ISERROR(VLOOKUP($B28, '3. Rate Classes'!$C$24:$H$45,6,0)), "", VLOOKUP($B28, '3. Rate Classes'!$C$24:$H$45,6,0)) -> kW | F28: =IF(ISERROR(VLOOKUP($B28,'3. Rate Classes'!$C$24:$N$45, 11,0)), "", VLOOKUP($B28,'3. Rate Classes'!$C$24:$N$45, 11,0)) -> 0.9848 | H28: =VLOOKUP('9. Adj Network to Current WS'!$B28, '4. RRR Data'!$B$27:$M$49,11,0) -> 310588134.3 | J28: =VLOOKUP('9. Adj Network to Current WS'!$B28, '4. RRR Data'!$B$27:$M$49,12,0) -> 788826.16 | L28: 776836.0024 | N28: 0.2426756115 | P28: =IF(ISERROR('7. Current Wholesale'!$P$117*N28), "", '7. Current Wholesale'!$P$117*N28) -> 716041.5133 | R28: 0.9077304349
B29: =IF('3. Rate Classes'!Q28=1,'3. Rate Classes'!C28, 0) -> General Service 1,000 to 4,999 kW - Interval Meters | D29: =IF(ISERROR(VLOOKUP($B29, '3. Rate Classes'!$C$24:$H$45,6,0)), "", VLOOKUP($B29, '3. Rate Classes'!$C$24:$H$45,6,0)) -> kW | F29: =IF(ISERROR(VLOOKUP($B29,'3. Rate Classes'!$C$24:$N$45, 11,0)), "", VLOOKUP($B29,'3. Rate Classes'!$C$24:$N$45, 11,0)) -> 0.9836 | H29: =VLOOKUP('9. Adj Network to Current WS'!$B29, '4. RRR Data'!$B$27:$M$49,11,0) -> 258900453.5 | J29: =VLOOKUP('9. Adj Network to Current WS'!$B29, '4. RRR Data'!$B$27:$M$49,12,0) -> 546176.81 | L29: 537219.5103 | N29: 0.1678218733 | P29: =IF(ISERROR('7. Current Wholesale'!$P$117*N29), "", '7. Current Wholesale'!$P$117*N29) -> 495177.1931 | R29: 0.9066243458
B30: =IF('3. Rate Classes'!Q29=1,'3. Rate Classes'!C29, 0) -> Large Use | D30: =IF(ISERROR(VLOOKUP($B30, '3. Rate Classes'!$C$24:$H$45,6,0)), "", VLOOKUP($B30, '3. Rate Classes'!$C$24:$H$45,6,0)) -> kW | F30: =IF(ISERROR(VLOOKUP($B30,'3. Rate Classes'!$C$24:$N$45, 11,0)), "", VLOOKUP($B30,'3. Rate Classes'!$C$24:$N$45, 11,0)) -> 0.9882 | H30: =VLOOKUP('9. Adj Network to Current WS'!$B30, '4. RRR Data'!$B$27:$M$49,11,0) -> 86740766.78 | J30: =VLOOKUP('9. Adj Network to Current WS'!$B30, '4. RRR Data'!$B$27:$M$49,12,0) -> 165061.0695 | L30: 163113.3488 | N30: 0.05095493971 | P30: =IF(ISERROR('7. Current Wholesale'!$P$117*N30), "", '7. Current Wholesale'!$P$117*N30) -> 150348.2444 | R30: 0.9108643539
B31: =IF('3. Rate Classes'!Q30=1,'3. Rate Classes'!C30, 0) -> Unmetered Scattered Load | D31: =IF(ISERROR(VLOOKUP($B31, '3. Rate Classes'!$C$24:$H$45,6,0)), "", VLOOKUP($B31, '3. Rate Classes'!$C$24:$H$45,6,0)) -> kWh | F31: =IF(ISERROR(VLOOKUP($B31,'3. Rate Classes'!$C$24:$N$45, 11,0)), "", VLOOKUP($B31,'3. Rate Classes'!$C$24:$N$45, 11,0)) -> 0.002 | H31: =VLOOKUP('9. Adj Network to Current WS'!$B31, '4. RRR Data'!$B$27:$M$49,11,0) -> 2340908.625 | J31: =VLOOKUP('9. Adj Network to Current WS'!$B31, '4. RRR Data'!$B$27:$M$49,12,0) -> 0 | L31: 4681.817249 | N31: 0.001462551762 | P31: =IF(ISERROR('7. Current Wholesale'!$P$117*N31), "", '7. Current Wholesale'!$P$117*N31) -> 4315.422429 | R31: 0.001843481793
B32: =IF('3. Rate Classes'!Q31=1,'3. Rate Classes'!C31, 0) -> Street Lighting | D32: =IF(ISERROR(VLOOKUP($B32, '3. Rate Classes'!$C$24:$H$45,6,0)), "", VLOOKUP($B32, '3. Rate Classes'!$C$24:$H$45,6,0)) -> kW | F32: =IF(ISERROR(VLOOKUP($B32,'3. Rate Classes'!$C$24:$N$45, 11,0)), "", VLOOKUP($B32,'3. Rate Classes'!$C$24:$N$45, 11,0)) -> 0.6093 | H32: =VLOOKUP('9. Adj Network to Current WS'!$B32, '4. RRR Data'!$B$27:$M$49,11,0) -> 9744476.993 | J32: =VLOOKUP('9. Adj Network to Current WS'!$B32, '4. RRR Data'!$B$27:$M$49,12,0) -> 21334.086 | L32: 12998.8586 | N32: 0.004060710304 | P32: =IF(ISERROR('7. Current Wholesale'!$P$117*N32), "", '7. Current Wholesale'!$P$117*N32) -> 11981.57958 | R32: 0.5616167282
B33: =IF('3. Rate Classes'!Q32=1,'3. Rate Classes'!C32, 0) -> Embedded Distributor | D33: =IF(ISERROR(VLOOKUP($B33, '3. Rate Classes'!$C$24:$H$45,6,0)), "", VLOOKUP($B33, '3. Rate Classes'!$C$24:$H$45,6,0)) -> kW | F33: =IF(ISERROR(VLOOKUP($B33,'3. Rate Classes'!$C$24:$N$45, 11,0)), "", VLOOKUP($B33,'3. Rate Classes'!$C$24:$N$45, 11,0)) -> 0 | H33: =VLOOKUP('9. Adj Network to Current WS'!$B33, '4. RRR Data'!$B$27:$M$49,11,0) -> 32083012.56 | J33: =VLOOKUP('9. Adj Network to Current WS'!$B33, '4. RRR Data'!$B$27:$M$49,12,0) -> 71506.52 | L33: 0 | N33: 0 | P33: =IF(ISERROR('7. Current Wholesale'!$P$117*N33), "", '7. Current Wholesale'!$P$117*N33) -> 0 | R33: 0
B34: =IF('3. Rate Classes'!Q33=1,'3. Rate Classes'!C33, 0) -> 0 | D34: =IF(ISERROR(VLOOKUP($B34, '3. Rate Classes'!$C$24:$H$45,6,0)), "", VLOOKUP($B34, '3. Rate Classes'!$C$24:$H$45,6,0)) ->  | F34: =IF(ISERROR(VLOOKUP($B34,'3. Rate Classes'!$C$24:$N$45, 11,0)), "", VLOOKUP($B34,'3. Rate Classes'!$C$24:$N$45, 11,0)) ->  | H34: =VLOOKUP('9. Adj Network to Current WS'!$B34, '4. RRR Data'!$B$27:$M$49,11,0) -> 0 | J34: =VLOOKUP('9. Adj Network to Current WS'!$B34, '4. RRR Data'!$B$27:$M$49,12,0) -> 0 | P34: =IF(ISERROR('7. Current Wholesale'!$P$117*N34), "", '7. Current Wholesale'!$P$117*N34) -> 
B35: =IF('3. Rate Classes'!Q34=1,'3. Rate Classes'!C34, 0) -> 0 | D35: =IF(ISERROR(VLOOKUP($B35, '3. Rate Classes'!$C$24:$H$45,6,0)), "", VLOOKUP($B35, '3. Rate Classes'!$C$24:$H$45,6,0)) ->  | F35: =IF(ISERROR(VLOOKUP($B35,'3. Rate Classes'!$C$24:$N$45, 11,0)), "", VLOOKUP($B35,'3. Rate Classes'!$C$24:$N$45, 11,0)) ->  | H35: =VLOOKUP('9. Adj Network to Current WS'!$B35, '4. RRR Data'!$B$27:$M$49,11,0) -> 0 | J35: =VLOOKUP('9. Adj Network to Current WS'!$B35, '4. RRR Data'!$B$27:$M$49,12,0) -> 0 | P35: =IF(ISERROR('7. Current Wholesale'!$P$117*N35), "", '7. Current Wholesale'!$P$117*N35) -> 
B36: =IF('3. Rate Classes'!Q35=1,'3. Rate Classes'!C35, 0) -> 0 | D36: =IF(ISERROR(VLOOKUP($B36, '3. Rate Classes'!$C$24:$H$45,6,0)), "", VLOOKUP($B36, '3. Rate Classes'!$C$24:$H$45,6,0)) ->  | F36: =IF(ISERROR(VLOOKUP($B36,'3. Rate Classes'!$C$24:$N$45, 11,0)), "", VLOOKUP($B36,'3. Rate Classes'!$C$24:$N$45, 11,0)) ->  | H36: =VLOOKUP('9. Adj Network to Current WS'!$B36, '4. RRR Data'!$B$27:$M$49,11,0) -> 0 | J36: =VLOOKUP('9. Adj Network to Current WS'!$B36, '4. RRR Data'!$B$27:$M$49,12,0) -> 0 | P36: =IF(ISERROR('7. Current Wholesale'!$P$117*N36), "", '7. Current Wholesale'!$P$117*N36) -> 
B37: =IF('3. Rate Classes'!Q36=1,'3. Rate Classes'!C36, 0) -> 0 | D37: =IF(ISERROR(VLOOKUP($B37, '3. Rate Classes'!$C$24:$H$45,6,0)), "", VLOOKUP($B37, '3. Rate Classes'!$C$24:$H$45,6,0)) ->  | F37: =IF(ISERROR(VLOOKUP($B37,'3. Rate Classes'!$C$24:$N$45, 11,0)), "", VLOOKUP($B37,'3. Rate Classes'!$C$24:$N$45, 11,0)) ->  | H37: =VLOOKUP('9. Adj Network to Current WS'!$B37, '4. RRR Data'!$B$27:$M$49,11,0) -> 0 | J37: =VLOOKUP('9. Adj Network to Current WS'!$B37, '4. RRR Data'!$B$27:$M$49,12,0) -> 0 | P37: =IF(ISERROR('7. Current Wholesale'!$P$117*N37), "", '7. Current Wholesale'!$P$117*N37) -> 
B38: =IF('3. Rate Classes'!Q37=1,'3. Rate Classes'!C37, 0) -> 0 | D38: =IF(ISERROR(VLOOKUP($B38, '3. Rate Classes'!$C$24:$H$45,6,0)), "", VLOOKUP($B38, '3. Rate Classes'!$C$24:$H$45,6,0)) ->  | F38: =IF(ISERROR(VLOOKUP($B38,'3. Rate Classes'!$C$24:$N$45, 11,0)), "", VLOOKUP($B38,'3. Rate Classes'!$C$24:$N$45, 11,0)) ->  | H38: =VLOOKUP('9. Adj Network to Current WS'!$B38, '4. RRR Data'!$B$27:$M$49,11,0) -> 0 | J38: =VLOOKUP('9. Adj Network to Current WS'!$B38, '4. RRR Data'!$B$27:$M$49,12,0) -> 0 | P38: =IF(ISERROR('7. Current Wholesale'!$P$117*N38), "", '7. Current Wholesale'!$P$117*N38) -> 
B39: =IF('3. Rate Classes'!Q38=1,'3. Rate Classes'!C38, 0) -> 0 | D39: =IF(ISERROR(VLOOKUP($B39, '3. Rate Classes'!$C$24:$H$45,6,0)), "", VLOOKUP($B39, '3. Rate Classes'!$C$24:$H$45,6,0)) ->  | F39: =IF(ISERROR(VLOOKUP($B39,'3. Rate Classes'!$C$24:$N$45, 11,0)), "", VLOOKUP($B39,'3. Rate Classes'!$C$24:$N$45, 11,0)) ->  | H39: =VLOOKUP('9. Adj Network to Current WS'!$B39, '4. RRR Data'!$B$27:$M$49,11,0) -> 0 | J39: =VLOOKUP('9. Adj Network to Current WS'!$B39, '4. RRR Data'!$B$27:$M$49,12,0) -> 0 | P39: =IF(ISERROR('7. Current Wholesale'!$P$117*N39), "", '7. Current Wholesale'!$P$117*N39) -> 
B40: =IF('3. Rate Classes'!Q39=1,'3. Rate Classes'!C39, 0) -> 0 | D40: =IF(ISERROR(VLOOKUP($B40, '3. Rate Classes'!$C$24:$H$45,6,0)), "", VLOOKUP($B40, '3. Rate Classes'!$C$24:$H$45,6,0)) ->  | F40: =IF(ISERROR(VLOOKUP($B40,'3. Rate Classes'!$C$24:$N$45, 11,0)), "", VLOOKUP($B40,'3. Rate Classes'!$C$24:$N$45, 11,0)) ->  | H40: =VLOOKUP('9. Adj Network to Current WS'!$B40, '4. RRR Data'!$B$27:$M$49,11,0) -> 0 | J40: =VLOOKUP('9. Adj Network to Current WS'!$B40, '4. RRR Data'!$B$27:$M$49,12,0) -> 0 | P40: =IF(ISERROR('7. Current Wholesale'!$P$117*N40), "", '7. Current Wholesale'!$P$117*N40) -> 
B41: =IF('3. Rate Classes'!Q40=1,'3. Rate Classes'!C40, 0) -> 0 | D41: =IF(ISERROR(VLOOKUP($B41, '3. Rate Classes'!$C$24:$H$45,6,0)), "", VLOOKUP($B41, '3. Rate Classes'!$C$24:$H$45,6,0)) ->  | F41: =IF(ISERROR(VLOOKUP($B41,'3. Rate Classes'!$C$24:$N$45, 11,0)), "", VLOOKUP($B41,'3. Rate Classes'!$C$24:$N$45, 11,0)) ->  | H41: =VLOOKUP('9. Adj Network to Current WS'!$B41, '4. RRR Data'!$B$27:$M$49,11,0) -> 0 | J41: =VLOOKUP('9. Adj Network to Current WS'!$B41, '4. RRR Data'!$B$27:$M$49,12,0) -> 0 | P41: =IF(ISERROR('7. Current Wholesale'!$P$117*N41), "", '7. Current Wholesale'!$P$117*N41) -> 
B42: =IF('3. Rate Classes'!Q41=1,'3. Rate Classes'!C41, 0) -> 0 | D42: =IF(ISERROR(VLOOKUP($B42, '3. Rate Classes'!$C$24:$H$45,6,0)), "", VLOOKUP($B42, '3. Rate Classes'!$C$24:$H$45,6,0)) ->  | F42: =IF(ISERROR(VLOOKUP($B42,'3. Rate Classes'!$C$24:$N$45, 11,0)), "", VLOOKUP($B42,'3. Rate Classes'!$C$24:$N$45, 11,0)) ->  | H42: =VLOOKUP('9. Adj Network to Current WS'!$B42, '4. RRR Data'!$B$27:$M$49,11,0) -> 0 | J42: =VLOOKUP('9. Adj Network to Current WS'!$B42, '4. RRR Data'!$B$27:$M$49,12,0) -> 0 | P42: =IF(ISERROR('7. Current Wholesale'!$P$117*N42), "", '7. Current Wholesale'!$P$117*N42) -> 
B43: =IF('3. Rate Classes'!Q42=1,'3. Rate Classes'!C42, 0) -> 0 | D43: =IF(ISERROR(VLOOKUP($B43, '3. Rate Classes'!$C$24:$H$45,6,0)), "", VLOOKUP($B43, '3. Rate Classes'!$C$24:$H$45,6,0)) ->  | F43: =IF(ISERROR(VLOOKUP($B43,'3. Rate Classes'!$C$24:$N$45, 11,0)), "", VLOOKUP($B43,'3. Rate Classes'!$C$24:$N$45, 11,0)) ->  | H43: =VLOOKUP('9. Adj Network to Current WS'!$B43, '4. RRR Data'!$B$27:$M$49,11,0) -> 0 | J43: =VLOOKUP('9. Adj Network to Current WS'!$B43, '4. RRR Data'!$B$27:$M$49,12,0) -> 0 | P43: =IF(ISERROR('7. Current Wholesale'!$P$117*N43), "", '7. Current Wholesale'!$P$117*N43) -> 
B44: =IF('3. Rate Classes'!Q43=1,'3. Rate Classes'!C43, 0) -> 0 | D44: =IF(ISERROR(VLOOKUP($B44, '3. Rate Classes'!$C$24:$H$45,6,0)), "", VLOOKUP($B44, '3. Rate Classes'!$C$24:$H$45,6,0)) ->  | F44: =IF(ISERROR(VLOOKUP($B44,'3. Rate Classes'!$C$24:$N$45, 11,0)), "", VLOOKUP($B44,'3. Rate Classes'!$C$24:$N$45, 11,0)) ->  | H44: =VLOOKUP('9. Adj Network to Current WS'!$B44, '4. RRR Data'!$B$27:$M$49,11,0) -> 0 | J44: =VLOOKUP('9. Adj Network to Current WS'!$B44, '4. RRR Data'!$B$27:$M$49,12,0) -> 0 | P44: =IF(ISERROR('7. Current Wholesale'!$P$117*N44), "", '7. Current Wholesale'!$P$117*N44) -> 
B45: =IF('3. Rate Classes'!Q44=1,'3. Rate Classes'!C44, 0) -> 0 | D45: =IF(ISERROR(VLOOKUP($B45, '3. Rate Classes'!$C$24:$H$45,6,0)), "", VLOOKUP($B45, '3. Rate Classes'!$C$24:$H$45,6,0)) ->  | F45: =IF(ISERROR(VLOOKUP($B45,'3. Rate Classes'!$C$24:$N$45, 11,0)), "", VLOOKUP($B45,'3. Rate Classes'!$C$24:$N$45, 11,0)) ->  | H45: =VLOOKUP('9. Adj Network to Current WS'!$B45, '4. RRR Data'!$B$27:$M$49,11,0) -> 0 | J45: =VLOOKUP('9. Adj Network to Current WS'!$B45, '4. RRR Data'!$B$27:$M$49,12,0) -> 0 | P45: =IF(ISERROR('7. Current Wholesale'!$P$117*N45), "", '7. Current Wholesale'!$P$117*N45) -> 
B46: =IF('3. Rate Classes'!Q45=1,'3. Rate Classes'!C45, 0) -> 0 | D46: =IF(ISERROR(VLOOKUP($B46, '3. Rate Classes'!$C$24:$H$45,6,0)), "", VLOOKUP($B46, '3. Rate Classes'!$C$24:$H$45,6,0)) ->  | F46: =IF(ISERROR(VLOOKUP($B46,'3. Rate Classes'!$C$24:$N$45, 11,0)), "", VLOOKUP($B46,'3. Rate Classes'!$C$24:$N$45, 11,0)) ->  | H46: =VLOOKUP('9. Adj Network to Current WS'!$B46, '4. RRR Data'!$B$27:$M$49,11,0) -> 0 | J46: =VLOOKUP('9. Adj Network to Current WS'!$B46, '4. RRR Data'!$B$27:$M$49,12,0) -> 0 | P46: =IF(ISERROR('7. Current Wholesale'!$P$117*N46), "", '7. Current Wholesale'!$P$117*N46) -> 
L49: =SUM(L25:L46) -> 3201129.267

Sheet 11. Adj Network to Forecast WS
B13: The purpose of this sheet is to update the re-align RTS Network Rates to recover forecast wholesale network costs.
B22: Rate Class | D22: Unit | F22: Adjusted RTSR-Network | H22: Loss Adjusted Billed kWh | J22: Loss Adjusted Billed kW | L22: Billed Amount | N22: Billed Amount % | P22: Forecast Wholesale Billing | R22: Proposed RTSR Network
B25: =IF('3. Rate Classes'!Q24=1,'3. Rate Classes'!C24, 0) -> Residential | D25: =IF(ISERROR(VLOOKUP($B25, '3. Rate Classes'!$C$24:$H$45,6,0)), "", VLOOKUP($B25, '3. Rate Classes'!$C$24:$H$45,6,0)) -> kWh | F25: =VLOOKUP($B25, '9. Adj Network to Current WS'!$B$25:$R$47, 17,0) -> 0.007282175334 | H25: =VLOOKUP('9. Adj Network to Current WS'!$B25, '4. RRR Data'!$B$27:$M$49,11,0) -> 426483388.8 | J25: =VLOOKUP('9. Adj Network to Current WS'!$B25, '4. RRR Data'!$B$27:$M$49,12,0) -> 0 | L25: =IF(F25="", "", IF(D25="kWh", F25*H25, F25*J25)) -> 3105726.815 | N25: =IF(ISERROR(L25/$L$49), "", L25/$L$49) -> 0.3072790934 | P25: =IF(ISERROR('8. Forecast Wholesale'!$F$113*N25), "", '8. Forecast Wholesale'!$F$113*N25) -> 3105726.815 | R25: =IF(D25="","",IF(D25="kWh",IF(H25<>0,P25/H25,),IF(J25<>0,P25/J25,0))) -> 0.007282175334
B26: =IF('3. Rate Classes'!Q25=1,'3. Rate Classes'!C25, 0) -> General Service Less Than 50 kW | D26: =IF(ISERROR(VLOOKUP($B26, '3. Rate Classes'!$C$24:$H$45,6,0)), "", VLOOKUP($B26, '3. Rate Classes'!$C$24:$H$45,6,0)) -> kWh | F26: =VLOOKUP($B26, '9. Adj Network to Current WS'!$B$25:$R$47, 17,0) -> 0.006620159395 | H26: =VLOOKUP('9. Adj Network to Current WS'!$B26, '4. RRR Data'!$B$27:$M$49,11,0) -> 197873137 | J26: =VLOOKUP('9. Adj Network to Current WS'!$B26, '4. RRR Data'!$B$27:$M$49,12,0) -> 0 | L26: =IF(F26="", "", IF(D26="kWh", F26*H26, F26*J26)) -> 1309951.707 | N26: 0.1296059817 | P26: =IF(ISERROR('8. Forecast Wholesale'!$F$113*N26), "", '8. Forecast Wholesale'!$F$113*N26) -> 1309951.707 | R26: 0.006620159395
B27: =IF('3. Rate Classes'!Q26=1,'3. Rate Classes'!C26, 0) -> General Service 50 to 999 kW | D27: =IF(ISERROR(VLOOKUP($B27, '3. Rate Classes'!$C$24:$H$45,6,0)), "", VLOOKUP($B27, '3. Rate Classes'!$C$24:$H$45,6,0)) -> kW | F27: =VLOOKUP($B27, '9. Adj Network to Current WS'!$B$25:$R$47, 17,0) -> 2.703389376 | H27: =VLOOKUP('9. Adj Network to Current WS'!$B27, '4. RRR Data'!$B$27:$M$49,11,0) -> 147002448.9 | J27: =VLOOKUP('9. Adj Network to Current WS'!$B27, '4. RRR Data'!$B$27:$M$49,12,0) -> 472184.1712 | L27: 1276497.672 | N27: 0.1262960559 | P27: =IF(ISERROR('8. Forecast Wholesale'!$F$113*N27), "", '8. Forecast Wholesale'!$F$113*N27) -> 1276497.672 | R27: 2.703389376
B28: =IF('3. Rate Classes'!Q27=1,'3. Rate Classes'!C27, 0) -> General Service 50 to 999 kW - Interval Metered | D28: =IF(ISERROR(VLOOKUP($B28, '3. Rate Classes'!$C$24:$H$45,6,0)), "", VLOOKUP($B28, '3. Rate Classes'!$C$24:$H$45,6,0)) -> kW | F28: =VLOOKUP($B28, '9. Adj Network to Current WS'!$B$25:$R$47, 17,0) -> 2.871352277 | H28: =VLOOKUP('9. Adj Network to Current WS'!$B28, '4. RRR Data'!$B$27:$M$49,11,0) -> 310588134.3 | J28: =VLOOKUP('9. Adj Network to Current WS'!$B28, '4. RRR Data'!$B$27:$M$49,12,0) -> 788826.16 | L28: 2264997.791 | N28: 0.2240977746 | P28: =IF(ISERROR('8. Forecast Wholesale'!$F$113*N28), "", '8. Forecast Wholesale'!$F$113*N28) -> 2264997.791 | R28: 2.871352277
B29: =IF('3. Rate Classes'!Q28=1,'3. Rate Classes'!C28, 0) -> General Service 1,000 to 4,999 kW - Interval Meters | D29: =IF(ISERROR(VLOOKUP($B29, '3. Rate Classes'!$C$24:$H$45,6,0)), "", VLOOKUP($B29, '3. Rate Classes'!$C$24:$H$45,6,0)) -> kW | F29: =VLOOKUP($B29, '9. Adj Network to Current WS'!$B$25:$R$47, 17,0) -> 2.867663902 | H29: =VLOOKUP('9. Adj Network to Current WS'!$B29, '4. RRR Data'!$B$27:$M$49,11,0) -> 258900453.5 | J29: =VLOOKUP('9. Adj Network to Current WS'!$B29, '4. RRR Data'!$B$27:$M$49,12,0) -> 546176.81 | L29: 1566251.522 | N29: 0.1549641602 | P29: =IF(ISERROR('8. Forecast Wholesale'!$F$113*N29), "", '8. Forecast Wholesale'!$F$113*N29) -> 1566251.522 | R29: 2.867663902
B30: =IF('3. Rate Classes'!Q29=1,'3. Rate Classes'!C29, 0) -> Large Use | D30: =IF(ISERROR(VLOOKUP($B30, '3. Rate Classes'!$C$24:$H$45,6,0)), "", VLOOKUP($B30, '3. Rate Classes'!$C$24:$H$45,6,0)) -> kW | F30: =VLOOKUP($B30, '9. Adj Network to Current WS'!$B$25:$R$47, 17,0) -> 3.179189689 | H30: =VLOOKUP('9. Adj Network to Current WS'!$B30, '4. RRR Data'!$B$27:$M$49,11,0) -> 86740766.78 | J30: =VLOOKUP('9. Adj Network to Current WS'!$B30, '4. RRR Data'!$B$27:$M$49,12,0) -> 165061.0695 | L30: 524760.45 | N30: 0.05191954249 | P30: =IF(ISERROR('8. Forecast Wholesale'!$F$113*N30), "", '8. Forecast Wholesale'!$F$113*N30) -> 524760.45 | R30: 3.179189689
B31: =IF('3. Rate Classes'!Q30=1,'3. Rate Classes'!C30, 0) -> Unmetered Scattered Load | D31: =IF(ISERROR(VLOOKUP($B31, '3. Rate Classes'!$C$24:$H$45,6,0)), "", VLOOKUP($B31, '3. Rate Classes'!$C$24:$H$45,6,0)) -> kWh | F31: =VLOOKUP($B31, '9. Adj Network to Current WS'!$B$25:$R$47, 17,0) -> 0.006620159395 | H31: =VLOOKUP('9. Adj Network to Current WS'!$B31, '4. RRR Data'!$B$27:$M$49,11,0) -> 2340908.625 | J31: =VLOOKUP('9. Adj Network to Current WS'!$B31, '4. RRR Data'!$B$27:$M$49,12,0) -> 0 | L31: 15497.18822 | N31: 0.00153328423 | P31: =IF(ISERROR('8. Forecast Wholesale'!$F$113*N31), "", '8. Forecast Wholesale'!$F$113*N31) -> 15497.18822 | R31: 0.006620159395
B32: =IF('3. Rate Classes'!Q31=1,'3. Rate Classes'!C31, 0) -> Street Lighting | D32: =IF(ISERROR(VLOOKUP($B32, '3. Rate Classes'!$C$24:$H$45,6,0)), "", VLOOKUP($B32, '3. Rate Classes'!$C$24:$H$45,6,0)) -> kW | F32: =VLOOKUP($B32, '9. Adj Network to Current WS'!$B$25:$R$47, 17,0) -> 2.039103667 | H32: =VLOOKUP('9. Adj Network to Current WS'!$B32, '4. RRR Data'!$B$27:$M$49,11,0) -> 9744476.993 | J32: =VLOOKUP('9. Adj Network to Current WS'!$B32, '4. RRR Data'!$B$27:$M$49,12,0) -> 21334.086 | L32: 43502.413 | N32: 0.004304107484 | P32: =IF(ISERROR('8. Forecast Wholesale'!$F$113*N32), "", '8. Forecast Wholesale'!$F$113*N32) -> 43502.413 | R32: 2.039103667
B33: =IF('3. Rate Classes'!Q32=1,'3. Rate Classes'!C32, 0) -> Embedded Distributor | D33: =IF(ISERROR(VLOOKUP($B33, '3. Rate Classes'!$C$24:$H$45,6,0)), "", VLOOKUP($B33, '3. Rate Classes'!$C$24:$H$45,6,0)) -> kW | F33: =VLOOKUP($B33, '9. Adj Network to Current WS'!$B$25:$R$47, 17,0) -> 0 | H33: =VLOOKUP('9. Adj Network to Current WS'!$B33, '4. RRR Data'!$B$27:$M$49,11,0) -> 32083012.56 | J33: =VLOOKUP('9. Adj Network to Current WS'!$B33, '4. RRR Data'!$B$27:$M$49,12,0) -> 71506.52 | L33: 0 | N33: 0 | P33: =IF(ISERROR('8. Forecast Wholesale'!$F$113*N33), "", '8. Forecast Wholesale'!$F$113*N33) -> 0 | R33: 0
B34: =IF('3. Rate Classes'!Q33=1,'3. Rate Classes'!C33, 0) -> 0 | D34: =IF(ISERROR(VLOOKUP($B34, '3. Rate Classes'!$C$24:$H$45,6,0)), "", VLOOKUP($B34, '3. Rate Classes'!$C$24:$H$45,6,0)) ->  | F34: =VLOOKUP($B34, '9. Adj Network to Current WS'!$B$25:$R$47, 17,0) ->  | H34: =VLOOKUP('9. Adj Network to Current WS'!$B34, '4. RRR Data'!$B$27:$M$49,11,0) -> 0 | J34: =VLOOKUP('9. Adj Network to Current WS'!$B34, '4. RRR Data'!$B$27:$M$49,12,0) -> 0 | P34: =IF(ISERROR('8. Forecast Wholesale'!$F$113*N34), "", '8. Forecast Wholesale'!$F$113*N34) -> 
B35: =IF('3. Rate Classes'!Q34=1,'3. Rate Classes'!C34, 0) -> 0 | D35: =IF(ISERROR(VLOOKUP($B35, '3. Rate Classes'!$C$24:$H$45,6,0)), "", VLOOKUP($B35, '3. Rate Classes'!$C$24:$H$45,6,0)) ->  | F35: =VLOOKUP($B35, '9. Adj Network to Current WS'!$B$25:$R$47, 17,0) ->  | H35: =VLOOKUP('9. Adj Network to Current WS'!$B35, '4. RRR Data'!$B$27:$M$49,11,0) -> 0 | J35: =VLOOKUP('9. Adj Network to Current WS'!$B35, '4. RRR Data'!$B$27:$M$49,12,0) -> 0 | P35: =IF(ISERROR('8. Forecast Wholesale'!$F$113*N35), "", '8. Forecast Wholesale'!$F$113*N35) -> 
B36: =IF('3. Rate Classes'!Q35=1,'3. Rate Classes'!C35, 0) -> 0 | D36: =IF(ISERROR(VLOOKUP($B36, '3. Rate Classes'!$C$24:$H$45,6,0)), "", VLOOKUP($B36, '3. Rate Classes'!$C$24:$H$45,6,0)) ->  | F36: =VLOOKUP($B36, '9. Adj Network to Current WS'!$B$25:$R$47, 17,0) ->  | H36: =VLOOKUP('9. Adj Network to Current WS'!$B36, '4. RRR Data'!$B$27:$M$49,11,0) -> 0 | J36: =VLOOKUP('9. Adj Network to Current WS'!$B36, '4. RRR Data'!$B$27:$M$49,12,0) -> 0 | P36: =IF(ISERROR('8. Forecast Wholesale'!$F$113*N36), "", '8. Forecast Wholesale'!$F$113*N36) -> 
B37: =IF('3. Rate Classes'!Q36=1,'3. Rate Classes'!C36, 0) -> 0 | D37: =IF(ISERROR(VLOOKUP($B37, '3. Rate Classes'!$C$24:$H$45,6,0)), "", VLOOKUP($B37, '3. Rate Classes'!$C$24:$H$45,6,0)) ->  | F37: =VLOOKUP($B37, '9. Adj Network to Current WS'!$B$25:$R$47, 17,0) ->  | H37: =VLOOKUP('9. Adj Network to Current WS'!$B37, '4. RRR Data'!$B$27:$M$49,11,0) -> 0 | J37: =VLOOKUP('9. Adj Network to Current WS'!$B37, '4. RRR Data'!$B$27:$M$49,12,0) -> 0 | P37: =IF(ISERROR('8. Forecast Wholesale'!$F$113*N37), "", '8. Forecast Wholesale'!$F$113*N37) -> 
B38: =IF('3. Rate Classes'!Q37=1,'3. Rate Classes'!C37, 0) -> 0 | D38: =IF(ISERROR(VLOOKUP($B38, '3. Rate Classes'!$C$24:$H$45,6,0)), "", VLOOKUP($B38, '3. Rate Classes'!$C$24:$H$45,6,0)) ->  | F38: =VLOOKUP($B38, '9. Adj Network to Current WS'!$B$25:$R$47, 17,0) ->  | H38: =VLOOKUP('9. Adj Network to Current WS'!$B38, '4. RRR Data'!$B$27:$M$49,11,0) -> 0 | J38: =VLOOKUP('9. Adj Network to Current WS'!$B38, '4. RRR Data'!$B$27:$M$49,12,0) -> 0 | P38: =IF(ISERROR('8. Forecast Wholesale'!$F$113*N38), "", '8. Forecast Wholesale'!$F$113*N38) -> 
B39: =IF('3. Rate Classes'!Q38=1,'3. Rate Classes'!C38, 0) -> 0 | D39: =IF(ISERROR(VLOOKUP($B39, '3. Rate Classes'!$C$24:$H$45,6,0)), "", VLOOKUP($B39, '3. Rate Classes'!$C$24:$H$45,6,0)) ->  | F39: =VLOOKUP($B39, '9. Adj Network to Current WS'!$B$25:$R$47, 17,0) ->  | H39: =VLOOKUP('9. Adj Network to Current WS'!$B39, '4. RRR Data'!$B$27:$M$49,11,0) -> 0 | J39: =VLOOKUP('9. Adj Network to Current WS'!$B39, '4. RRR Data'!$B$27:$M$49,12,0) -> 0 | P39: =IF(ISERROR('8. Forecast Wholesale'!$F$113*N39), "", '8. Forecast Wholesale'!$F$113*N39) -> 
B40: =IF('3. Rate Classes'!Q39=1,'3. Rate Classes'!C39, 0) -> 0 | D40: =IF(ISERROR(VLOOKUP($B40, '3. Rate Classes'!$C$24:$H$45,6,0)), "", VLOOKUP($B40, '3. Rate Classes'!$C$24:$H$45,6,0)) ->  | F40: =VLOOKUP($B40, '9. Adj Network to Current WS'!$B$25:$R$47, 17,0) ->  | H40: =VLOOKUP('9. Adj Network to Current WS'!$B40, '4. RRR Data'!$B$27:$M$49,11,0) -> 0 | J40: =VLOOKUP('9. Adj Network to Current WS'!$B40, '4. RRR Data'!$B$27:$M$49,12,0) -> 0 | P40: =IF(ISERROR('8. Forecast Wholesale'!$F$113*N40), "", '8. Forecast Wholesale'!$F$113*N40) -> 
B41: =IF('3. Rate Classes'!Q40=1,'3. Rate Classes'!C40, 0) -> 0 | D41: =IF(ISERROR(VLOOKUP($B41, '3. Rate Classes'!$C$24:$H$45,6,0)), "", VLOOKUP($B41, '3. Rate Classes'!$C$24:$H$45,6,0)) ->  | F41: =VLOOKUP($B41, '9. Adj Network to Current WS'!$B$25:$R$47, 17,0) ->  | H41: =VLOOKUP('9. Adj Network to Current WS'!$B41, '4. RRR Data'!$B$27:$M$49,11,0) -> 0 | J41: =VLOOKUP('9. Adj Network to Current WS'!$B41, '4. RRR Data'!$B$27:$M$49,12,0) -> 0 | P41: =IF(ISERROR('8. Forecast Wholesale'!$F$113*N41), "", '8. Forecast Wholesale'!$F$113*N41) -> 
B42: =IF('3. Rate Classes'!Q41=1,'3. Rate Classes'!C41, 0) -> 0 | D42: =IF(ISERROR(VLOOKUP($B42, '3. Rate Classes'!$C$24:$H$45,6,0)), "", VLOOKUP($B42, '3. Rate Classes'!$C$24:$H$45,6,0)) ->  | F42: =VLOOKUP($B42, '9. Adj Network to Current WS'!$B$25:$R$47, 17,0) ->  | H42: =VLOOKUP('9. Adj Network to Current WS'!$B42, '4. RRR Data'!$B$27:$M$49,11,0) -> 0 | J42: =VLOOKUP('9. Adj Network to Current WS'!$B42, '4. RRR Data'!$B$27:$M$49,12,0) -> 0 | P42: =IF(ISERROR('8. Forecast Wholesale'!$F$113*N42), "", '8. Forecast Wholesale'!$F$113*N42) -> 
B43: =IF('3. Rate Classes'!Q42=1,'3. Rate Classes'!C42, 0) -> 0 | D43: =IF(ISERROR(VLOOKUP($B43, '3. Rate Classes'!$C$24:$H$45,6,0)), "", VLOOKUP($B43, '3. Rate Classes'!$C$24:$H$45,6,0)) ->  | F43: =VLOOKUP($B43, '9. Adj Network to Current WS'!$B$25:$R$47, 17,0) ->  | H43: =VLOOKUP('9. Adj Network to Current WS'!$B43, '4. RRR Data'!$B$27:$M$49,11,0) -> 0 | J43: =VLOOKUP('9. Adj Network to Current WS'!$B43, '4. RRR Data'!$B$27:$M$49,12,0) -> 0 | P43: =IF(ISERROR('8. Forecast Wholesale'!$F$113*N43), "", '8. Forecast Wholesale'!$F$113*N43) -> 
B44: =IF('3. Rate Classes'!Q43=1,'3. Rate Classes'!C43, 0) -> 0 | D44: =IF(ISERROR(VLOOKUP($B44, '3. Rate Classes'!$C$24:$H$45,6,0)), "", VLOOKUP($B44, '3. Rate Classes'!$C$24:$H$45,6,0)) ->  | F44: =VLOOKUP($B44, '9. Adj Network to Current WS'!$B$25:$R$47, 17,0) ->  | H44: =VLOOKUP('9. Adj Network to Current WS'!$B44, '4. RRR Data'!$B$27:$M$49,11,0) -> 0 | J44: =VLOOKUP('9. Adj Network to Current WS'!$B44, '4. RRR Data'!$B$27:$M$49,12,0) -> 0 | P44: =IF(ISERROR('8. Forecast Wholesale'!$F$113*N44), "", '8. Forecast Wholesale'!$F$113*N44) -> 
B45: =IF('3. Rate Classes'!Q44=1,'3. Rate Classes'!C44, 0) -> 0 | D45: =IF(ISERROR(VLOOKUP($B45, '3. Rate Classes'!$C$24:$H$45,6,0)), "", VLOOKUP($B45, '3. Rate Classes'!$C$24:$H$45,6,0)) ->  | F45: =VLOOKUP($B45, '9. Adj Network to Current WS'!$B$25:$R$47, 17,0) ->  | H45: =VLOOKUP('9. Adj Network to Current WS'!$B45, '4. RRR Data'!$B$27:$M$49,11,0) -> 0 | J45: =VLOOKUP('9. Adj Network to Current WS'!$B45, '4. RRR Data'!$B$27:$M$49,12,0) -> 0 | P45: =IF(ISERROR('8. Forecast Wholesale'!$F$113*N45), "", '8. Forecast Wholesale'!$F$113*N45) -> 
B46: =IF('3. Rate Classes'!Q45=1,'3. Rate Classes'!C45, 0) -> 0 | D46: =IF(ISERROR(VLOOKUP($B46, '3. Rate Classes'!$C$24:$H$45,6,0)), "", VLOOKUP($B46, '3. Rate Classes'!$C$24:$H$45,6,0)) ->  | F46: =VLOOKUP($B46, '9. Adj Network to Current WS'!$B$25:$R$47, 17,0) ->  | H46: =VLOOKUP('9. Adj Network to Current WS'!$B46, '4. RRR Data'!$B$27:$M$49,11,0) -> 0 | J46: =VLOOKUP('9. Adj Network to Current WS'!$B46, '4. RRR Data'!$B$27:$M$49,12,0) -> 0 | P46: =IF(ISERROR('8. Forecast Wholesale'!$F$113*N46), "", '8. Forecast Wholesale'!$F$113*N46) -> 
L49: =SUM(L25:L46) -> 10107185.56

Sheet 12. Adj Conn. to Forecast WS
B13: The purpose of this sheet is to update the re-aligned RTS Connection Rates to recover forecast wholesale connection costs.
B19: Rate Class
B22: Rate Class | D22: Unit | F22: Adjusted RTSR-Connection | H22: Loss Adjusted Billed kWh | J22: Loss Adjusted Billed kW | L22: Billed Amount | N22: Billed Amount % | P22: Forecast Wholesale Billing | R22: Proposed RTSR Connection
B25: =IF('3. Rate Classes'!Q24=1,'3. Rate Classes'!C24, 0) -> Residential | D25: =IF(ISERROR(VLOOKUP($B25, '3. Rate Classes'!$C$24:$H$45,6,0)), "", VLOOKUP($B25, '3. Rate Classes'!$C$24:$H$45,6,0)) -> kWh | F25: =VLOOKUP($B25, '10. Adj Conn. to Current WS'!$B$25:$R$47, 17,0) -> 0.002027829972 | H25: =VLOOKUP('9. Adj Network to Current WS'!$B25, '4. RRR Data'!$B$27:$M$49,11,0) -> 426483388.8 | J25: =VLOOKUP('9. Adj Network to Current WS'!$B25, '4. RRR Data'!$B$27:$M$49,12,0) -> 0 | L25: =IF(F25="", "", IF(D25="kWh", F25*H25, F25*J25)) -> 864835.7986 | N25: =IF(ISERROR(L25/$L$49), "", L25/$L$49) -> 0.2931038946 | P25: =IF(ISERROR('8. Forecast Wholesale'!$P$117*N25), "", '8. Forecast Wholesale'!$P$117*N25) -> 864835.7986 | R25: =IF(D25="","",IF(D25="kWh",IF(H25<>0,P25/H25,),IF(J25<>0,P25/J25,0))) -> 0.002027829972
B26: =IF('3. Rate Classes'!Q25=1,'3. Rate Classes'!C25, 0) -> General Service Less Than 50 kW | D26: =IF(ISERROR(VLOOKUP($B26, '3. Rate Classes'!$C$24:$H$45,6,0)), "", VLOOKUP($B26, '3. Rate Classes'!$C$24:$H$45,6,0)) -> kWh | F26: =VLOOKUP($B26, '10. Adj Conn. to Current WS'!$B$25:$R$47, 17,0) -> 0.001843481793 | H26: =VLOOKUP('9. Adj Network to Current WS'!$B26, '4. RRR Data'!$B$27:$M$49,11,0) -> 197873137 | J26: =VLOOKUP('9. Adj Network to Current WS'!$B26, '4. RRR Data'!$B$27:$M$49,12,0) -> 0 | L26: 364775.5254 | N26: 0.1236270831 | P26: =IF(ISERROR('8. Forecast Wholesale'!$P$117*N26), "", '8. Forecast Wholesale'!$P$117*N26) -> 364775.5254 | R26: 0.001843481793
B27: =IF('3. Rate Classes'!Q26=1,'3. Rate Classes'!C26, 0) -> General Service 50 to 999 kW | D27: =IF(ISERROR(VLOOKUP($B27, '3. Rate Classes'!$C$24:$H$45,6,0)), "", VLOOKUP($B27, '3. Rate Classes'!$C$24:$H$45,6,0)) -> kW | F27: =VLOOKUP($B27, '10. Adj Conn. to Current WS'!$B$25:$R$47, 17,0) -> 0.7267005228 | H27: =VLOOKUP('9. Adj Network to Current WS'!$B27, '4. RRR Data'!$B$27:$M$49,11,0) -> 147002448.9 | J27: =VLOOKUP('9. Adj Network to Current WS'!$B27, '4. RRR Data'!$B$27:$M$49,12,0) -> 472184.1712 | L27: 343136.4841 | N27: 0.1162933357 | P27: =IF(ISERROR('8. Forecast Wholesale'!$P$117*N27), "", '8. Forecast Wholesale'!$P$117*N27) -> 343136.4841 | R27: 0.7267005228
B28: =IF('3. Rate Classes'!Q27=1,'3. Rate Classes'!C27, 0) -> General Service 50 to 999 kW - Interval Metered | D28: =IF(ISERROR(VLOOKUP($B28, '3. Rate Classes'!$C$24:$H$45,6,0)), "", VLOOKUP($B28, '3. Rate Classes'!$C$24:$H$45,6,0)) -> kW | F28: =VLOOKUP($B28, '10. Adj Conn. to Current WS'!$B$25:$R$47, 17,0) -> 0.9077304349 | H28: =VLOOKUP('9. Adj Network to Current WS'!$B28, '4. RRR Data'!$B$27:$M$49,11,0) -> 310588134.3 | J28: =VLOOKUP('9. Adj Network to Current WS'!$B28, '4. RRR Data'!$B$27:$M$49,12,0) -> 788826.16 | L28: 716041.5133 | N28: 0.2426756115 | P28: =IF(ISERROR('8. Forecast Wholesale'!$P$117*N28), "", '8. Forecast Wholesale'!$P$117*N28) -> 716041.5133 | R28: 0.9077304349
B29: =IF('3. Rate Classes'!Q28=1,'3. Rate Classes'!C28, 0) -> General Service 1,000 to 4,999 kW - Interval Meters | D29: =IF(ISERROR(VLOOKUP($B29, '3. Rate Classes'!$C$24:$H$45,6,0)), "", VLOOKUP($B29, '3. Rate Classes'!$C$24:$H$45,6,0)) -> kW | F29: =VLOOKUP($B29, '10. Adj Conn. to Current WS'!$B$25:$R$47, 17,0) -> 0.9066243458 | H29: =VLOOKUP('9. Adj Network to Current WS'!$B29, '4. RRR Data'!$B$27:$M$49,11,0) -> 258900453.5 | J29: =VLOOKUP('9. Adj Network to Current WS'!$B29, '4. RRR Data'!$B$27:$M$49,12,0) -> 546176.81 | L29: 495177.1931 | N29: 0.1678218733 | P29: =IF(ISERROR('8. Forecast Wholesale'!$P$117*N29), "", '8. Forecast Wholesale'!$P$117*N29) -> 495177.1931 | R29: 0.9066243458
B30: =IF('3. Rate Classes'!Q29=1,'3. Rate Classes'!C29, 0) -> Large Use | D30: =IF(ISERROR(VLOOKUP($B30, '3. Rate Classes'!$C$24:$H$45,6,0)), "", VLOOKUP($B30, '3. Rate Classes'!$C$24:$H$45,6,0)) -> kW | F30: =VLOOKUP($B30, '10. Adj Conn. to Current WS'!$B$25:$R$47, 17,0) -> 0.9108643539 | H30: =VLOOKUP('9. Adj Network to Current WS'!$B30, '4. RRR Data'!$B$27:$M$49,11,0) -> 86740766.78 | J30: =VLOOKUP('9. Adj Network to Current WS'!$B30, '4. RRR Data'!$B$27:$M$49,12,0) -> 165061.0695 | L30: 150348.2444 | N30: 0.05095493971 | P30: =IF(ISERROR('8. Forecast Wholesale'!$P$117*N30), "", '8. Forecast Wholesale'!$P$117*N30) -> 150348.2444 | R30: 0.9108643539
B31: =IF('3. Rate Classes'!Q30=1,'3. Rate Classes'!C30, 0) -> Unmetered Scattered Load | D31: =IF(ISERROR(VLOOKUP($B31, '3. Rate Classes'!$C$24:$H$45,6,0)), "", VLOOKUP($B31, '3. Rate Classes'!$C$24:$H$45,6,0)) -> kWh | F31: =VLOOKUP($B31, '10. Adj Conn. to Current WS'!$B$25:$R$47, 17,0) -> 0.001843481793 | H31: =VLOOKUP('9. Adj Network to Current WS'!$B31, '4. RRR Data'!$B$27:$M$49,11,0) -> 2340908.625 | J31: =VLOOKUP('9. Adj Network to Current WS'!$B31, '4. RRR Data'!$B$27:$M$49,12,0) -> 0 | L31: 4315.422429 | N31: 0.001462551762 | P31: =IF(ISERROR('8. Forecast Wholesale'!$P$117*N31), "", '8. Forecast Wholesale'!$P$117*N31) -> 4315.422429 | R31: 0.001843481793
B32: =IF('3. Rate Classes'!Q31=1,'3. Rate Classes'!C31, 0) -> Street Lighting | D32: =IF(ISERROR(VLOOKUP($B32, '3. Rate Classes'!$C$24:$H$45,6,0)), "", VLOOKUP($B32, '3. Rate Classes'!$C$24:$H$45,6,0)) -> kW | F32: =VLOOKUP($B32, '10. Adj Conn. to Current WS'!$B$25:$R$47, 17,0) -> 0.5616167282 | H32: =VLOOKUP('9. Adj Network to Current WS'!$B32, '4. RRR Data'!$B$27:$M$49,11,0) -> 9744476.993 | J32: =VLOOKUP('9. Adj Network to Current WS'!$B32, '4. RRR Data'!$B$27:$M$49,12,0) -> 21334.086 | L32: 11981.57958 | N32: 0.004060710304 | P32: =IF(ISERROR('8. Forecast Wholesale'!$P$117*N32), "", '8. Forecast Wholesale'!$P$117*N32) -> 11981.57958 | R32: 0.5616167282
B33: =IF('3. Rate Classes'!Q32=1,'3. Rate Classes'!C32, 0) -> Embedded Distributor | D33: =IF(ISERROR(VLOOKUP($B33, '3. Rate Classes'!$C$24:$H$45,6,0)), "", VLOOKUP($B33, '3. Rate Classes'!$C$24:$H$45,6,0)) -> kW | F33: =VLOOKUP($B33, '10. Adj Conn. to Current WS'!$B$25:$R$47, 17,0) -> 0 | H33: =VLOOKUP('9. Adj Network to Current WS'!$B33, '4. RRR Data'!$B$27:$M$49,11,0) -> 32083012.56 | J33: =VLOOKUP('9. Adj Network to Current WS'!$B33, '4. RRR Data'!$B$27:$M$49,12,0) -> 71506.52 | L33: 0 | N33: 0 | P33: =IF(ISERROR('8. Forecast Wholesale'!$P$117*N33), "", '8. Forecast Wholesale'!$P$117*N33) -> 0 | R33: 0
B34: =IF('3. Rate Classes'!Q33=1,'3. Rate Classes'!C33, 0) -> 0 | D34: =IF(ISERROR(VLOOKUP($B34, '3. Rate Classes'!$C$24:$H$45,6,0)), "", VLOOKUP($B34, '3. Rate Classes'!$C$24:$H$45,6,0)) ->  | F34: =VLOOKUP($B34, '10. Adj Conn. to Current WS'!$B$25:$R$47, 17,0) ->  | H34: =VLOOKUP('9. Adj Network to Current WS'!$B34, '4. RRR Data'!$B$27:$M$49,11,0) -> 0 | J34: =VLOOKUP('9. Adj Network to Current WS'!$B34, '4. RRR Data'!$B$27:$M$49,12,0) -> 0 | P34: =IF(ISERROR('8. Forecast Wholesale'!$P$117*N34), "", '8. Forecast Wholesale'!$P$117*N34) -> 
B35: =IF('3. Rate Classes'!Q34=1,'3. Rate Classes'!C34, 0) -> 0 | D35: =IF(ISERROR(VLOOKUP($B35, '3. Rate Classes'!$C$24:$H$45,6,0)), "", VLOOKUP($B35, '3. Rate Classes'!$C$24:$H$45,6,0)) ->  | F35: =VLOOKUP($B35, '10. Adj Conn. to Current WS'!$B$25:$R$47, 17,0) ->  | H35: =VLOOKUP('9. Adj Network to Current WS'!$B35, '4. RRR Data'!$B$27:$M$49,11,0) -> 0 | J35: =VLOOKUP('9. Adj Network to Current WS'!$B35, '4. RRR Data'!$B$27:$M$49,12,0) -> 0 | P35: =IF(ISERROR('8. Forecast Wholesale'!$P$117*N35), "", '8. Forecast Wholesale'!$P$117*N35) -> 
B36: =IF('3. Rate Classes'!Q35=1,'3. Rate Classes'!C35, 0) -> 0 | D36: =IF(ISERROR(VLOOKUP($B36, '3. Rate Classes'!$C$24:$H$45,6,0)), "", VLOOKUP($B36, '3. Rate Classes'!$C$24:$H$45,6,0)) ->  | F36: =VLOOKUP($B36, '10. Adj Conn. to Current WS'!$B$25:$R$47, 17,0) ->  | H36: =VLOOKUP('9. Adj Network to Current WS'!$B36, '4. RRR Data'!$B$27:$M$49,11,0) -> 0 | J36: =VLOOKUP('9. Adj Network to Current WS'!$B36, '4. RRR Data'!$B$27:$M$49,12,0) -> 0 | P36: =IF(ISERROR('8. Forecast Wholesale'!$P$117*N36), "", '8. Forecast Wholesale'!$P$117*N36) -> 
B37: =IF('3. Rate Classes'!Q36=1,'3. Rate Classes'!C36, 0) -> 0 | D37: =IF(ISERROR(VLOOKUP($B37, '3. Rate Classes'!$C$24:$H$45,6,0)), "", VLOOKUP($B37, '3. Rate Classes'!$C$24:$H$45,6,0)) ->  | F37: =VLOOKUP($B37, '10. Adj Conn. to Current WS'!$B$25:$R$47, 17,0) ->  | H37: =VLOOKUP('9. Adj Network to Current WS'!$B37, '4. RRR Data'!$B$27:$M$49,11,0) -> 0 | J37: =VLOOKUP('9. Adj Network to Current WS'!$B37, '4. RRR Data'!$B$27:$M$49,12,0) -> 0 | P37: =IF(ISERROR('8. Forecast Wholesale'!$P$117*N37), "", '8. Forecast Wholesale'!$P$117*N37) -> 
B38: =IF('3. Rate Classes'!Q37=1,'3. Rate Classes'!C37, 0) -> 0 | D38: =IF(ISERROR(VLOOKUP($B38, '3. Rate Classes'!$C$24:$H$45,6,0)), "", VLOOKUP($B38, '3. Rate Classes'!$C$24:$H$45,6,0)) ->  | F38: =VLOOKUP($B38, '10. Adj Conn. to Current WS'!$B$25:$R$47, 17,0) ->  | H38: =VLOOKUP('9. Adj Network to Current WS'!$B38, '4. RRR Data'!$B$27:$M$49,11,0) -> 0 | J38: =VLOOKUP('9. Adj Network to Current WS'!$B38, '4. RRR Data'!$B$27:$M$49,12,0) -> 0 | P38: =IF(ISERROR('8. Forecast Wholesale'!$P$117*N38), "", '8. Forecast Wholesale'!$P$117*N38) -> 
B39: =IF('3. Rate Classes'!Q38=1,'3. Rate Classes'!C38, 0) -> 0 | D39: =IF(ISERROR(VLOOKUP($B39, '3. Rate Classes'!$C$24:$H$45,6,0)), "", VLOOKUP($B39, '3. Rate Classes'!$C$24:$H$45,6,0)) ->  | F39: =VLOOKUP($B39, '10. Adj Conn. to Current WS'!$B$25:$R$47, 17,0) ->  | H39: =VLOOKUP('9. Adj Network to Current WS'!$B39, '4. RRR Data'!$B$27:$M$49,11,0) -> 0 | J39: =VLOOKUP('9. Adj Network to Current WS'!$B39, '4. RRR Data'!$B$27:$M$49,12,0) -> 0 | P39: =IF(ISERROR('8. Forecast Wholesale'!$P$117*N39), "", '8. Forecast Wholesale'!$P$117*N39) -> 
B40: =IF('3. Rate Classes'!Q39=1,'3. Rate Classes'!C39, 0) -> 0 | D40: =IF(ISERROR(VLOOKUP($B40, '3. Rate Classes'!$C$24:$H$45,6,0)), "", VLOOKUP($B40, '3. Rate Classes'!$C$24:$H$45,6,0)) ->  | F40: =VLOOKUP($B40, '10. Adj Conn. to Current WS'!$B$25:$R$47, 17,0) ->  | H40: =VLOOKUP('9. Adj Network to Current WS'!$B40, '4. RRR Data'!$B$27:$M$49,11,0) -> 0 | J40: =VLOOKUP('9. Adj Network to Current WS'!$B40, '4. RRR Data'!$B$27:$M$49,12,0) -> 0 | P40: =IF(ISERROR('8. Forecast Wholesale'!$P$117*N40), "", '8. Forecast Wholesale'!$P$117*N40) -> 
B41: =IF('3. Rate Classes'!Q40=1,'3. Rate Classes'!C40, 0) -> 0 | D41: =IF(ISERROR(VLOOKUP($B41, '3. Rate Classes'!$C$24:$H$45,6,0)), "", VLOOKUP($B41, '3. Rate Classes'!$C$24:$H$45,6,0)) ->  | F41: =VLOOKUP($B41, '10. Adj Conn. to Current WS'!$B$25:$R$47, 17,0) ->  | H41: =VLOOKUP('9. Adj Network to Current WS'!$B41, '4. RRR Data'!$B$27:$M$49,11,0) -> 0 | J41: =VLOOKUP('9. Adj Network to Current WS'!$B41, '4. RRR Data'!$B$27:$M$49,12,0) -> 0 | P41: =IF(ISERROR('8. Forecast Wholesale'!$P$117*N41), "", '8. Forecast Wholesale'!$P$117*N41) -> 
B42: =IF('3. Rate Classes'!Q41=1,'3. Rate Classes'!C41, 0) -> 0 | D42: =IF(ISERROR(VLOOKUP($B42, '3. Rate Classes'!$C$24:$H$45,6,0)), "", VLOOKUP($B42, '3. Rate Classes'!$C$24:$H$45,6,0)) ->  | F42: =VLOOKUP($B42, '10. Adj Conn. to Current WS'!$B$25:$R$47, 17,0) ->  | H42: =VLOOKUP('9. Adj Network to Current WS'!$B42, '4. RRR Data'!$B$27:$M$49,11,0) -> 0 | J42: =VLOOKUP('9. Adj Network to Current WS'!$B42, '4. RRR Data'!$B$27:$M$49,12,0) -> 0 | P42: =IF(ISERROR('8. Forecast Wholesale'!$P$117*N42), "", '8. Forecast Wholesale'!$P$117*N42) -> 
B43: =IF('3. Rate Classes'!Q42=1,'3. Rate Classes'!C42, 0) -> 0 | D43: =IF(ISERROR(VLOOKUP($B43, '3. Rate Classes'!$C$24:$H$45,6,0)), "", VLOOKUP($B43, '3. Rate Classes'!$C$24:$H$45,6,0)) ->  | F43: =VLOOKUP($B43, '10. Adj Conn. to Current WS'!$B$25:$R$47, 17,0) ->  | H43: =VLOOKUP('9. Adj Network to Current WS'!$B43, '4. RRR Data'!$B$27:$M$49,11,0) -> 0 | J43: =VLOOKUP('9. Adj Network to Current WS'!$B43, '4. RRR Data'!$B$27:$M$49,12,0) -> 0 | P43: =IF(ISERROR('8. Forecast Wholesale'!$P$117*N43), "", '8. Forecast Wholesale'!$P$117*N43) -> 
B44: =IF('3. Rate Classes'!Q43=1,'3. Rate Classes'!C43, 0) -> 0 | D44: =IF(ISERROR(VLOOKUP($B44, '3. Rate Classes'!$C$24:$H$45,6,0)), "", VLOOKUP($B44, '3. Rate Classes'!$C$24:$H$45,6,0)) ->  | F44: =VLOOKUP($B44, '10. Adj Conn. to Current WS'!$B$25:$R$47, 17,0) ->  | H44: =VLOOKUP('9. Adj Network to Current WS'!$B44, '4. RRR Data'!$B$27:$M$49,11,0) -> 0 | J44: =VLOOKUP('9. Adj Network to Current WS'!$B44, '4. RRR Data'!$B$27:$M$49,12,0) -> 0 | P44: =IF(ISERROR('8. Forecast Wholesale'!$P$117*N44), "", '8. Forecast Wholesale'!$P$117*N44) -> 
B45: =IF('3. Rate Classes'!Q44=1,'3. Rate Classes'!C44, 0) -> 0 | D45: =IF(ISERROR(VLOOKUP($B45, '3. Rate Classes'!$C$24:$H$45,6,0)), "", VLOOKUP($B45, '3. Rate Classes'!$C$24:$H$45,6,0)) ->  | F45: =VLOOKUP($B45, '10. Adj Conn. to Current WS'!$B$25:$R$47, 17,0) ->  | H45: =VLOOKUP('9. Adj Network to Current WS'!$B45, '4. RRR Data'!$B$27:$M$49,11,0) -> 0 | J45: =VLOOKUP('9. Adj Network to Current WS'!$B45, '4. RRR Data'!$B$27:$M$49,12,0) -> 0 | P45: =IF(ISERROR('8. Forecast Wholesale'!$P$117*N45), "", '8. Forecast Wholesale'!$P$117*N45) -> 
B46: =IF('3. Rate Classes'!Q45=1,'3. Rate Classes'!C45, 0) -> 0 | D46: =IF(ISERROR(VLOOKUP($B46, '3. Rate Classes'!$C$24:$H$45,6,0)), "", VLOOKUP($B46, '3. Rate Classes'!$C$24:$H$45,6,0)) ->  | F46: =VLOOKUP($B46, '10. Adj Conn. to Current WS'!$B$25:$R$47, 17,0) ->  | H46: =VLOOKUP('9. Adj Network to Current WS'!$B46, '4. RRR Data'!$B$27:$M$49,11,0) -> 0 | J46: =VLOOKUP('9. Adj Network to Current WS'!$B46, '4. RRR Data'!$B$27:$M$49,12,0) -> 0 | P46: =IF(ISERROR('8. Forecast Wholesale'!$P$117*N46), "", '8. Forecast Wholesale'!$P$117*N46) -> 
L49: =SUM(L25:L46) -> 2950611.761

Sheet 13. Final 2014 RTS Rates
B13: For Cost of Service Applicants, please enter the following Proposed RTS rates into your rates model. For IRM applicants, please enter these rates into the 2013 IRM Rate Generator, Sheet 11 "Proposed Rates", column I. Please note that the rate descriptions for the RTSRs are transfered automatically from Sheet 4 to Sheet 11, Column A.
B23: Rate Class | D23: Unit | F23: Proposed RTSR Network | H23: Proposed RTSR Connection
B26: =IF('3. Rate Classes'!Q24=1,'3. Rate Classes'!C24, 0) -> Residential | D26: =IF(ISERROR(VLOOKUP($B26, '3. Rate Classes'!$C$24:$H$45,6,0)), "", VLOOKUP($B26, '3. Rate Classes'!$C$24:$H$45,6,0)) -> kWh | F26: =VLOOKUP($B26, '11. Adj Network to Forecast WS'!$B$25:$R$48,17,0) -> 0.007282175334 | H26: =VLOOKUP($B26, '12. Adj Conn. to Forecast WS'!$B$25:$R$48,17,0) -> 0.002027829972
B27: =IF('3. Rate Classes'!Q25=1,'3. Rate Classes'!C25, 0) -> General Service Less Than 50 kW | D27: =IF(ISERROR(VLOOKUP($B27, '3. Rate Classes'!$C$24:$H$45,6,0)), "", VLOOKUP($B27, '3. Rate Classes'!$C$24:$H$45,6,0)) -> kWh | F27: =VLOOKUP($B27, '11. Adj Network to Forecast WS'!$B$25:$R$48,17,0) -> 0.006620159395 | H27: =VLOOKUP($B27, '12. Adj Conn. to Forecast WS'!$B$25:$R$48,17,0) -> 0.001843481793
B28: =IF('3. Rate Classes'!Q26=1,'3. Rate Classes'!C26, 0) -> General Service 50 to 999 kW | D28: =IF(ISERROR(VLOOKUP($B28, '3. Rate Classes'!$C$24:$H$45,6,0)), "", VLOOKUP($B28, '3. Rate Classes'!$C$24:$H$45,6,0)) -> kW | F28: =VLOOKUP($B28, '11. Adj Network to Forecast WS'!$B$25:$R$48,17,0) -> 2.703389376 | H28: =VLOOKUP($B28, '12. Adj Conn. to Forecast WS'!$B$25:$R$48,17,0) -> 0.7267005228
B29: =IF('3. Rate Classes'!Q27=1,'3. Rate Classes'!C27, 0) -> General Service 50 to 999 kW - Interval Metered | D29: =IF(ISERROR(VLOOKUP($B29, '3. Rate Classes'!$C$24:$H$45,6,0)), "", VLOOKUP($B29, '3. Rate Classes'!$C$24:$H$45,6,0)) -> kW | F29: =VLOOKUP($B29, '11. Adj Network to Forecast WS'!$B$25:$R$48,17,0) -> 2.871352277 | H29: =VLOOKUP($B29, '12. Adj Conn. to Forecast WS'!$B$25:$R$48,17,0) -> 0.9077304349
B30: =IF('3. Rate Classes'!Q28=1,'3. Rate Classes'!C28, 0) -> General Service 1,000 to 4,999 kW - Interval Meters | D30: =IF(ISERROR(VLOOKUP($B30, '3. Rate Classes'!$C$24:$H$45,6,0)), "", VLOOKUP($B30, '3. Rate Classes'!$C$24:$H$45,6,0)) -> kW | F30: =VLOOKUP($B30, '11. Adj Network to Forecast WS'!$B$25:$R$48,17,0) -> 2.867663902 | H30: =VLOOKUP($B30, '12. Adj Conn. to Forecast WS'!$B$25:$R$48,17,0) -> 0.9066243458
B31: =IF('3. Rate Classes'!Q29=1,'3. Rate Classes'!C29, 0) -> Large Use | D31: =IF(ISERROR(VLOOKUP($B31, '3. Rate Classes'!$C$24:$H$45,6,0)), "", VLOOKUP($B31, '3. Rate Classes'!$C$24:$H$45,6,0)) -> kW | F31: =VLOOKUP($B31, '11. Adj Network to Forecast WS'!$B$25:$R$48,17,0) -> 3.179189689 | H31: =VLOOKUP($B31, '12. Adj Conn. to Forecast WS'!$B$25:$R$48,17,0) -> 0.9108643539
B32: =IF('3. Rate Classes'!Q30=1,'3. Rate Classes'!C30, 0) -> Unmetered Scattered Load | D32: =IF(ISERROR(VLOOKUP($B32, '3. Rate Classes'!$C$24:$H$45,6,0)), "", VLOOKUP($B32, '3. Rate Classes'!$C$24:$H$45,6,0)) -> kWh | F32: =VLOOKUP($B32, '11. Adj Network to Forecast WS'!$B$25:$R$48,17,0) -> 0.006620159395 | H32: =VLOOKUP($B32, '12. Adj Conn. to Forecast WS'!$B$25:$R$48,17,0) -> 0.001843481793
B33: =IF('3. Rate Classes'!Q31=1,'3. Rate Classes'!C31, 0) -> Street Lighting | D33: =IF(ISERROR(VLOOKUP($B33, '3. Rate Classes'!$C$24:$H$45,6,0)), "", VLOOKUP($B33, '3. Rate Classes'!$C$24:$H$45,6,0)) -> kW | F33: =VLOOKUP($B33, '11. Adj Network to Forecast WS'!$B$25:$R$48,17,0) -> 2.039103667 | H33: =VLOOKUP($B33, '12. Adj Conn. to Forecast WS'!$B$25:$R$48,17,0) -> 0.5616167282
B34: =IF('3. Rate Classes'!Q32=1,'3. Rate Classes'!C32, 0) -> Embedded Distributor | D34: =IF(ISERROR(VLOOKUP($B34, '3. Rate Classes'!$C$24:$H$45,6,0)), "", VLOOKUP($B34, '3. Rate Classes'!$C$24:$H$45,6,0)) -> kW | F34: =VLOOKUP($B34, '11. Adj Network to Forecast WS'!$B$25:$R$48,17,0) -> 0 | H34: =VLOOKUP($B34, '12. Adj Conn. to Forecast WS'!$B$25:$R$48,17,0) -> 0
B35: =IF('3. Rate Classes'!Q33=1,'3. Rate Classes'!C33, 0) -> 0 | D35: =IF(ISERROR(VLOOKUP($B35, '3. Rate Classes'!$C$24:$H$45,6,0)), "", VLOOKUP($B35, '3. Rate Classes'!$C$24:$H$45,6,0)) ->  | F35: =VLOOKUP($B35, '11. Adj Network to Forecast WS'!$B$25:$R$48,17,0) ->  | H35: =VLOOKUP($B35, '12. Adj Conn. to Forecast WS'!$B$25:$R$48,17,0) -> 
B36: =IF('3. Rate Classes'!Q34=1,'3. Rate Classes'!C34, 0) -> 0 | D36: =IF(ISERROR(VLOOKUP($B36, '3. Rate Classes'!$C$24:$H$45,6,0)), "", VLOOKUP($B36, '3. Rate Classes'!$C$24:$H$45,6,0)) ->  | F36: =VLOOKUP($B36, '11. Adj Network to Forecast WS'!$B$25:$R$48,17,0) ->  | H36: =VLOOKUP($B36, '12. Adj Conn. to Forecast WS'!$B$25:$R$48,17,0) -> 
B37: =IF('3. Rate Classes'!Q35=1,'3. Rate Classes'!C35, 0) -> 0 | D37: =IF(ISERROR(VLOOKUP($B37, '3. Rate Classes'!$C$24:$H$45,6,0)), "", VLOOKUP($B37, '3. Rate Classes'!$C$24:$H$45,6,0)) ->  | F37: =VLOOKUP($B37, '11. Adj Network to Forecast WS'!$B$25:$R$48,17,0) ->  | H37: =VLOOKUP($B37, '12. Adj Conn. to Forecast WS'!$B$25:$R$48,17,0) -> 
B38: =IF('3. Rate Classes'!Q36=1,'3. Rate Classes'!C36, 0) -> 0 | D38: =IF(ISERROR(VLOOKUP($B38, '3. Rate Classes'!$C$24:$H$45,6,0)), "", VLOOKUP($B38, '3. Rate Classes'!$C$24:$H$45,6,0)) ->  | F38: =VLOOKUP($B38, '11. Adj Network to Forecast WS'!$B$25:$R$48,17,0) ->  | H38: =VLOOKUP($B38, '12. Adj Conn. to Forecast WS'!$B$25:$R$48,17,0) -> 
B39: =IF('3. Rate Classes'!Q37=1,'3. Rate Classes'!C37, 0) -> 0 | D39: =IF(ISERROR(VLOOKUP($B39, '3. Rate Classes'!$C$24:$H$45,6,0)), "", VLOOKUP($B39, '3. Rate Classes'!$C$24:$H$45,6,0)) ->  | F39: =VLOOKUP($B39, '11. Adj Network to Forecast WS'!$B$25:$R$48,17,0) ->  | H39: =VLOOKUP($B39, '12. Adj Conn. to Forecast WS'!$B$25:$R$48,17,0) -> 
B40: =IF('3. Rate Classes'!Q38=1,'3. Rate Classes'!C38, 0) -> 0 | D40: =IF(ISERROR(VLOOKUP($B40, '3. Rate Classes'!$C$24:$H$45,6,0)), "", VLOOKUP($B40, '3. Rate Classes'!$C$24:$H$45,6,0)) ->  | F40: =VLOOKUP($B40, '11. Adj Network to Forecast WS'!$B$25:$R$48,17,0) ->  | H40: =VLOOKUP($B40, '12. Adj Conn. to Forecast WS'!$B$25:$R$48,17,0) -> 
B41: =IF('3. Rate Classes'!Q39=1,'3. Rate Classes'!C39, 0) -> 0 | D41: =IF(ISERROR(VLOOKUP($B41, '3. Rate Classes'!$C$24:$H$45,6,0)), "", VLOOKUP($B41, '3. Rate Classes'!$C$24:$H$45,6,0)) ->  | F41: =VLOOKUP($B41, '11. Adj Network to Forecast WS'!$B$25:$R$48,17,0) ->  | H41: =VLOOKUP($B41, '12. Adj Conn. to Forecast WS'!$B$25:$R$48,17,0) -> 
B42: =IF('3. Rate Classes'!Q40=1,'3. Rate Classes'!C40, 0) -> 0 | D42: =IF(ISERROR(VLOOKUP($B42, '3. Rate Classes'!$C$24:$H$45,6,0)), "", VLOOKUP($B42, '3. Rate Classes'!$C$24:$H$45,6,0)) ->  | F42: =VLOOKUP($B42, '11. Adj Network to Forecast WS'!$B$25:$R$48,17,0) ->  | H42: =VLOOKUP($B42, '12. Adj Conn. to Forecast WS'!$B$25:$R$48,17,0) -> 
B43: =IF('3. Rate Classes'!Q41=1,'3. Rate Classes'!C41, 0) -> 0 | D43: =IF(ISERROR(VLOOKUP($B43, '3. Rate Classes'!$C$24:$H$45,6,0)), "", VLOOKUP($B43, '3. Rate Classes'!$C$24:$H$45,6,0)) ->  | F43: =VLOOKUP($B43, '11. Adj Network to Forecast WS'!$B$25:$R$48,17,0) ->  | H43: =VLOOKUP($B43, '12. Adj Conn. to Forecast WS'!$B$25:$R$48,17,0) -> 
B44: =IF('3. Rate Classes'!Q42=1,'3. Rate Classes'!C42, 0) -> 0 | D44: =IF(ISERROR(VLOOKUP($B44, '3. Rate Classes'!$C$24:$H$45,6,0)), "", VLOOKUP($B44, '3. Rate Classes'!$C$24:$H$45,6,0)) ->  | F44: =VLOOKUP($B44, '11. Adj Network to Forecast WS'!$B$25:$R$48,17,0) ->  | H44: =VLOOKUP($B44, '12. Adj Conn. to Forecast WS'!$B$25:$R$48,17,0) -> 
B45: =IF('3. Rate Classes'!Q43=1,'3. Rate Classes'!C43, 0) -> 0 | D45: =IF(ISERROR(VLOOKUP($B45, '3. Rate Classes'!$C$24:$H$45,6,0)), "", VLOOKUP($B45, '3. Rate Classes'!$C$24:$H$45,6,0)) ->  | F45: =VLOOKUP($B45, '11. Adj Network to Forecast WS'!$B$25:$R$48,17,0) ->  | H45: =VLOOKUP($B45, '12. Adj Conn. to Forecast WS'!$B$25:$R$48,17,0) -> 
B46: =IF('3. Rate Classes'!Q44=1,'3. Rate Classes'!C44, 0) -> 0 | D46: =IF(ISERROR(VLOOKUP($B46, '3. Rate Classes'!$C$24:$H$45,6,0)), "", VLOOKUP($B46, '3. Rate Classes'!$C$24:$H$45,6,0)) ->  | F46: =VLOOKUP($B46, '11. Adj Network to Forecast WS'!$B$25:$R$48,17,0) ->  | H46: =VLOOKUP($B46, '12. Adj Conn. to Forecast WS'!$B$25:$R$48,17,0) -> 
B47: =IF('3. Rate Classes'!Q45=1,'3. Rate Classes'!C45, 0) -> 0 | D47: =IF(ISERROR(VLOOKUP($B47, '3. Rate Classes'!$C$24:$H$45,6,0)), "", VLOOKUP($B47, '3. Rate Classes'!$C$24:$H$45,6,0)) ->  | F47: =VLOOKUP($B47, '11. Adj Network to Forecast WS'!$B$25:$R$48,17,0) ->  | H47: =VLOOKUP($B47, '12. Adj Conn. to Forecast WS'!$B$25:$R$48,17,0) -> 

Sheet hidden1 (hidden)
A1: =IF('3. Rate Classes'!Q24=1, '3. Rate Classes'!C24, "") -> Residential | B1: 1
A2: =IF('3. Rate Classes'!Q25=1, '3. Rate Classes'!C25, "") -> General Service Less Than 50 kW | B2: 2
A3: =IF('3. Rate Classes'!Q26=1, '3. Rate Classes'!C26, "") -> General Service 50 to 999 kW | B3: 3
A4: =IF('3. Rate Classes'!Q27=1, '3. Rate Classes'!C27, "") -> General Service 50 to 999 kW - Interval Metered | B4: 4
A5: =IF('3. Rate Classes'!Q28=1, '3. Rate Classes'!C28, "") -> General Service 1,000 to 4,999 kW - Interval Meters | B5: 5
A6: =IF('3. Rate Classes'!Q29=1, '3. Rate Classes'!C29, "") -> Large Use | B6: 6
A7: =IF('3. Rate Classes'!Q30=1, '3. Rate Classes'!C30, "") -> Unmetered Scattered Load | B7: 7
A8: =IF('3. Rate Classes'!Q31=1, '3. Rate Classes'!C31, "") -> Street Lighting | B8: 8
A9: =IF('3. Rate Classes'!Q32=1, '3. Rate Classes'!C32, "") -> Embedded Distributor | B9: 9
A10: =IF('3. Rate Classes'!Q33=1, '3. Rate Classes'!C33, "") ->  | B10: 10
A11: =IF('3. Rate Classes'!Q34=1, '3. Rate Classes'!C34, "") ->  | B11: 11
A12: =IF('3. Rate Classes'!Q35=1, '3. Rate Classes'!C35, "") ->  | B12: 12
A13: =IF('3. Rate Classes'!Q36=1, '3. Rate Classes'!C36, "") ->  | B13: 13
A14: =IF('3. Rate Classes'!Q37=1, '3. Rate Classes'!C37, "") ->  | B14: 14
A15: =IF('3. Rate Classes'!Q38=1, '3. Rate Classes'!C38, "") ->  | B15: 15
A16: =IF('3. Rate Classes'!Q39=1, '3. Rate Classes'!C39, "") ->  | B16: 16
A17: =IF('3. Rate Classes'!Q40=1, '3. Rate Classes'!C40, "") ->  | B17: 17
A18: =IF('3. Rate Classes'!Q41=1, '3. Rate Classes'!C41, "") ->  | B18: 18
A19: =IF('3. Rate Classes'!Q42=1, '3. Rate Classes'!C42, "") ->  | B19: 19
A20: =IF('3. Rate Classes'!Q43=1, '3. Rate Classes'!C43, "") ->  | B20: 20
A21: =IF('3. Rate Classes'!Q44=1, '3. Rate Classes'!C44, "") ->  | B21: 21
A22: =IF('3. Rate Classes'!Q45=1, '3. Rate Classes'!C45, "") ->  | B22: 22
